Body Name,Body,Service Area Catergorisation,Service Division Catergorisation,Responsible Unit,Expenses Type,Detailed Expenses Type,Expenses Code,Date,Transaction Number,Amount,Capital / Revenue,Supplier Name,Supplier ID
North East Lincolnshire Council,http://statistics.data.gov.uk/id/local-authority/00FC),Cap Dep Chief Exec,Ad Adult Serv-Hlth Improvement,Hps-Disabled Fac. Grants,Cap Grants To O/Side Sources,Cap Grants To O/Side Sources,YJ101,5/15/2018,516366,541.59,CAPITAL,F R TOWNSEND & CO LTD,104217
North East Lincolnshire Council,http://statistics.data.gov.uk/id/local-authority/00FC),Cap Dep Chief Exec,Ad Adult Serv-Hlth Improvement,Hps-Disabled Fac. Grants,Cap Grants To O/Side Sources,Cap Grants To O/Side Sources,YJ101,5/15/2018,517136,330.3,CAPITAL,P G INGOLDBY & SONS LTD,100591
North East Lincolnshire Council,http://statistics.data.gov.uk/id/local-authority/00FC),Cap Dep Chief Exec,Ad Adult Serv-Hlth Improvement,Hps-Disabled Fac. Grants,Cap Grants To O/Side Sources,Cap Grants To O/Side Sources,YJ101,5/22/2018,517995,5108.2,CAPITAL,ABLE 4 ENTERPRISE LTD,120159
North East Lincolnshire Council,http://statistics.data.gov.uk/id/local-authority/00FC),Cap Dep Chief Exec,Ad Adult Serv-Hlth Improvement,Hps-Disabled Fac. Grants,Cap Grants To O/Side Sources,Cap Grants To O/Side Sources,YJ101,5/31/2018,519562,3044,CAPITAL,VIC HANSEN BUILDING & JOINERY LTD,103981
North East Lincolnshire Council,http://statistics.data.gov.uk/id/local-authority/00FC),Cap Dep Chief Exec,Ad Adult Serv-Hlth Improvement,Hps-Disabled Fac. Grants,Cap Grants To O/Side Sources,Cap Grants To O/Side Sources,YJ101,5/8/2018,516085,3685,CAPITAL,DOLPHIN MOBILITY EAST MIDLANDS LTD,101317
North East Lincolnshire Council,http://statistics.data.gov.uk/id/local-authority/00FC),Cap Dep Chief Exec,Ad Adult Serv-Hlth Improvement,Hps-Disabled Fac. Grants,Cap Grants To O/Side Sources,Cap Grants To O/Side Sources,YJ101,5/22/2018,517994,2331.2,CAPITAL,ABLE 4 ENTERPRISE LTD,120159
North East Lincolnshire Council,http://statistics.data.gov.uk/id/local-authority/00FC),Cap Dep Chief Exec,Ad Adult Serv-Hlth Improvement,Hps-Disabled Fac. Grants,Cap Grants To O/Side Sources,Cap Grants To O/Side Sources,YJ101,5/8/2018,516084,749.8,CAPITAL,DOLPHIN MOBILITY EAST MIDLANDS LTD,101317
North East Lincolnshire Council,http://statistics.data.gov.uk/id/local-authority/00FC),Cap Dep Chief Exec,Ad Adult Serv-Hlth Improvement,Hps-Disabled Fac. Grants,Cap Grants To O/Side Sources,Cap Grants To O/Side Sources,YJ101,5/31/2018,519561,2262,CAPITAL,OBAM LIFT SERVICES LTD,112666
North East Lincolnshire Council,http://statistics.data.gov.uk/id/local-authority/00FC),Cap Dep Chief Exec,Ad Adult Serv-Hlth Improvement,Hps-Disabled Fac. Grants,Cap Grants To O/Side Sources,Cap Grants To O/Side Sources,YJ101,5/29/2018,519064,4433,CAPITAL,TOTAL HYGIENE LTD,100849
North East Lincolnshire Council,http://statistics.data.gov.uk/id/local-authority/00FC),Cap Dep Chief Exec,Ad Adult Serv-Hlth Improvement,Hps-Disabled Fac. Grants,Cap Grants To O/Side Sources,Cap Grants To O/Side Sources,YJ101,5/15/2018,516951,29199.68,CAPITAL,ENGIE SERVICES LTD,133267
North East Lincolnshire Council,http://statistics.data.gov.uk/id/local-authority/00FC),Cap Dep Chief Exec,Ad Adult Serv-Hlth Improvement,Hps-Disabled Fac. Grants,Cap Grants To O/Side Sources,Cap Grants To O/Side Sources,YJ101,5/29/2018,518423,360,CAPITAL,STEPHEN HEYWOOD DESIGN LTD,132818
North East Lincolnshire Council,http://statistics.data.gov.uk/id/local-authority/00FC),Cap Dep Chief Exec,Ad Adult Serv-Hlth Improvement,Housing Assist Grants And Loan,Cap Grants To O/Side Sources,Cap Grants To O/Side Sources,YJ101,5/31/2018,519597,1507.5,CAPITAL,ENGIE SERVICES LTD,133267
North East Lincolnshire Council,http://statistics.data.gov.uk/id/local-authority/00FC),Cap Dep Chief Exec,Director Of Public Health,New Leisure Centre At Grimsby,Cap Land/Build-Build Enh Wrk,Cap Land/Build-Build Enh Wrk,YA102,5/22/2018,517960,1244.4,CAPITAL,HUMIDITY SOLUTIONS LTD,139966
North East Lincolnshire Council,http://statistics.data.gov.uk/id/local-authority/00FC),Cap Dep Chief Exec,Director Of Public Health,Scartho Rd / Barratts Rec Site,Cap Land/Build-Build Enh Wrk,Cap Land/Build-Build Enh Wrk,YA102,5/17/2018,517046,493.15,CAPITAL,STRATEGIC LEISURE LIMITED,132216
North East Lincolnshire Council,http://statistics.data.gov.uk/id/local-authority/00FC),Cap Dep Chief Exec,Director Of Public Health,Drug & Alcohol Recovery,Cap Land/Build-Build Enh Wrk,Cap Land/Build-Build Enh Wrk,YA102,5/22/2018,517996,450,CAPITAL,BG SOLICITORS LLP,100514
North East Lincolnshire Council,http://statistics.data.gov.uk/id/local-authority/00FC),Cap Dep Chief Exec,Director Of Public Health,Library Self Service Equipment,Cap Veh Plt Eqp-Purchase,Cap Veh Plt Eqp-Purchase,YB101,5/31/2018,518111,3000,CAPITAL,D-TECH INTERNATIONAL LTD,102138
North East Lincolnshire Council,http://statistics.data.gov.uk/id/local-authority/00FC),Cap Dep Chief Exec,Director Of Public Health,Bradley Football Redevelopment,Cap Land/Build-Build Enh Wrk,Cap Land/Build-Build Enh Wrk,YA102,5/24/2018,518156,4350,CAPITAL,ROBINSON LOW FRANCIS LLP,136534
North East Lincolnshire Council,http://statistics.data.gov.uk/id/local-authority/00FC),Chief Executive,Director Of Finance,Backlog Maintenance,Cap Land/Build-Build Enh Wrk,Cap Land/Build-Build Enh Wrk,YA102,5/3/2018,516040,9145,CAPITAL,ETON-LINCS LIMITED,101510
North East Lincolnshire Council,http://statistics.data.gov.uk/id/local-authority/00FC),Chief Executive,Director Of Finance,Backlog Maintenance,Cap Land/Build-Build Enh Wrk,Cap Land/Build-Build Enh Wrk,YA102,5/3/2018,515834,2285,CAPITAL,ETON-LINCS LIMITED,101510
North East Lincolnshire Council,http://statistics.data.gov.uk/id/local-authority/00FC),Chief Executive,Director Of Finance,Backlog Maintenance,Cap Land/Build-Build Enh Wrk,Cap Land/Build-Build Enh Wrk,YA102,5/8/2018,516378,1825,CAPITAL,ETON-LINCS LIMITED,101510
North East Lincolnshire Council,http://statistics.data.gov.uk/id/local-authority/00FC),Chief Executive,Director Of Finance,Backlog Maintenance,Cap Land/Build-Build Enh Wrk,Cap Land/Build-Build Enh Wrk,YA102,5/8/2018,516380,2200,CAPITAL,NEWGLAZE,100642
North East Lincolnshire Council,http://statistics.data.gov.uk/id/local-authority/00FC),Chief Executive,Director Of Finance,Backlog Maintenance,Cap Land/Build-Build Enh Wrk,Cap Land/Build-Build Enh Wrk,YA102,5/8/2018,516379,985,CAPITAL,ETON-LINCS LIMITED,101510
North East Lincolnshire Council,http://statistics.data.gov.uk/id/local-authority/00FC),Chief Executive,Director Of Finance,Backlog Maintenance,Cap Land/Build-Build Enh Wrk,Cap Land/Build-Build Enh Wrk,YA102,5/31/2018,519516,659,CAPITAL,ENGIE SERVICES LTD,133267
North East Lincolnshire Council,http://statistics.data.gov.uk/id/local-authority/00FC),Chief Executive,Director Of Finance,Backlog Maintenance,Cap Land/Build-Build Enh Wrk,Cap Land/Build-Build Enh Wrk,YA102,5/29/2018,519274,5300,CAPITAL,PLAYDECK UK LTD,136735
North East Lincolnshire Council,http://statistics.data.gov.uk/id/local-authority/00FC),Chief Executive,Director Of Finance,Dig Strat Del/Imp Civica/Edrms,Cap Veh Plt Eqp-Prof Fees,Cap Veh Plt Eqp-Prof Fees,YB103,5/29/2018,519065,760,CAPITAL,SOFTWARE ACUMEN LTD,139050
North East Lincolnshire Council,http://statistics.data.gov.uk/id/local-authority/00FC),Chief Executive,Shared Services,Ict Refresh 16-17,Cap Land/Build-Build Enh Wrk,Cap Land/Build-Build Enh Wrk,YA102,5/31/2018,519199,-360,CAPITAL,END2END SERVICES LTD,136807
North East Lincolnshire Council,http://statistics.data.gov.uk/id/local-authority/00FC),Chief Executive,Shared Services,Ict Refresh 16-17,Cap Land/Build-Build Enh Wrk,Cap Land/Build-Build Enh Wrk,YA102,5/3/2018,515520,3030.25,CAPITAL,COMPUTACENTER UK LTD,101303
North East Lincolnshire Council,http://statistics.data.gov.uk/id/local-authority/00FC),Chief Executive,Shared Services,Ict Refresh 16-17,Cap Land/Build-Build Enh Wrk,Cap Land/Build-Build Enh Wrk,YA102,5/1/2018,515097,4663.2,CAPITAL,INSIGHT DIRECT (UK) LTD,101011
North East Lincolnshire Council,http://statistics.data.gov.uk/id/local-authority/00FC),Chief Executive,Shared Services,Ict Refresh 16-17,Cap Land/Build-Build Enh Wrk,Cap Land/Build-Build Enh Wrk,YA102,5/10/2018,516350,4080.9,CAPITAL,XMA LIMITED,100699
North East Lincolnshire Council,http://statistics.data.gov.uk/id/local-authority/00FC),Chief Executive,Shared Services,Ict Refresh 16-17,Cap Land/Build-Build Enh Wrk,Cap Land/Build-Build Enh Wrk,YA102,5/29/2018,519102,619.8,CAPITAL,COMPUTACENTER UK LTD,101303
North East Lincolnshire Council,http://statistics.data.gov.uk/id/local-authority/00FC),Chief Executive,Director Of Economy & Growth,Local Transport Plan Schemes,Cap Infrastr-Build Enh Wrk,Cap Infrastr-Build Enh Wrk,YC102,5/31/2018,519543,2000,CAPITAL,ENGIE SERVICES LTD,133267
North East Lincolnshire Council,http://statistics.data.gov.uk/id/local-authority/00FC),Chief Executive,Director Of Economy & Growth,Local Transport Plan Schemes,Cap Infrastr-Build Enh Wrk,Cap Infrastr-Build Enh Wrk,YC102,5/3/2018,515849,2560,CAPITAL,ONEWAY TM LIMITED,128602
North East Lincolnshire Council,http://statistics.data.gov.uk/id/local-authority/00FC),Chief Executive,Director Of Economy & Growth,Local Transport Plan Schemes,Cap Infrastr-Build Enh Wrk,Cap Infrastr-Build Enh Wrk,YC102,5/8/2018,516078,31435.72,CAPITAL,PROTEK FENCING LTD,136253
North East Lincolnshire Council,http://statistics.data.gov.uk/id/local-authority/00FC),Chief Executive,Director Of Economy & Growth,Local Transport Plan Schemes,Cap Infrastr-Build Enh Wrk,Cap Infrastr-Build Enh Wrk,YC102,5/24/2018,518583,4658.22,CAPITAL,PROTEK FENCING LTD,136253
North East Lincolnshire Council,http://statistics.data.gov.uk/id/local-authority/00FC),Chief Executive,Director Of Economy & Growth,Local Transport Plan Schemes,Cap Infrastr-Build Enh Wrk,Cap Infrastr-Build Enh Wrk,YC102,5/24/2018,518558,26777.5,CAPITAL,PROTEK FENCING LTD,136253
North East Lincolnshire Council,http://statistics.data.gov.uk/id/local-authority/00FC),Chief Executive,Director Of Economy & Growth,Local Transport Plan Schemes,Cap Infrastr-Build Enh Wrk,Cap Infrastr-Build Enh Wrk,YC102,5/31/2018,519549,3360.93,CAPITAL,ENGIE SERVICES LTD,133267
North East Lincolnshire Council,http://statistics.data.gov.uk/id/local-authority/00FC),Chief Executive,Director Of Economy & Growth,Local Transport Plan Schemes,Cap Land/Build-Build Enh Wrk,Cap Land/Build-Build Enh Wrk,YA102,5/17/2018,517122,3488.84,CAPITAL,J MCCANN & CO LTD,100841
North East Lincolnshire Council,http://statistics.data.gov.uk/id/local-authority/00FC),Chief Executive,Director Of Economy & Growth,Local Transport Plan Schemes,Cap Infrastr-Build Enh Wrk,Cap Infrastr-Build Enh Wrk,YC102,5/31/2018,519546,500,CAPITAL,ENGIE SERVICES LTD,133267
North East Lincolnshire Council,http://statistics.data.gov.uk/id/local-authority/00FC),Chief Executive,Director Of Economy & Growth,Local Transport Plan Schemes,Cap Infrastr-Build Enh Wrk,Cap Infrastr-Build Enh Wrk,YC102,5/31/2018,519544,4000,CAPITAL,ENGIE SERVICES LTD,133267
North East Lincolnshire Council,http://statistics.data.gov.uk/id/local-authority/00FC),Chief Executive,Director Of Economy & Growth,Local Transport Plan Schemes,Cap Infrastr-Build Enh Wrk,Cap Infrastr-Build Enh Wrk,YC102,5/8/2018,516102,1575,CAPITAL,CLUGSTON SURVEY SERVICES,105668
North East Lincolnshire Council,http://statistics.data.gov.uk/id/local-authority/00FC),Chief Executive,Director Of Economy & Growth,Local Transport Plan Schemes,Cap Infrastr-Build Enh Wrk,Cap Infrastr-Build Enh Wrk,YC102,5/22/2018,516669,740,CAPITAL,LOCAL TRANSPORT PROJECTS LTD,121248
North East Lincolnshire Council,http://statistics.data.gov.uk/id/local-authority/00FC),Chief Executive,Director Of Economy & Growth,Local Transport Plan Schemes,Cap Infrastr-Build Enh Wrk,Cap Infrastr-Build Enh Wrk,YC102,5/17/2018,517540,1018.06,CAPITAL,SPECIALIST SURFACING LIMITED,100579
North East Lincolnshire Council,http://statistics.data.gov.uk/id/local-authority/00FC),Chief Executive,Director Of Economy & Growth,Local Transport Plan Schemes,Cap Infrastr-Build Enh Wrk,Cap Infrastr-Build Enh Wrk,YC102,5/31/2018,519545,3000,CAPITAL,ENGIE SERVICES LTD,133267
North East Lincolnshire Council,http://statistics.data.gov.uk/id/local-authority/00FC),Chief Executive,Director Of Economy & Growth,Local Transport Plan Schemes,Cap Infrastr-Build Enh Wrk,Cap Infrastr-Build Enh Wrk,YC102,5/31/2018,518164,12737,CAPITAL,C E SMITH & SONS,104444
North East Lincolnshire Council,http://statistics.data.gov.uk/id/local-authority/00FC),Chief Executive,Director Of Economy & Growth,Local Transport Plan Schemes,Cap Infrastr-Build Enh Wrk,Cap Infrastr-Build Enh Wrk,YC102,5/31/2018,519539,2500,CAPITAL,ENGIE SERVICES LTD,133267
North East Lincolnshire Council,http://statistics.data.gov.uk/id/local-authority/00FC),Chief Executive,Director Of Economy & Growth,Local Transport Plan Schemes,Cap Infrastr-Build Enh Wrk,Cap Infrastr-Build Enh Wrk,YC102,5/31/2018,519541,10000,CAPITAL,ENGIE SERVICES LTD,133267
North East Lincolnshire Council,http://statistics.data.gov.uk/id/local-authority/00FC),Chief Executive,Director Of Economy & Growth,Local Transport Plan Schemes,Cap Infrastr-Build Enh Wrk,Cap Infrastr-Build Enh Wrk,YC102,5/31/2018,519540,7000,CAPITAL,ENGIE SERVICES LTD,133267
North East Lincolnshire Council,http://statistics.data.gov.uk/id/local-authority/00FC),Chief Executive,Director Of Economy & Growth,Local Transport Plan Schemes,Cap Infrastr-Build Enh Wrk,Cap Infrastr-Build Enh Wrk,YC102,5/17/2018,517539,3256.3,CAPITAL,SPECIALIST SURFACING LIMITED,100579
North East Lincolnshire Council,http://statistics.data.gov.uk/id/local-authority/00FC),Chief Executive,Director Of Economy & Growth,Local Transport Plan Schemes,Cap Infrastr-Build Enh Wrk,Cap Infrastr-Build Enh Wrk,YC102,5/31/2018,519547,2500,CAPITAL,ENGIE SERVICES LTD,133267
North East Lincolnshire Council,http://statistics.data.gov.uk/id/local-authority/00FC),Chief Executive,Director Of Economy & Growth,Local Transport Plan Schemes,Cap Infrastr-Build Enh Wrk,Cap Infrastr-Build Enh Wrk,YC102,5/31/2018,519551,2456.48,CAPITAL,ENGIE SERVICES LTD,133267
North East Lincolnshire Council,http://statistics.data.gov.uk/id/local-authority/00FC),Chief Executive,Director Of Economy & Growth,Local Transport Plan Schemes,Cap Infrastr-Build Enh Wrk,Cap Infrastr-Build Enh Wrk,YC102,5/22/2018,517175,33305.8,CAPITAL,C R REYNOLDS (CONSTRUCTION) LTD,103021
North East Lincolnshire Council,http://statistics.data.gov.uk/id/local-authority/00FC),Chief Executive,Director Of Economy & Growth,Local Transport Plan Schemes,Cap Infrastr-Build Enh Wrk,Cap Infrastr-Build Enh Wrk,YC102,5/22/2018,516670,1150,CAPITAL,LOCAL TRANSPORT PROJECTS LTD,121248
North East Lincolnshire Council,http://statistics.data.gov.uk/id/local-authority/00FC),Chief Executive,Director Of Economy & Growth,Local Transport Plan Schemes,Cap Infrastr-Purchase,Cap Infrastr-Purchase,YC101,5/31/2018,519550,2499.76,CAPITAL,ENGIE SERVICES LTD,133267
North East Lincolnshire Council,http://statistics.data.gov.uk/id/local-authority/00FC),Chief Executive,Director Of Economy & Growth,Local Transport Plan Schemes,Cap Infrastr-Build Enh Wrk,Cap Infrastr-Build Enh Wrk,YC102,5/22/2018,515025,19014.76,CAPITAL,SPECIALIST SURFACING LIMITED,100579
North East Lincolnshire Council,http://statistics.data.gov.uk/id/local-authority/00FC),Chief Executive,Director Of Economy & Growth,Local Transport Plan Schemes,Cap Infrastr-Build Enh Wrk,Cap Infrastr-Build Enh Wrk,YC102,5/31/2018,519542,3500,CAPITAL,ENGIE SERVICES LTD,133267
North East Lincolnshire Council,http://statistics.data.gov.uk/id/local-authority/00FC),Chief Executive,Director Of Economy & Growth,Local Transport Plan Schemes,Cap Infrastr-Build Enh Wrk,Cap Infrastr-Build Enh Wrk,YC102,5/31/2018,519537,2000,CAPITAL,ENGIE SERVICES LTD,133267
North East Lincolnshire Council,http://statistics.data.gov.uk/id/local-authority/00FC),Chief Executive,Director Of Economy & Growth,Local Transport Plan Schemes,Cap Infrastr-Build Enh Wrk,Cap Infrastr-Build Enh Wrk,YC102,5/31/2018,519572,1600,CAPITAL,ONEWAY TM LIMITED,128602
North East Lincolnshire Council,http://statistics.data.gov.uk/id/local-authority/00FC),Chief Executive,Director Of Economy & Growth,Local Transport Plan Schemes,Cap Infrastr-Build Enh Wrk,Cap Infrastr-Build Enh Wrk,YC102,5/31/2018,519594,6000,CAPITAL,ENGIE SERVICES LTD,133267
North East Lincolnshire Council,http://statistics.data.gov.uk/id/local-authority/00FC),Chief Executive,Director Of Economy & Growth,Freeman Street Regeneration,Cap Land/Build-Build Enh Wrk,Cap Land/Build-Build Enh Wrk,YA102,5/22/2018,518078,1224,CAPITAL,BIRSE CIVILS LTD,121547
North East Lincolnshire Council,http://statistics.data.gov.uk/id/local-authority/00FC),Chief Executive,Director Of Economy & Growth,Gllep Junction Improvement,Cap Land/Build-Build Enh Wrk,Cap Land/Build-Build Enh Wrk,YA102,5/31/2018,519548,6000,CAPITAL,ENGIE SERVICES LTD,133267
North East Lincolnshire Council,http://statistics.data.gov.uk/id/local-authority/00FC),Chief Executive,Director Of Economy & Growth,Gllep Junction Improvement,Cap Land/Build-Build Enh Wrk,Cap Land/Build-Build Enh Wrk,YA102,5/22/2018,517529,1150,CAPITAL,LOCAL TRANSPORT PROJECTS LTD,121248
North East Lincolnshire Council,http://statistics.data.gov.uk/id/local-authority/00FC),Chief Executive,Director Of Economy & Growth,Gllep Junction Improvement,Cap Land/Build-Build Enh Wrk,Cap Land/Build-Build Enh Wrk,YA102,5/22/2018,517528,1520,CAPITAL,LOCAL TRANSPORT PROJECTS LTD,121248
North East Lincolnshire Council,http://statistics.data.gov.uk/id/local-authority/00FC),Chief Executive,Director Of Economy & Growth,Gllep Junction Improvement,Cap Infrastr-Build Enh Wrk,Cap Infrastr-Build Enh Wrk,YC102,5/31/2018,519538,5000,CAPITAL,ENGIE SERVICES LTD,133267
North East Lincolnshire Council,http://statistics.data.gov.uk/id/local-authority/00FC),Chief Executive,Director Of Economy & Growth,Cartergate Office Development,Cap Invest Prop-Prof Fees,Cap Invest Prop-Prof Fees,YE103,5/22/2018,517807,580.67,CAPITAL,ENGIE SERVICES LTD,133267
North East Lincolnshire Council,http://statistics.data.gov.uk/id/local-authority/00FC),Chief Executive,Director Of Economy & Growth,Shiip Scheme,Cap Infrastr-Prof Fees,Cap Infrastr-Prof Fees,YC103,5/22/2018,517845,765.6,CAPITAL,ENGIE SERVICES LTD,133267
North East Lincolnshire Council,http://statistics.data.gov.uk/id/local-authority/00FC),Chief Executive,Director Of Economy & Growth,Shiip Scheme,Cap Infrastr-Prof Fees,Cap Infrastr-Prof Fees,YC103,5/31/2018,519162,8990,CAPITAL,DIVA CREATIVE LTD,138748
North East Lincolnshire Council,http://statistics.data.gov.uk/id/local-authority/00FC),Chief Executive,Director Of Economy & Growth,Shiip Scheme,Cap Infrastr-Prof Fees,Cap Infrastr-Prof Fees,YC103,5/31/2018,519053,4300,CAPITAL,DIVA CREATIVE LTD,138748
North East Lincolnshire Council,http://statistics.data.gov.uk/id/local-authority/00FC),Chief Executive,Director Of Economy & Growth,Shiip Scheme,Cap Infrastr-Prof Fees,Cap Infrastr-Prof Fees,YC103,5/22/2018,517907,990,CAPITAL,NATURAL ENGLAND,133104
North East Lincolnshire Council,http://statistics.data.gov.uk/id/local-authority/00FC),Chief Executive,Director Of Economy & Growth,Shiip Scheme,Cap Infrastr-Prof Fees,Cap Infrastr-Prof Fees,YC103,5/3/2018,515442,3000,CAPITAL,ENGIE SERVICES LTD,133267
North East Lincolnshire Council,http://statistics.data.gov.uk/id/local-authority/00FC),Chief Executive,Director Of Economy & Growth,Catch Offshore,Cap Infrastr-Prof Fees,Cap Infrastr-Prof Fees,YC103,5/8/2018,516229,15189.37,CAPITAL,INTEGRATED UTILITY SERVICES,136462
North East Lincolnshire Council,http://statistics.data.gov.uk/id/local-authority/00FC),Chief Executive,Director Of Economy & Growth,Catch Offshore,Cap Infrastr-Build Enh Wrk,Cap Infrastr-Build Enh Wrk,YC102,5/8/2018,516252,451.95,CAPITAL,J MCCANN & CO LTD,100841
North East Lincolnshire Council,http://statistics.data.gov.uk/id/local-authority/00FC),Chief Executive,Director Of Economy & Growth,Immingham Lock Floor Def Gates,Cap Land/Build-Prof Fees,Cap Land/Build-Prof Fees,YA103,5/22/2018,517812,2042.5,CAPITAL,BEVAN BRITTAN LLP,131317
North East Lincolnshire Council,http://statistics.data.gov.uk/id/local-authority/00FC),Chief Executive,Director Of Economy & Growth,Unlocking The Potential,Cap Infrastr-Build Enh Wrk,Cap Infrastr-Build Enh Wrk,YC102,5/8/2018,516255,700,CAPITAL,ENGIE SERVICES LTD,133267
North East Lincolnshire Council,http://statistics.data.gov.uk/id/local-authority/00FC),Chief Executive,Director Of Economy & Growth,Unlocking The Potential,Cap Infrastr-Prof Fees,Cap Infrastr-Prof Fees,YC103,5/31/2018,519596,9125.99,CAPITAL,ENGIE SERVICES LTD,133267
North East Lincolnshire Council,http://statistics.data.gov.uk/id/local-authority/00FC),Chief Executive,Director Of Economy & Growth,Unlocking The Potential,Cap Infrastr-Prof Fees,Cap Infrastr-Prof Fees,YC103,5/15/2018,517148,1500,CAPITAL,JONES LANG LASALLE LIMITED,138946
North East Lincolnshire Council,http://statistics.data.gov.uk/id/local-authority/00FC),Chief Executive,Director Of Economy & Growth,Scartho Road Hosp Junc Imp,Cap Infrastr-Build Enh Wrk,Cap Infrastr-Build Enh Wrk,YC102,5/31/2018,519553,5000,CAPITAL,ENGIE SERVICES LTD,133267
North East Lincolnshire Council,http://statistics.data.gov.uk/id/local-authority/00FC),Chief Executive,Director Of Economy & Growth,Scartho Road Hosp Junc Imp,Cap Infrastr-Build Enh Wrk,Cap Infrastr-Build Enh Wrk,YC102,5/10/2018,516377,45471.08,CAPITAL,PBS CONSTRUCTION (NORTH EAST) LTD,127459
North East Lincolnshire Council,http://statistics.data.gov.uk/id/local-authority/00FC),Chief Executive,Ad Environment,Grounds & Bereavement Services,Equip / Furniture / Materials,Equipment - Maintenance,LA104,5/10/2018,516656,-11775.93,REVENUE,FACULTATIEVE TECHNOLOGIES LTD,101165
North East Lincolnshire Council,http://statistics.data.gov.uk/id/local-authority/00FC),Chief Executive,Ad Environment,Grounds & Bereavement Services,Equip / Furniture / Materials,Equipment - Purchase,LA101,5/15/2018,517024,560,REVENUE,JOE CARR PROPERTY MAINTENANCE LTD,112295
North East Lincolnshire Council,http://statistics.data.gov.uk/id/local-authority/00FC),Chief Executive,Ad Environment,Grounds & Bereavement Services,Equip / Furniture / Materials,Equipment - Purchase,LA101,5/3/2018,515568,799.2,REVENUE,S P DAVIS MEMORIALS LIMITED,130000
North East Lincolnshire Council,http://statistics.data.gov.uk/id/local-authority/00FC),Chief Executive,Ad Environment,Grounds & Bereavement Services,Equip / Furniture / Materials,Equipment - Purchase,LA101,5/22/2018,517798,252,REVENUE,TELESHORE UK LTD,112508
North East Lincolnshire Council,http://statistics.data.gov.uk/id/local-authority/00FC),Chief Executive,Ad Environment,Grounds & Bereavement Services,Equip / Furniture / Materials,Equipment - Purchase,LA101,5/8/2018,515570,495,REVENUE,S P DAVIS MEMORIALS LIMITED,130000
North East Lincolnshire Council,http://statistics.data.gov.uk/id/local-authority/00FC),Chief Executive,Ad Environment,Grounds & Bereavement Services,Equip / Furniture / Materials,Equipment - Purchase,LA101,5/15/2018,516991,450,REVENUE,S P DAVIS MEMORIALS LIMITED,130000
North East Lincolnshire Council,http://statistics.data.gov.uk/id/local-authority/00FC),Chief Executive,Ad Environment,Grounds & Bereavement Services,Equip / Furniture / Materials,Equipment - Purchase,LA101,5/10/2018,516365,303.23,REVENUE,BRIDGE INSURANCE BROKERS LTD,128411
North East Lincolnshire Council,http://statistics.data.gov.uk/id/local-authority/00FC),Chief Executive,Ad Environment,Grounds & Bereavement Services,Customer And Client Receipts,Fees/Chrgs-O/Side Scope Vat 4,VC125,5/24/2018,594453,568,REVENUE,REDACTED PERSONAL INFORMATION,REDACTED PERSONAL INFORMATION
North East Lincolnshire Council,http://statistics.data.gov.uk/id/local-authority/00FC),Chief Executive,Ad Environment,Grounds & Bereavement Services,Direct Transport Costs,Vehicles - Running Costs,JA104,5/3/2018,515863,509.22,REVENUE,ALLSTAR BUSINESS SOLUTIONS LTD,108278
North East Lincolnshire Council,http://statistics.data.gov.uk/id/local-authority/00FC),Chief Executive,Ad Environment,Grounds & Bereavement Services,Equip / Furniture / Materials,Equipment - Purchase,LA101,5/22/2018,517512,288.75,REVENUE,GROUNDSMAN TOOLS & SUPPLIERS LLP,131754
North East Lincolnshire Council,http://statistics.data.gov.uk/id/local-authority/00FC),Chief Executive,Ad Environment,Grounds & Bereavement Services,Equip / Furniture / Materials,Equipment - Purchase,LA101,5/15/2018,516949,500,REVENUE,BOSTON SEEDS,139462
North East Lincolnshire Council,http://statistics.data.gov.uk/id/local-authority/00FC),Chief Executive,Ad Environment,Grounds & Bereavement Services,Equip / Furniture / Materials,Equipment - Purchase,LA101,5/15/2018,516369,350,REVENUE,BRIANPLANT (HUMBERSIDE) LTD,100583
North East Lincolnshire Council,http://statistics.data.gov.uk/id/local-authority/00FC),Chief Executive,Ad Environment,Grounds & Bereavement Services,Equip / Furniture / Materials,Equipment - Purchase,LA101,5/3/2018,515029,1320,REVENUE,FLEET LINE MARKERS LIMITED,100595
North East Lincolnshire Council,http://statistics.data.gov.uk/id/local-authority/00FC),Chief Executive,Ad Environment,Grounds & Bereavement Services,Equip / Furniture / Materials,Equipment - Purchase,LA101,5/17/2018,517242,338.1,REVENUE,BRIANPLANT (HUMBERSIDE) LTD,100583
North East Lincolnshire Council,http://statistics.data.gov.uk/id/local-authority/00FC),Chief Executive,Ad Environment,Grounds & Bereavement Services,Equip / Furniture / Materials,Equipment - Purchase,LA101,5/22/2018,517513,700,REVENUE,TUDOR (UK) LTD T/A TUDOR ENVIRONMENT,138362
North East Lincolnshire Council,http://statistics.data.gov.uk/id/local-authority/00FC),Chief Executive,Ad Environment,Grounds & Bereavement Services,Communications And Computing,Telephones,LF112,5/22/2018,517611,312,REVENUE,RADPHONE LTD,101671
North East Lincolnshire Council,http://statistics.data.gov.uk/id/local-authority/00FC),Chief Executive,Ad Environment,Grounds & Bereavement Services,Private Contractors,Third Party Prov - Private,PH101,5/15/2018,517259,625.3,REVENUE,ENVIRONMENT AGENCY,101076
North East Lincolnshire Council,http://statistics.data.gov.uk/id/local-authority/00FC),Chief Executive,Ad Environment,Grounds & Bereavement Services,Private Contractors,Third Party Prov - Private,PH101,5/22/2018,517251,850,REVENUE,J MELTON TREE SERVICES LTD,101809
North East Lincolnshire Council,http://statistics.data.gov.uk/id/local-authority/00FC),Chief Executive,Ad Environment,Grounds & Bereavement Services,Rep Alterations Maint Building,Buildings - Repairs And Maint,GA102,5/22/2018,517169,640,REVENUE,BCJ CONSTRUCTION LTD,112224
North East Lincolnshire Council,http://statistics.data.gov.uk/id/local-authority/00FC),Chief Executive,Ad Environment,Grounds & Bereavement Services,Water Services,Water,GE101,5/15/2018,517259,1100.4,REVENUE,ENVIRONMENT AGENCY,101076
North East Lincolnshire Council,http://statistics.data.gov.uk/id/local-authority/00FC),Chief Executive,Ad Environment,Garage & Fleet Strategy,Direct Transport Costs,Vehicles - Repairs And Maint,JA105,5/3/2018,515576,721.41,REVENUE,FLEET FACTORS LTD,100886
North East Lincolnshire Council,http://statistics.data.gov.uk/id/local-authority/00FC),Chief Executive,Ad Environment,Garage & Fleet Strategy,Direct Transport Costs,Vehicles - Repairs And Maint,JA105,5/3/2018,515577,1497.71,REVENUE,FLEET FACTORS LTD,100886
North East Lincolnshire Council,http://statistics.data.gov.uk/id/local-authority/00FC),Chief Executive,Ad Environment,Garage & Fleet Strategy,Direct Transport Costs,Vehicles - Repairs And Maint,JA105,5/3/2018,515578,4398.35,REVENUE,FLEET FACTORS LTD,100886
North East Lincolnshire Council,http://statistics.data.gov.uk/id/local-authority/00FC),Chief Executive,Ad Environment,Garage & Fleet Strategy,Direct Transport Costs,Vehicles - Repairs And Maint,JA105,5/3/2018,515583,297.66,REVENUE,B A BUSH & SON LTD,101828
North East Lincolnshire Council,http://statistics.data.gov.uk/id/local-authority/00FC),Chief Executive,Ad Environment,Garage & Fleet Strategy,Direct Transport Costs,Vehicles - Repairs And Maint,JA105,5/17/2018,517544,695,REVENUE,MOTORWAY WINDSCREENS LTD,102660
North East Lincolnshire Council,http://statistics.data.gov.uk/id/local-authority/00FC),Chief Executive,Ad Environment,Garage & Fleet Strategy,Direct Transport Costs,Vehicles - Repairs And Maint,JA105,5/17/2018,517599,302.36,REVENUE,JOHNSONS APPARELMASTER,100810
North East Lincolnshire Council,http://statistics.data.gov.uk/id/local-authority/00FC),Chief Executive,Ad Environment,Garage & Fleet Strategy,Direct Transport Costs,Vehicles - Repairs And Maint,JA105,5/17/2018,517543,286.5,REVENUE,ENERGAS LIMITED,129000
North East Lincolnshire Council,http://statistics.data.gov.uk/id/local-authority/00FC),Chief Executive,Ad Environment,Garage & Fleet Strategy,Direct Transport Costs,Vehicles - Repairs And Maint,JA105,5/15/2018,517017,285.95,REVENUE,B A BUSH & SON LTD,101828
North East Lincolnshire Council,http://statistics.data.gov.uk/id/local-authority/00FC),Chief Executive,Ad Environment,Garage & Fleet Strategy,Direct Transport Costs,Vehicles - Repairs And Maint,JA105,5/17/2018,517536,3960.56,REVENUE,FLEET FACTORS LTD,100886
North East Lincolnshire Council,http://statistics.data.gov.uk/id/local-authority/00FC),Chief Executive,Ad Environment,Garage & Fleet Strategy,Direct Transport Costs,Vehicles - Repairs And Maint,JA105,5/17/2018,517554,4549.63,REVENUE,FLEET FACTORS LTD,100886
North East Lincolnshire Council,http://statistics.data.gov.uk/id/local-authority/00FC),Chief Executive,Ad Environment,Garage & Fleet Strategy,Direct Transport Costs,Vehicles - Repairs And Maint,JA105,5/17/2018,517555,324.79,REVENUE,FLEET FACTORS LTD,100886
North East Lincolnshire Council,http://statistics.data.gov.uk/id/local-authority/00FC),Chief Executive,Ad Environment,Garage & Fleet Strategy,Direct Transport Costs,Vehicles - Repairs And Maint,JA105,5/17/2018,517549,350.18,REVENUE,FLEET FACTORS LTD,100886
North East Lincolnshire Council,http://statistics.data.gov.uk/id/local-authority/00FC),Chief Executive,Ad Environment,Garage & Fleet Strategy,Direct Transport Costs,Vehicles - Repairs And Maint,JA105,5/22/2018,517781,952.94,REVENUE,FLEET FACTORS LTD,100886
North East Lincolnshire Council,http://statistics.data.gov.uk/id/local-authority/00FC),Chief Executive,Ad Environment,Garage & Fleet Strategy,Direct Transport Costs,Vehicles - Repairs And Maint,JA105,5/17/2018,517545,250,REVENUE,MOTORWAY WINDSCREENS LTD,102660
North East Lincolnshire Council,http://statistics.data.gov.uk/id/local-authority/00FC),Chief Executive,Ad Environment,Garage & Fleet Strategy,Direct Transport Costs,Vehicles - Repairs And Maint,JA105,5/24/2018,518163,2608,REVENUE,CARRERA ENGINEERING SERVICES LTD,102267
North East Lincolnshire Council,http://statistics.data.gov.uk/id/local-authority/00FC),Chief Executive,Ad Environment,Garage & Fleet Strategy,Direct Transport Costs,Vehicles - Repairs And Maint,JA105,5/22/2018,517783,289.57,REVENUE,B A BUSH & SON LTD,101828
North East Lincolnshire Council,http://statistics.data.gov.uk/id/local-authority/00FC),Chief Executive,Ad Environment,Garage & Fleet Strategy,Direct Transport Costs,Vehicles - Repairs And Maint,JA105,5/22/2018,517784,428.07,REVENUE,B A BUSH & SON LTD,101828
North East Lincolnshire Council,http://statistics.data.gov.uk/id/local-authority/00FC),Chief Executive,Ad Environment,Garage & Fleet Strategy,Direct Transport Costs,Vehicles - Repairs And Maint,JA105,5/22/2018,517789,2986.69,REVENUE,FLEET FACTORS LTD,100886
North East Lincolnshire Council,http://statistics.data.gov.uk/id/local-authority/00FC),Chief Executive,Ad Environment,Garage & Fleet Strategy,Direct Transport Costs,Vehicles - Repairs And Maint,JA105,5/22/2018,517791,651.62,REVENUE,FLEET FACTORS LTD,100886
North East Lincolnshire Council,http://statistics.data.gov.uk/id/local-authority/00FC),Chief Executive,Ad Environment,Garage & Fleet Strategy,Direct Transport Costs,Vehicles - Repairs And Maint,JA105,5/29/2018,519145,2705.01,REVENUE,FLEET FACTORS LTD,100886
North East Lincolnshire Council,http://statistics.data.gov.uk/id/local-authority/00FC),Chief Executive,Ad Environment,Garage & Fleet Strategy,Direct Transport Costs,Vehicles - Repairs And Maint,JA105,5/29/2018,519154,3403.52,REVENUE,FLEET FACTORS LTD,100886
North East Lincolnshire Council,http://statistics.data.gov.uk/id/local-authority/00FC),Chief Executive,Ad Environment,Garage & Fleet Strategy,Direct Transport Costs,Vehicles - Repairs And Maint,JA105,5/29/2018,519146,806.86,REVENUE,FLEET FACTORS LTD,100886
North East Lincolnshire Council,http://statistics.data.gov.uk/id/local-authority/00FC),Chief Executive,Ad Environment,Garage & Fleet Strategy,Direct Transport Costs,Vehicles - Repairs And Maint,JA105,5/29/2018,519137,434.8,REVENUE,B A BUSH & SON LTD,101828
North East Lincolnshire Council,http://statistics.data.gov.uk/id/local-authority/00FC),Chief Executive,Ad Environment,Garage & Fleet Strategy,Direct Transport Costs,Vehicles - Repairs And Maint,JA105,5/29/2018,519122,678.45,REVENUE,WR MATERIAL HANDLING LTD,101388
North East Lincolnshire Council,http://statistics.data.gov.uk/id/local-authority/00FC),Chief Executive,Ad Environment,Garage & Fleet Strategy,Direct Transport Costs,Vehicles - Repairs And Maint,JA105,5/29/2018,519121,264.4,REVENUE,WR MATERIAL HANDLING LTD,101388
North East Lincolnshire Council,http://statistics.data.gov.uk/id/local-authority/00FC),Chief Executive,Ad Environment,Garage & Fleet Strategy,Direct Transport Costs,Vehicles - Repairs And Maint,JA105,5/29/2018,519115,1203.7,REVENUE,WR MATERIAL HANDLING LTD,101388
North East Lincolnshire Council,http://statistics.data.gov.uk/id/local-authority/00FC),Chief Executive,Ad Environment,Street Cleansing,Direct Transport Costs,Vehicles - Running Costs,JA104,5/3/2018,515863,250.48,REVENUE,ALLSTAR BUSINESS SOLUTIONS LTD,108278
North East Lincolnshire Council,http://statistics.data.gov.uk/id/local-authority/00FC),Chief Executive,Ad Environment,Street Cleansing,Equip / Furniture / Materials,Equipment - Purchase,LA101,5/31/2018,519276,1958.4,REVENUE,DANIELS HEALTHCARE LTD,105859
North East Lincolnshire Council,http://statistics.data.gov.uk/id/local-authority/00FC),Chief Executive,Ad Environment,Street Cleansing,Private Contractors,Third Party Prov - Private,PH101,5/24/2018,517771,425.5,REVENUE,HEALTHCARE ENVIRONMENTAL SERVICES LTD,137118
North East Lincolnshire Council,http://statistics.data.gov.uk/id/local-authority/00FC),Chief Executive,Ad Environment,Street Cleansing,Private Contractors,Third Party Prov - Private,PH101,5/31/2018,519277,540,REVENUE,ENGIE SERVICES LTD,133267
North East Lincolnshire Council,http://statistics.data.gov.uk/id/local-authority/00FC),Chief Executive,Ad Environment,Street Cleansing,Private Contractors,Third Party Prov - Private,PH101,5/8/2018,514642,6075,REVENUE,H COPE & SONS LTD,100521
North East Lincolnshire Council,http://statistics.data.gov.uk/id/local-authority/00FC),Chief Executive,Ad Environment,Street Cleansing,Private Contractors,Third Party Prov - Private,PH101,5/15/2018,516947,930,REVENUE,HODSON & KAUSS,100620
North East Lincolnshire Council,http://statistics.data.gov.uk/id/local-authority/00FC),Chief Executive,Ad Environment,Waste Services,Equip / Furniture / Materials,Equipment - Purchase,LA101,5/24/2018,516222,805.5,REVENUE,CROMWELL POLYTHENE LTD,101183
North East Lincolnshire Council,http://statistics.data.gov.uk/id/local-authority/00FC),Chief Executive,Ad Environment,Waste Services,Miscellaneous Expenses,Legal Fees - General,LL103,5/24/2018,518103,250,REVENUE,BG SOLICITORS LLP,100514
North East Lincolnshire Council,http://statistics.data.gov.uk/id/local-authority/00FC),Chief Executive,Ad Environment,Waste Services,Private Contractors,Third Party Prov - Private,PH101,5/17/2018,517527,467.55,REVENUE,ALLPAY LIMITED,112919
North East Lincolnshire Council,http://statistics.data.gov.uk/id/local-authority/00FC),Chief Executive,Ad Environment,Waste Disposal And Strategy,Private Contractors,Contract Payments,PH105,5/15/2018,517221,REDACTED COMMERCIALLY SENSITIVE,REVENUE,NEWLINCS DEVELOPMENT LTD,101125
North East Lincolnshire Council,http://statistics.data.gov.uk/id/local-authority/00FC),Chief Executive,Ad Environment,Waste Disposal And Strategy,Private Contractors,Contract Payments Landfill Tax,PH106,5/15/2018,517221,REDACTED COMMERCIALLY SENSITIVE,REVENUE,NEWLINCS DEVELOPMENT LTD,101125
North East Lincolnshire Council,http://statistics.data.gov.uk/id/local-authority/00FC),Chief Executive,Ad Environment,Waste Disposal And Strategy,Customer And Client Receipts,Sales - Std Vat 7,VC101,5/15/2018,517221,REDACTED COMMERCIALLY SENSITIVE,REVENUE,NEWLINCS DEVELOPMENT LTD,101125
North East Lincolnshire Council,http://statistics.data.gov.uk/id/local-authority/00FC),Chief Executive,Ad Environment,Safer Communities - Nelc,Rents,Service Charge,GC102,5/15/2018,516805,30064.92,REVENUE,NHS PROPERTY SERVICES LTD,139079
North East Lincolnshire Council,http://statistics.data.gov.uk/id/local-authority/00FC),Chief Executive,Ad Environment,Community Protection,Indirect Employee Expenses,Staff Training,EB122,5/15/2018,516930,310,REVENUE,INSTITUTE OF LICENSING (EVENTS) LTD,109054
North East Lincolnshire Council,http://statistics.data.gov.uk/id/local-authority/00FC),Chief Executive,Ad Environment,Community Protection,Contributions To Provisions,Contributions - Other,LK103,5/22/2018,517174,462,REVENUE,JOYNSONS CATERING EQUIPMENT,139957
North East Lincolnshire Council,http://statistics.data.gov.uk/id/local-authority/00FC),Chief Executive,Ad Environment,Community Protection,Contributions To Provisions,Contributions - Other,LK103,5/22/2018,517174,1428,REVENUE,JOYNSONS CATERING EQUIPMENT,139957
North East Lincolnshire Council,http://statistics.data.gov.uk/id/local-authority/00FC),Chief Executive,Ad Environment,Community Protection,Communications And Computing,Computer Consumables,LF109,5/15/2018,516953,637.5,REVENUE,DIAMOND PEOPLE LTD,104496
North East Lincolnshire Council,http://statistics.data.gov.uk/id/local-authority/00FC),Chief Executive,Ad Environment,Community Protection,Miscellaneous Expenses,Other Supplies & Services,LL110,5/15/2018,516960,266,REVENUE,LICENCE CHECK LTD,138504
North East Lincolnshire Council,http://statistics.data.gov.uk/id/local-authority/00FC),Chief Executive,Ad Environment,Community Protection,Miscellaneous Expenses,Environmental/Health Analysis,LL120,5/15/2018,516956,351.26,REVENUE,ALS ENVIRONMENTAL LIMITED,139898
North East Lincolnshire Council,http://statistics.data.gov.uk/id/local-authority/00FC),Chief Executive,Ad Environment,Community Protection,Miscellaneous Expenses,Environmental/Health Analysis,LL120,5/15/2018,516958,357.26,REVENUE,ALS ENVIRONMENTAL LIMITED,139898
North East Lincolnshire Council,http://statistics.data.gov.uk/id/local-authority/00FC),Chief Executive,Ad Environment,Community Protection,Equip / Furniture / Materials,Equipment - Purchase,LA101,5/15/2018,516942,258.44,REVENUE,PETER HOGARTH & SONS LTD,100815
North East Lincolnshire Council,http://statistics.data.gov.uk/id/local-authority/00FC),Chief Executive,Ad Environment,Community Protection,Private Contractors,Third Party Prov - Private,PH101,5/10/2018,516296,3908.76,REVENUE,SANGREAT KENNELS,103270
North East Lincolnshire Council,http://statistics.data.gov.uk/id/local-authority/00FC),Chief Executive,Ad Environment,Community Protection,Private Contractors,Third Party Prov - Private,PH101,5/8/2018,515032,5180,REVENUE,VERITAS PROPERTY MANAGEMENT,138462
North East Lincolnshire Council,http://statistics.data.gov.uk/id/local-authority/00FC),Chief Executive,Director Of Finance,Chief Finance Officer,Consultancy,Consultancy,PL101,5/8/2018,516277,1566,REVENUE,SARAH BRATTAN,134910
North East Lincolnshire Council,http://statistics.data.gov.uk/id/local-authority/00FC),Chief Executive,Director Of Finance,Chief Finance Officer,Consultancy,Consultancy,PL101,5/8/2018,516275,550,REVENUE,ANTHONY P WINN ACIB,134636
North East Lincolnshire Council,http://statistics.data.gov.uk/id/local-authority/00FC),Chief Executive,Director Of Finance,Chief Finance Officer,Consultancy,Consultancy,PL101,5/8/2018,516279,1216,REVENUE,IAN GIRDLEY,137191
North East Lincolnshire Council,http://statistics.data.gov.uk/id/local-authority/00FC),Chief Executive,Director Of Finance,Chief Finance Officer,Consultancy,Consultancy,PL101,5/8/2018,516273,628,REVENUE,HEIDI DODSON,134908
North East Lincolnshire Council,http://statistics.data.gov.uk/id/local-authority/00FC),Chief Executive,Director Of Finance,Chief Finance Officer,Consultancy,Consultancy,PL101,5/29/2018,519161,1062.95,REVENUE,BLACKSTOCK PARTNERSHIP LTD,139880
North East Lincolnshire Council,http://statistics.data.gov.uk/id/local-authority/00FC),Chief Executive,Director Of Finance,Chief Exec & Support,Contributions To Provisions,Contributions - Communities,LK101,5/15/2018,517116,300,REVENUE,YARBOROUGH ACADEMY,112852
North East Lincolnshire Council,http://statistics.data.gov.uk/id/local-authority/00FC),Chief Executive,Director Of Finance,Chief Exec & Support,Grants And Subscriptions,Subscriptions,LJ101,5/31/2018,519630,475,REVENUE,ALL PARTY PARLIAMENTARY GROUP,140147
North East Lincolnshire Council,http://statistics.data.gov.uk/id/local-authority/00FC),Chief Executive,Director Of Finance,Chief Exec & Support,Miscellaneous Expenses,Hospitality,LL112,5/31/2018,518422,2180,REVENUE,LOCAL GOVERNMENT ASSOCIATION,101113
North East Lincolnshire Council,http://statistics.data.gov.uk/id/local-authority/00FC),Chief Executive,Director Of Finance,Chief Exec & Support,Miscellaneous Expenses,Hospitality,LL112,5/3/2018,515525,545,REVENUE,LOCAL GOVERNMENT ASSOCIATION,101113
North East Lincolnshire Council,http://statistics.data.gov.uk/id/local-authority/00FC),Chief Executive,Director Of Finance,Chief Exec & Support,Miscellaneous Expenses,Hospitality,LL112,5/10/2018,516221,490,REVENUE,MUGGI LTD,125166
North East Lincolnshire Council,http://statistics.data.gov.uk/id/local-authority/00FC),Chief Executive,Director Of Finance,Chief Exec & Support,Miscellaneous Expenses,Hospitality,LL112,5/31/2018,519268,1475,REVENUE,HEMMING GROUP LIMITED,104412
North East Lincolnshire Council,http://statistics.data.gov.uk/id/local-authority/00FC),Chief Executive,Director Of Finance,Chief Exec & Support,Private Contractors,Third Party Prov - Private,PH101,5/31/2018,519577,1323.58,REVENUE,TAPE2TAPE,132803
North East Lincolnshire Council,http://statistics.data.gov.uk/id/local-authority/00FC),Chief Executive,Director Of Finance,Cfs Assets & Pc Programme,Print Stationery / Gen Off Exp,Advertising,LD104,5/15/2018,516668,282.54,REVENUE,LOCAL WORLD LIMITED,118774
North East Lincolnshire Council,http://statistics.data.gov.uk/id/local-authority/00FC),Chief Executive,Director Of Finance,Facilities Management,Rep Alterations Maint Building,Buildings - Repairs And Maint,GA102,5/8/2018,516076,1563.64,REVENUE,ENGIE SERVICES LTD,133267
North East Lincolnshire Council,http://statistics.data.gov.uk/id/local-authority/00FC),Chief Executive,Director Of Finance,Facilities Management,Rep Alterations Maint Building,Buildings - Repairs And Maint,GA102,5/1/2018,515491,304.84,REVENUE,ENGIE SERVICES LTD,133267
North East Lincolnshire Council,http://statistics.data.gov.uk/id/local-authority/00FC),Chief Executive,Director Of Finance,Facilities Management,Rep Alterations Maint Building,Buildings - Repairs And Maint,GA102,5/1/2018,515491,311.2,REVENUE,ENGIE SERVICES LTD,133267
North East Lincolnshire Council,http://statistics.data.gov.uk/id/local-authority/00FC),Chief Executive,Director Of Finance,Facilities Management,Rep Alterations Maint Building,Buildings - Repairs And Maint,GA102,5/31/2018,519221,255.91,REVENUE,ENGIE SERVICES LTD,133267
North East Lincolnshire Council,http://statistics.data.gov.uk/id/local-authority/00FC),Chief Executive,Director Of Finance,Facilities Management,Rep Alterations Maint Building,Buildings - Repairs And Maint,GA102,5/1/2018,515471,760.14,REVENUE,ENGIE SERVICES LTD,133267
North East Lincolnshire Council,http://statistics.data.gov.uk/id/local-authority/00FC),Chief Executive,Director Of Finance,Facilities Management,Rep Alterations Maint Building,Security Alarms And Cctv,GA101,5/8/2018,516254,1441.8,REVENUE,SECOM PLC,100771
North East Lincolnshire Council,http://statistics.data.gov.uk/id/local-authority/00FC),Chief Executive,Director Of Finance,Facilities Management,Cleaning And Domestic Supplies,Cleaning - Services,GH102,5/8/2018,516316,656.31,REVENUE,FUTURE CLEANING SERVICES LTD,102557
North East Lincolnshire Council,http://statistics.data.gov.uk/id/local-authority/00FC),Chief Executive,Director Of Finance,Facilities Management,Cleaning And Domestic Supplies,Cleaning - Services,GH102,5/3/2018,515596,987,REVENUE,KINGDOM SERVICES GROUP LTD,138536
North East Lincolnshire Council,http://statistics.data.gov.uk/id/local-authority/00FC),Chief Executive,Director Of Finance,Facilities Management,Cleaning And Domestic Supplies,Cleaning - Services,GH102,5/15/2018,516934,1034,REVENUE,KINGDOM SERVICES GROUP LTD,138536
North East Lincolnshire Council,http://statistics.data.gov.uk/id/local-authority/00FC),Chief Executive,Director Of Finance,Facilities Management,Cleaning And Domestic Supplies,Cleaning - Services,GH102,5/22/2018,517663,987,REVENUE,KINGDOM SERVICES GROUP LTD,138536
North East Lincolnshire Council,http://statistics.data.gov.uk/id/local-authority/00FC),Chief Executive,Director Of Finance,Facilities Management,Rep Alterations Maint Building,Buildings - Repairs And Maint,GA102,5/1/2018,515497,319.12,REVENUE,ENGIE SERVICES LTD,133267
North East Lincolnshire Council,http://statistics.data.gov.uk/id/local-authority/00FC),Chief Executive,Director Of Finance,Facilities Management,Rep Alterations Maint Building,Buildings - Repairs And Maint,GA102,5/1/2018,515497,255.3,REVENUE,ENGIE SERVICES LTD,133267
North East Lincolnshire Council,http://statistics.data.gov.uk/id/local-authority/00FC),Chief Executive,Director Of Finance,Facilities Management,Grounds Maintenance Costs,Grounds Maintenance,GJ101,5/31/2018,519586,390,REVENUE,STEVE AUSTWICK GARDEN SERVICES,109384
North East Lincolnshire Council,http://statistics.data.gov.uk/id/local-authority/00FC),Chief Executive,Director Of Finance,Facilities Management,Rep Alterations Maint Building,Buildings - Repairs And Maint,GA102,5/1/2018,515495,550,REVENUE,ENGIE SERVICES LTD,133267
North East Lincolnshire Council,http://statistics.data.gov.uk/id/local-authority/00FC),Chief Executive,Director Of Finance,Facilities Management,Grounds Maintenance Costs,Grounds Maintenance,GJ101,5/15/2018,516674,900,REVENUE,J MELTON TREE SERVICES LTD,101809
North East Lincolnshire Council,http://statistics.data.gov.uk/id/local-authority/00FC),Chief Executive,Director Of Finance,Facilities Management,Rep Alterations Maint Building,Buildings - Repairs And Maint,GA102,5/17/2018,517562,350,REVENUE,ENGIE SERVICES LTD,133267
North East Lincolnshire Council,http://statistics.data.gov.uk/id/local-authority/00FC),Chief Executive,Director Of Finance,Facilities Management,Cleaning And Domestic Supplies,Cleaning - Services,GH102,5/31/2018,519253,652.8,REVENUE,FOR UNDER FIVES LTD,100647
North East Lincolnshire Council,http://statistics.data.gov.uk/id/local-authority/00FC),Chief Executive,Director Of Finance,Facilities Management,Cleaning And Domestic Supplies,Refuse Collection,GH104,5/15/2018,517085,523.9,REVENUE,ELLGIA LIMITED,101433
North East Lincolnshire Council,http://statistics.data.gov.uk/id/local-authority/00FC),Chief Executive,Director Of Finance,Facilities Management,Grounds Maintenance Costs,Grounds Maintenance,GJ101,5/31/2018,519576,325,REVENUE,STEVE AUSTWICK GARDEN SERVICES,109384
North East Lincolnshire Council,http://statistics.data.gov.uk/id/local-authority/00FC),Chief Executive,Director Of Finance,Facilities Management,Communications And Computing,Telephones,LF112,5/8/2018,516307,2837.48,REVENUE,VIRGIN MEDIA,107612
North East Lincolnshire Council,http://statistics.data.gov.uk/id/local-authority/00FC),Chief Executive,Director Of Finance,Facilities Management,Rep Alterations Maint Building,Buildings - Repairs And Maint,GA102,5/31/2018,519222,299.14,REVENUE,ENGIE SERVICES LTD,133267
North East Lincolnshire Council,http://statistics.data.gov.uk/id/local-authority/00FC),Chief Executive,Director Of Finance,Facilities Management,Rep Alterations Maint Building,Buildings - Repairs And Maint,GA102,5/17/2018,517561,300.79,REVENUE,ENGIE SERVICES LTD,133267
North East Lincolnshire Council,http://statistics.data.gov.uk/id/local-authority/00FC),Chief Executive,Director Of Finance,Facilities Management,Rep Alterations Maint Building,Buildings - Repairs And Maint,GA102,5/3/2018,515878,308,REVENUE,ENGIE SERVICES LTD,133267
North East Lincolnshire Council,http://statistics.data.gov.uk/id/local-authority/00FC),Chief Executive,Director Of Finance,Facilities Management,Energy Costs,Heating Fuel,GB103,5/24/2018,518203,767.52,REVENUE,EASTFIELD PRIMARY ACADEMY,121907
North East Lincolnshire Council,http://statistics.data.gov.uk/id/local-authority/00FC),Chief Executive,Director Of Finance,Facilities Management,Energy Costs,Heating Fuel,GB103,5/24/2018,518193,639.36,REVENUE,EASTFIELD PRIMARY ACADEMY,121907
North East Lincolnshire Council,http://statistics.data.gov.uk/id/local-authority/00FC),Chief Executive,Director Of Finance,Facilities Management,Water Services,Water,GE101,5/24/2018,518190,268.04,REVENUE,EASTFIELD PRIMARY ACADEMY,121907
North East Lincolnshire Council,http://statistics.data.gov.uk/id/local-authority/00FC),Chief Executive,Director Of Finance,Facilities Management,Cleaning And Domestic Supplies,Cleaning - Services,GH102,5/22/2018,517662,1050,REVENUE,KINGDOM SERVICES GROUP LTD,138536
North East Lincolnshire Council,http://statistics.data.gov.uk/id/local-authority/00FC),Chief Executive,Director Of Finance,Facilities Management,Rep Alterations Maint Building,Security Alarms And Cctv,GA101,5/1/2018,515486,250.91,REVENUE,THRUNSCOE PRIMARY AND NURSERY ACADEMY,118749
North East Lincolnshire Council,http://statistics.data.gov.uk/id/local-authority/00FC),Chief Executive,Director Of Finance,Facilities Management,Energy Costs,Gas,GB101,5/1/2018,515486,356.4,REVENUE,THRUNSCOE PRIMARY AND NURSERY ACADEMY,118749
North East Lincolnshire Council,http://statistics.data.gov.uk/id/local-authority/00FC),Chief Executive,Director Of Finance,Facilities Management,Cleaning And Domestic Supplies,Cleaning - Services,GH102,5/1/2018,515486,1192.72,REVENUE,THRUNSCOE PRIMARY AND NURSERY ACADEMY,118749
North East Lincolnshire Council,http://statistics.data.gov.uk/id/local-authority/00FC),Chief Executive,Director Of Finance,Facilities Management,Rep Alterations Maint Building,Buildings - Repairs And Maint,GA102,5/31/2018,519218,250,REVENUE,ENGIE SERVICES LTD,133267
North East Lincolnshire Council,http://statistics.data.gov.uk/id/local-authority/00FC),Chief Executive,Director Of Finance,Facilities Management,Cleaning And Domestic Supplies,Cleaning - Services,GH102,5/10/2018,516302,856.14,REVENUE,FUTURE CLEANING SERVICES LTD,102557
North East Lincolnshire Council,http://statistics.data.gov.uk/id/local-authority/00FC),Chief Executive,Director Of Finance,Facilities Management,Rep Alterations Maint Building,Buildings - Repairs And Maint,GA102,5/1/2018,515493,495,REVENUE,ENGIE SERVICES LTD,133267
North East Lincolnshire Council,http://statistics.data.gov.uk/id/local-authority/00FC),Chief Executive,Director Of Finance,Facilities Management,Rep Alterations Maint Building,Buildings - Repairs And Maint,GA102,5/1/2018,515493,550,REVENUE,ENGIE SERVICES LTD,133267
North East Lincolnshire Council,http://statistics.data.gov.uk/id/local-authority/00FC),Chief Executive,Director Of Finance,Facilities Management,Energy Costs,Electricity,GB102,5/22/2018,517914,430.29,REVENUE,YARBOROUGH ACADEMY,112852
North East Lincolnshire Council,http://statistics.data.gov.uk/id/local-authority/00FC),Chief Executive,Director Of Finance,Facilities Management,Cleaning And Domestic Supplies,Cleaning - Services,GH102,5/8/2018,516315,1066.01,REVENUE,FUTURE CLEANING SERVICES LTD,102557
North East Lincolnshire Council,http://statistics.data.gov.uk/id/local-authority/00FC),Chief Executive,Director Of Finance,Facilities Management,Rep Alterations Maint Building,Buildings - Repairs And Maint,GA102,5/1/2018,515494,324.09,REVENUE,ENGIE SERVICES LTD,133267
North East Lincolnshire Council,http://statistics.data.gov.uk/id/local-authority/00FC),Chief Executive,Director Of Finance,Facilities Management,Energy Costs,Electricity,GB102,5/3/2018,515487,1521.67,REVENUE,FAIRFIELD PRIMARY ACADEMY,129030
North East Lincolnshire Council,http://statistics.data.gov.uk/id/local-authority/00FC),Chief Executive,Director Of Finance,Facilities Management,Energy Costs,Gas,GB101,5/3/2018,515487,650,REVENUE,FAIRFIELD PRIMARY ACADEMY,129030
North East Lincolnshire Council,http://statistics.data.gov.uk/id/local-authority/00FC),Chief Executive,Director Of Finance,Facilities Management,Rates,Rates,GD101,5/3/2018,515487,447.21,REVENUE,FAIRFIELD PRIMARY ACADEMY,129030
North East Lincolnshire Council,http://statistics.data.gov.uk/id/local-authority/00FC),Chief Executive,Director Of Finance,Facilities Management,Cleaning And Domestic Supplies,Cleaning - Services,GH102,5/8/2018,516317,608.39,REVENUE,FUTURE CLEANING SERVICES LTD,102557
North East Lincolnshire Council,http://statistics.data.gov.uk/id/local-authority/00FC),Chief Executive,Director Of Finance,Facilities Management,Cleaning And Domestic Supplies,Refuse Collection,GH104,5/3/2018,515487,341.78,REVENUE,FAIRFIELD PRIMARY ACADEMY,129030
North East Lincolnshire Council,http://statistics.data.gov.uk/id/local-authority/00FC),Chief Executive,Director Of Finance,Facilities Management,Grounds Maintenance Costs,Grounds Maintenance,GJ101,5/3/2018,515487,733.66,REVENUE,FAIRFIELD PRIMARY ACADEMY,129030
North East Lincolnshire Council,http://statistics.data.gov.uk/id/local-authority/00FC),Chief Executive,Director Of Finance,Facilities Management,Energy Costs,Electricity,GB102,5/8/2018,516080,270,REVENUE,NPOWER,125397
North East Lincolnshire Council,http://statistics.data.gov.uk/id/local-authority/00FC),Chief Executive,Director Of Finance,Facilities Management,Cleaning And Domestic Supplies,Cleaning - Services,GH102,5/17/2018,517214,1940.07,REVENUE,CANNON HYGIENE LIMITED,139198
North East Lincolnshire Council,http://statistics.data.gov.uk/id/local-authority/00FC),Chief Executive,Director Of Finance,Facilities Management,Cleaning And Domestic Supplies,Cleaning - Services,GH102,5/31/2018,519628,47054.07,REVENUE,KINGDOM SERVICES GROUP LTD,138536
North East Lincolnshire Council,http://statistics.data.gov.uk/id/local-authority/00FC),Chief Executive,Director Of Finance,Facilities Management,Grants And Subscriptions,Subscriptions,LJ101,5/3/2018,515381,3831.68,REVENUE,TEAM (EAA LTD),105082
North East Lincolnshire Council,http://statistics.data.gov.uk/id/local-authority/00FC),Chief Executive,Director Of Finance,Facilities Management,Rents,Rent,GC101,5/1/2018,515301,7412.5,REVENUE,CAPAX (C I ) LIMITED,101112
North East Lincolnshire Council,http://statistics.data.gov.uk/id/local-authority/00FC),Chief Executive,Director Of Finance,Facilities Management,Rents,Rent,GC101,5/15/2018,517207,4168.32,REVENUE,SHORELINE HOUSING PARTNERSHIP LIMITED,100139
North East Lincolnshire Council,http://statistics.data.gov.uk/id/local-authority/00FC),Chief Executive,Director Of Finance,Facilities Management,Energy Costs,Heating Fuel,GB103,5/24/2018,518117,1068.46,REVENUE,OIL NRG,138198
North East Lincolnshire Council,http://statistics.data.gov.uk/id/local-authority/00FC),Chief Executive,Director Of Finance,Facilities Management,Energy Costs,Heating Fuel,GB103,5/24/2018,518121,1097.65,REVENUE,OIL NRG,138198
North East Lincolnshire Council,http://statistics.data.gov.uk/id/local-authority/00FC),Chief Executive,Director Of Finance,Facilities Management,Energy Costs,Heating Fuel,GB103,5/24/2018,518122,823.65,REVENUE,OIL NRG,138198
North East Lincolnshire Council,http://statistics.data.gov.uk/id/local-authority/00FC),Chief Executive,Director Of Finance,Facilities Management,Premises Insurance,Premises Insurance - Premiums,GK101,5/1/2018,515321,2951.74,REVENUE,WYKELAND GROUP LTD,101729
North East Lincolnshire Council,http://statistics.data.gov.uk/id/local-authority/00FC),Chief Executive,Director Of Finance,Facilities Management,Cleaning And Domestic Supplies,Cleaning - Consumables,GH103,5/31/2018,519608,266,REVENUE,KINGDOM SERVICES GROUP LTD,138536
North East Lincolnshire Council,http://statistics.data.gov.uk/id/local-authority/00FC),Chief Executive,Director Of Finance,Facilities Management,Energy Costs,Electricity,GB102,5/1/2018,515315,501.27,REVENUE,OLD CLEE PRIMARY ACADEMY,119822
North East Lincolnshire Council,http://statistics.data.gov.uk/id/local-authority/00FC),Chief Executive,Director Of Finance,Facilities Management,Energy Costs,Electricity,GB102,5/15/2018,517209,263.59,REVENUE,OLD CLEE PRIMARY ACADEMY,119822
North East Lincolnshire Council,http://statistics.data.gov.uk/id/local-authority/00FC),Chief Executive,Director Of Finance,Facilities Management,Energy Costs,Gas,GB101,5/31/2018,519610,312.47,REVENUE,OLD CLEE PRIMARY ACADEMY,119822
North East Lincolnshire Council,http://statistics.data.gov.uk/id/local-authority/00FC),Chief Executive,Director Of Finance,Facilities Management,Energy Costs,Gas,GB101,5/1/2018,515313,504.3,REVENUE,OLD CLEE PRIMARY ACADEMY,119822
North East Lincolnshire Council,http://statistics.data.gov.uk/id/local-authority/00FC),Chief Executive,Director Of Finance,Facilities Management,Rents,Rent,GC101,5/17/2018,517217,1250,REVENUE,THE GRIMSBY INSTITUTE OF FURTHER,102742
North East Lincolnshire Council,http://statistics.data.gov.uk/id/local-authority/00FC),Chief Executive,Director Of Finance,Facilities Management,Rents,Rent,GC101,5/1/2018,515359,1250,REVENUE,THE GRIMSBY INSTITUTE OF FURTHER,102742
North East Lincolnshire Council,http://statistics.data.gov.uk/id/local-authority/00FC),Chief Executive,Director Of Finance,Facilities Management,Rents,Service Charge,GC102,5/17/2018,517217,1100,REVENUE,THE GRIMSBY INSTITUTE OF FURTHER,102742
North East Lincolnshire Council,http://statistics.data.gov.uk/id/local-authority/00FC),Chief Executive,Director Of Finance,Facilities Management,Rents,Service Charge,GC102,5/1/2018,515359,1100,REVENUE,THE GRIMSBY INSTITUTE OF FURTHER,102742
North East Lincolnshire Council,http://statistics.data.gov.uk/id/local-authority/00FC),Chief Executive,Director Of Finance,Commercial Estate,Cleaning And Domestic Supplies,Refuse Collection,GH104,5/1/2018,515307,310,REVENUE,BRIANPLANT (HUMBERSIDE) LTD,100583
North East Lincolnshire Council,http://statistics.data.gov.uk/id/local-authority/00FC),Chief Executive,Director Of Finance,Commercial Estate,Cleaning And Domestic Supplies,Refuse Collection,GH104,5/31/2018,519627,310,REVENUE,BRIANPLANT (HUMBERSIDE) LTD,100583
North East Lincolnshire Council,http://statistics.data.gov.uk/id/local-authority/00FC),Chief Executive,Director Of Finance,Commercial Estate,Energy Costs,Electricity,GB102,5/1/2018,515052,330,REVENUE,NPOWER,101368
North East Lincolnshire Council,http://statistics.data.gov.uk/id/local-authority/00FC),Chief Executive,Director Of Finance,Commercial Estate,Cleaning And Domestic Supplies,Cleaning - Consumables,GH103,5/15/2018,517212,351.35,REVENUE,PETER HOGARTH & SONS LTD,100815
North East Lincolnshire Council,http://statistics.data.gov.uk/id/local-authority/00FC),Chief Executive,Director Of Finance,Commercial Estate,Miscellaneous Expenses,Legal Fees - General,LL103,5/31/2018,519607,5400,REVENUE,11 KBW LTD,135795
North East Lincolnshire Council,http://statistics.data.gov.uk/id/local-authority/00FC),Chief Executive,Director Of Finance,Commercial Estate,Rep Alterations Maint Building,Buildings - Repairs And Maint,GA102,5/29/2018,518732,1244,REVENUE,HAITHS HEATING LTD,101342
North East Lincolnshire Council,http://statistics.data.gov.uk/id/local-authority/00FC),Chief Executive,Director Of Finance,Bus Support & Customer Serv,Equip / Furniture / Materials,Goods For Resale,LA123,5/8/2018,516104,1479.25,REVENUE,NORTHGATE PUBLIC SERVICES (UK) LTD,101841
North East Lincolnshire Council,http://statistics.data.gov.uk/id/local-authority/00FC),Chief Executive,Director Of Finance,Bus Support & Customer Serv,Private Contractors,External Security Services,PH103,5/15/2018,516748,487.97,REVENUE,G4S CASH SERVICES (UK) LIMITED,100952
North East Lincolnshire Council,http://statistics.data.gov.uk/id/local-authority/00FC),Chief Executive,Director Of Finance,Bus Support & Customer Serv,Communications And Computing,Postage,LF111,5/3/2018,515851,1007.48,REVENUE,WHISTL UK LTD,135925
North East Lincolnshire Council,http://statistics.data.gov.uk/id/local-authority/00FC),Chief Executive,Director Of Finance,Bus Support & Customer Serv,Communications And Computing,Postage,LF111,5/15/2018,516940,1026.69,REVENUE,WHISTL UK LTD,135925
North East Lincolnshire Council,http://statistics.data.gov.uk/id/local-authority/00FC),Chief Executive,Director Of Finance,Bus Support & Customer Serv,Communications And Computing,Postage,LF111,5/15/2018,516926,314.27,REVENUE,WHISTL UK LTD,135925
North East Lincolnshire Council,http://statistics.data.gov.uk/id/local-authority/00FC),Chief Executive,Director Of Finance,Bus Support & Customer Serv,Communications And Computing,Postage,LF111,5/17/2018,517568,856.85,REVENUE,WHISTL UK LTD,135925
North East Lincolnshire Council,http://statistics.data.gov.uk/id/local-authority/00FC),Chief Executive,Director Of Finance,Bus Support & Customer Serv,Communications And Computing,Postage,LF111,5/17/2018,517550,309.76,REVENUE,WHISTL UK LTD,135925
North East Lincolnshire Council,http://statistics.data.gov.uk/id/local-authority/00FC),Chief Executive,Director Of Finance,Bus Support & Customer Serv,Communications And Computing,Postage,LF111,5/29/2018,519023,375.83,REVENUE,WHISTL UK LTD,135925
North East Lincolnshire Council,http://statistics.data.gov.uk/id/local-authority/00FC),Chief Executive,Director Of Finance,Bus Support & Customer Serv,Communications And Computing,Postage,LF111,5/29/2018,519057,1254.82,REVENUE,WHISTL UK LTD,135925
North East Lincolnshire Council,http://statistics.data.gov.uk/id/local-authority/00FC),Chief Executive,Director Of Finance,Bus Support & Customer Serv,Communications And Computing,Postage,LF111,5/15/2018,517109,295.33,REVENUE,ROYAL MAIL GROUP PLC,101082
North East Lincolnshire Council,http://statistics.data.gov.uk/id/local-authority/00FC),Chief Executive,Director Of Finance,Bus Support & Customer Serv,Communications And Computing,Postage,LF111,5/29/2018,519071,317.75,REVENUE,ROYAL MAIL GROUP PLC,101082
North East Lincolnshire Council,http://statistics.data.gov.uk/id/local-authority/00FC),Chief Executive,Director Of Finance,Bus Support & Customer Serv,Communications And Computing,Postage,LF111,5/10/2018,516312,655.18,REVENUE,ROYAL MAIL GROUP PLC,101082
North East Lincolnshire Council,http://statistics.data.gov.uk/id/local-authority/00FC),Chief Executive,Director Of Finance,Bus Support & Customer Serv,Miscellaneous Expenses,Other Expenses General,LL119,5/22/2018,517848,295,REVENUE,ENGIE SERVICES LTD,133267
North East Lincolnshire Council,http://statistics.data.gov.uk/id/local-authority/00FC),Chief Executive,Director Of Finance,Bus Support & Customer Serv,Miscellaneous Expenses,Other Expenses General,LL119,5/22/2018,517850,869.4,REVENUE,ENGIE SERVICES LTD,133267
North East Lincolnshire Council,http://statistics.data.gov.uk/id/local-authority/00FC),Chief Executive,Director Of Economy & Growth,Beach Safety,Clothes Uniforms And Laundry,Uniforms,LC102,5/24/2018,517842,270,REVENUE,SIGN OF THE TIMES,100575
North East Lincolnshire Council,http://statistics.data.gov.uk/id/local-authority/00FC),Chief Executive,Director Of Economy & Growth,Beach Safety,Rep Alterations Maint Building,Buildings - Repairs And Maint,GA102,5/8/2018,515455,294,REVENUE,J MELTON LTD,100636
North East Lincolnshire Council,http://statistics.data.gov.uk/id/local-authority/00FC),Chief Executive,Director Of Economy & Growth,Beach Safety,Rep Alterations Maint Building,Buildings - Repairs And Maint,GA102,5/8/2018,515455,4869,REVENUE,J MELTON LTD,100636
North East Lincolnshire Council,http://statistics.data.gov.uk/id/local-authority/00FC),Chief Executive,Director Of Economy & Growth,Beach Safety,Clothes Uniforms And Laundry,Uniforms,LC102,5/15/2018,516327,552.55,REVENUE,SIGN OF THE TIMES,100575
North East Lincolnshire Council,http://statistics.data.gov.uk/id/local-authority/00FC),Chief Executive,Director Of Economy & Growth,Discovery Centre,Equip / Furniture / Materials,Goods For Resale,LA123,5/15/2018,516928,330.12,REVENUE,GAINSBOROUGH GIFTWARE LTD,105432
North East Lincolnshire Council,http://statistics.data.gov.uk/id/local-authority/00FC),Chief Executive,Director Of Economy & Growth,Discovery Centre,Equip / Furniture / Materials,Goods For Resale,LA123,5/24/2018,518563,277.2,REVENUE,KEYCRAFT,106556
North East Lincolnshire Council,http://statistics.data.gov.uk/id/local-authority/00FC),Chief Executive,Director Of Economy & Growth,Discovery Centre,Private Contractors,Third Party Prov - Private,PH101,5/8/2018,516284,1500,REVENUE,EAST RIDING OF YORKSHIRE,100377
North East Lincolnshire Council,http://statistics.data.gov.uk/id/local-authority/00FC),Chief Executive,Director Of Economy & Growth,Discovery Centre,Equip / Furniture / Materials,Equipment - Hire,LA102,5/24/2018,518434,300,REVENUE,SYLVESTER-KEAL LTD,100593
North East Lincolnshire Council,http://statistics.data.gov.uk/id/local-authority/00FC),Chief Executive,Director Of Economy & Growth,Discovery Centre,Equip / Furniture / Materials,Goods For Resale,LA123,5/24/2018,518129,379.9,REVENUE,R W STOKES & SONS LTD,123706
North East Lincolnshire Council,http://statistics.data.gov.uk/id/local-authority/00FC),Chief Executive,Director Of Economy & Growth,Discovery Centre,Equip / Furniture / Materials,Goods For Resale,LA123,5/24/2018,518130,289,REVENUE,R W STOKES & SONS LTD,123706
North East Lincolnshire Council,http://statistics.data.gov.uk/id/local-authority/00FC),Chief Executive,Director Of Economy & Growth,Discovery Centre,Equip / Furniture / Materials,Goods For Resale,LA123,5/3/2018,515465,255.52,REVENUE,HOLDSWORTH LTD,121021
North East Lincolnshire Council,http://statistics.data.gov.uk/id/local-authority/00FC),Chief Executive,Director Of Economy & Growth,Discovery Centre,Equip / Furniture / Materials,Goods For Resale,LA123,5/3/2018,515415,374.82,REVENUE,EDEN FARM HULLEYS,133466
North East Lincolnshire Council,http://statistics.data.gov.uk/id/local-authority/00FC),Chief Executive,Director Of Economy & Growth,Discovery Centre,Equip / Furniture / Materials,Goods For Resale,LA123,5/24/2018,518148,342.45,REVENUE,EDEN FARM HULLEYS,133466
North East Lincolnshire Council,http://statistics.data.gov.uk/id/local-authority/00FC),Chief Executive,Director Of Economy & Growth,Discovery Centre,Equip / Furniture / Materials,Goods For Resale,LA123,5/24/2018,518149,305.84,REVENUE,EDEN FARM HULLEYS,133466
North East Lincolnshire Council,http://statistics.data.gov.uk/id/local-authority/00FC),Chief Executive,Director Of Economy & Growth,Discovery Centre,Equip / Furniture / Materials,Goods For Resale,LA123,5/15/2018,516671,379,REVENUE,TURNER BROS LTD,112906
North East Lincolnshire Council,http://statistics.data.gov.uk/id/local-authority/00FC),Chief Executive,Director Of Economy & Growth,Events,Water Services,Water Rebates,GE102,5/24/2018,518179,1865,REVENUE,ETON-LINCS LIMITED,101510
North East Lincolnshire Council,http://statistics.data.gov.uk/id/local-authority/00FC),Chief Executive,Director Of Economy & Growth,Events,Cleaning And Domestic Supplies,Cleaning - Services,GH102,5/1/2018,515366,1134,REVENUE,KINGDOM SERVICES GROUP LTD,138536
North East Lincolnshire Council,http://statistics.data.gov.uk/id/local-authority/00FC),Chief Executive,Director Of Economy & Growth,Marketing And Promotion,Equip / Furniture / Materials,Promotions,LA124,5/15/2018,516955,900,REVENUE,PURPLE SWIRL,135176
North East Lincolnshire Council,http://statistics.data.gov.uk/id/local-authority/00FC),Chief Executive,Director Of Economy & Growth,Marketing And Promotion,Equip / Furniture / Materials,Promotions,LA124,5/15/2018,516954,900,REVENUE,PURPLE SWIRL,135176
North East Lincolnshire Council,http://statistics.data.gov.uk/id/local-authority/00FC),Chief Executive,Director Of Economy & Growth,Museums & N F Heritage Centre,Equip / Furniture / Materials,Equipment - Purchase,LA101,5/1/2018,515370,435,REVENUE,KINGDOM SERVICES GROUP LTD,138536
North East Lincolnshire Council,http://statistics.data.gov.uk/id/local-authority/00FC),Chief Executive,Director Of Economy & Growth,Tourist Information Centre,Communications And Computing,Computer H/Ware - Purchases,LF105,5/22/2018,517800,410.11,REVENUE,INSIGHT DIRECT (UK) LTD,101011
North East Lincolnshire Council,http://statistics.data.gov.uk/id/local-authority/00FC),Chief Executive,Director Of Economy & Growth,Tourist Information Centre,Private Contractors,Third Party Prov - Private,PH101,5/3/2018,516045,757.4,REVENUE,NATIONAL EXPRESS LTD,100835
North East Lincolnshire Council,http://statistics.data.gov.uk/id/local-authority/00FC),Chief Executive,Director Of Economy & Growth,Community Investment Team,Private Contractors,Third Party Prov - Private,PH101,5/3/2018,515866,336,REVENUE,BIKE FIX,136836
North East Lincolnshire Council,http://statistics.data.gov.uk/id/local-authority/00FC),Chief Executive,Director Of Economy & Growth,Community Investment Team,Other Agencies,Grants Pd Over To Third Party,PJ138,5/1/2018,515619,-3482.82,REVENUE,ELTHERINGTON GROUP LTD,127665
North East Lincolnshire Council,http://statistics.data.gov.uk/id/local-authority/00FC),Chief Executive,Director Of Economy & Growth,Community Investment Team,Other Agencies,Grants Pd Over To Third Party,PJ138,5/3/2018,515434,34821.82,REVENUE,ELTHERINGTON GROUP LTD,127665
North East Lincolnshire Council,http://statistics.data.gov.uk/id/local-authority/00FC),Chief Executive,Director Of Economy & Growth,Community Investment Team,Other Agencies,Grants Pd Over To Third Party,PJ138,5/24/2018,518511,1201.68,REVENUE,TRUCK LINKS LTD,113402
North East Lincolnshire Council,http://statistics.data.gov.uk/id/local-authority/00FC),Chief Executive,Director Of Economy & Growth,Community Investment Team,Other Agencies,Grants Pd Over To Third Party,PJ138,5/10/2018,516713,13286,REVENUE,ALPINE FINE FOODS LTD,137167
North East Lincolnshire Council,http://statistics.data.gov.uk/id/local-authority/00FC),Chief Executive,Director Of Economy & Growth,Community Investment Team,Other Agencies,Grants Pd Over To Third Party,PJ138,5/31/2018,519668,13752.95,REVENUE,ALPINE FINE FOODS LTD,137167
North East Lincolnshire Council,http://statistics.data.gov.uk/id/local-authority/00FC),Chief Executive,Director Of Economy & Growth,Community Investment Team,Other Agencies,Grants Pd Over To Third Party,PJ138,5/29/2018,518726,22883.45,REVENUE,INTEGRA BUILDINGS LTD,137168
North East Lincolnshire Council,http://statistics.data.gov.uk/id/local-authority/00FC),Chief Executive,Director Of Economy & Growth,Community Investment Team,Other Agencies,Grants Pd Over To Third Party,PJ138,5/3/2018,516053,1625.25,REVENUE,LAKELAND ORTHOTICS LTD,139291
North East Lincolnshire Council,http://statistics.data.gov.uk/id/local-authority/00FC),Chief Executive,Director Of Economy & Growth,Community Investment Team,Other Agencies,Grants Pd Over To Third Party,PJ138,5/10/2018,516626,11155.24,REVENUE,CARS OF GRIMSBY LTD,134596
North East Lincolnshire Council,http://statistics.data.gov.uk/id/local-authority/00FC),Chief Executive,Director Of Economy & Growth,Community Investment Team,Other Agencies,Grants Pd Over To Third Party,PJ138,5/3/2018,516052,16307.16,REVENUE,SCRATCH MEALS LTD,134927
North East Lincolnshire Council,http://statistics.data.gov.uk/id/local-authority/00FC),Chief Executive,Director Of Economy & Growth,Community Investment Team,Other Agencies,Grants Pd Over To Third Party,PJ138,5/10/2018,516357,781.19,REVENUE,BRITANNIA FREIGHT SERVICES LIMITED,139473
North East Lincolnshire Council,http://statistics.data.gov.uk/id/local-authority/00FC),Chief Executive,Director Of Economy & Growth,Community Investment Team,Other Agencies,Grants Pd Over To Third Party,PJ138,5/15/2018,517020,12514.39,REVENUE,CENTRAL DOORS LIMITED,139537
North East Lincolnshire Council,http://statistics.data.gov.uk/id/local-authority/00FC),Chief Executive,Director Of Economy & Growth,Community Investment Team,Other Agencies,Grants Pd Over To Third Party,PJ138,5/10/2018,516449,3312.05,REVENUE,OCTOVISION MEDIA LIMITED,139816
North East Lincolnshire Council,http://statistics.data.gov.uk/id/local-authority/00FC),Chief Executive,Director Of Economy & Growth,Community Investment Team,Other Agencies,Grants Pd Over To Third Party,PJ138,5/22/2018,517633,855.63,REVENUE,OCTOVISION MEDIA LIMITED,139816
North East Lincolnshire Council,http://statistics.data.gov.uk/id/local-authority/00FC),Chief Executive,Director Of Economy & Growth,Community Investment Team,Other Agencies,Grants Pd Over To Third Party,PJ138,5/22/2018,518049,20020.69,REVENUE,QUICKBOX SOLUTIONS LTD,139909
North East Lincolnshire Council,http://statistics.data.gov.uk/id/local-authority/00FC),Chief Executive,Director Of Economy & Growth,Community Investment Team,Private Contractors,Third Party Prov - Private,PH101,5/31/2018,519592,2700,REVENUE,SMAILES GOLDIE,127185
North East Lincolnshire Council,http://statistics.data.gov.uk/id/local-authority/00FC),Chief Executive,Director Of Economy & Growth,Retained Function,Direct Transport Costs,Hired Transport - Employees,JA101,5/8/2018,516083,250,REVENUE,SHERWOOD TRAVEL,100868
North East Lincolnshire Council,http://statistics.data.gov.uk/id/local-authority/00FC),Chief Executive,Director Of Economy & Growth,Retained Function,Car Allowances,Travel - Employees,JF101,5/3/2018,515897,290,REVENUE,CLICK TRAVEL,127476
North East Lincolnshire Council,http://statistics.data.gov.uk/id/local-authority/00FC),Chief Executive,Director Of Economy & Growth,Retained Function,Car Allowances,Travel - Employees,JF101,5/3/2018,515898,255.2,REVENUE,CLICK TRAVEL,127476
North East Lincolnshire Council,http://statistics.data.gov.uk/id/local-authority/00FC),Chief Executive,Director Of Economy & Growth,Retained Function,Communications And Computing,Computer S/Ware - Licences,LF103,5/29/2018,519177,2050,REVENUE,BLUESTORM DESIGN & MARKETING LTD,125864
North East Lincolnshire Council,http://statistics.data.gov.uk/id/local-authority/00FC),Chief Executive,Director Of Economy & Growth,Retained Function,Expenses,Course/Conf Accom - Employees,LH102,5/3/2018,515987,491.64,REVENUE,CLICK TRAVEL,127476
North East Lincolnshire Council,http://statistics.data.gov.uk/id/local-authority/00FC),Chief Executive,Director Of Economy & Growth,Retained Function,Grants And Subscriptions,Subscriptions,LJ101,5/29/2018,519051,500,REVENUE,E-FACTOR (NEL LTD),122549
North East Lincolnshire Council,http://statistics.data.gov.uk/id/local-authority/00FC),Chief Executive,Director Of Economy & Growth,Retained Function,Miscellaneous Expenses,Other Expenses General,LL119,5/3/2018,515003,550,REVENUE,HCF CATCH LTD,102830
North East Lincolnshire Council,http://statistics.data.gov.uk/id/local-authority/00FC),Chief Executive,Director Of Economy & Growth,Retained Function,Private Contractors,Third Party Prov - Private,PH101,5/17/2018,517541,2663.51,REVENUE,HYAS ASSOCIATES LTD,138801
North East Lincolnshire Council,http://statistics.data.gov.uk/id/local-authority/00FC),Chief Executive,Director Of Economy & Growth,Retained Function,Private Contractors,Third Party Prov - Private,PH101,5/22/2018,517515,10580,REVENUE,CUSHMAN & WAKEFIELD DEBENHAM TIE LEUNG LTD,134947
North East Lincolnshire Council,http://statistics.data.gov.uk/id/local-authority/00FC),Chief Executive,Director Of Economy & Growth,Retained Function,Other Agencies,Grants Pd Over To Third Party,PJ138,5/29/2018,519078,12000,REVENUE,ARMED FORCES ORGANISING COMMITTEE,127852
North East Lincolnshire Council,http://statistics.data.gov.uk/id/local-authority/00FC),Chief Executive,Director Of Economy & Growth,Retained Function,Miscellaneous Expenses,Other Expenses General,LL119,5/15/2018,517252,4945.86,REVENUE,HUMBERSIDE MATERIALS LABORATORY LTD,122103
North East Lincolnshire Council,http://statistics.data.gov.uk/id/local-authority/00FC),Chief Executive,Director Of Economy & Growth,Retained Function,Miscellaneous Expenses,Other Expenses General,LL119,5/22/2018,517928,45063,REVENUE,ARCADIS UK LTD,136258
North East Lincolnshire Council,http://statistics.data.gov.uk/id/local-authority/00FC),Chief Executive,Director Of Economy & Growth,Retained Function,Miscellaneous Expenses,Other Expenses General,LL119,5/22/2018,517929,1350,REVENUE,ARCADIS UK LTD,136258
North East Lincolnshire Council,http://statistics.data.gov.uk/id/local-authority/00FC),Chief Executive,Director Of Economy & Growth,In Scope Contract,Private Contractors,Contract Payments,PH105,5/17/2018,517149,91194.33,REVENUE,ENGIE SERVICES LTD,133267
North East Lincolnshire Council,http://statistics.data.gov.uk/id/local-authority/00FC),Chief Executive,Director Of Economy & Growth,In Scope Contract,Private Contractors,Contract Payments,PH105,5/17/2018,517149,302612.06,REVENUE,ENGIE SERVICES LTD,133267
North East Lincolnshire Council,http://statistics.data.gov.uk/id/local-authority/00FC),Chief Executive,Director Of Economy & Growth,In Scope Contract,Private Contractors,Contract Payments,PH105,5/17/2018,517149,14292.9,REVENUE,ENGIE SERVICES LTD,133267
North East Lincolnshire Council,http://statistics.data.gov.uk/id/local-authority/00FC),Chief Executive,Director Of Economy & Growth,In Scope Contract,Private Contractors,Contract Payments,PH105,5/17/2018,517149,481855.2,REVENUE,ENGIE SERVICES LTD,133267
North East Lincolnshire Council,http://statistics.data.gov.uk/id/local-authority/00FC),Chief Executive,Director Of Economy & Growth,In Scope Contract,Private Contractors,Contract Payments,PH105,5/17/2018,517149,5586.38,REVENUE,ENGIE SERVICES LTD,133267
North East Lincolnshire Council,http://statistics.data.gov.uk/id/local-authority/00FC),Chief Executive,Director Of Economy & Growth,In Scope Contract,Private Contractors,Contract Payments,PH105,5/17/2018,517149,73327.11,REVENUE,ENGIE SERVICES LTD,133267
North East Lincolnshire Council,http://statistics.data.gov.uk/id/local-authority/00FC),Chief Executive,Director Of Economy & Growth,In Scope Contract,Private Contractors,Contract Payments,PH105,5/17/2018,517149,36096.39,REVENUE,ENGIE SERVICES LTD,133267
North East Lincolnshire Council,http://statistics.data.gov.uk/id/local-authority/00FC),Chief Executive,Director Of Economy & Growth,Planning,Private Contractors,Third Party Prov - Private,PH101,5/29/2018,519182,1825,REVENUE,ENGIE SERVICES LTD,133267
North East Lincolnshire Council,http://statistics.data.gov.uk/id/local-authority/00FC),Chief Executive,Director Of Economy & Growth,Drainage & Coastal Defence,Private Contractors,Third Party Prov - Private,PH101,5/3/2018,515876,28749.9,REVENUE,INTELLIGENT DRAINAGE SOLUTIONS LTD,139567
North East Lincolnshire Council,http://statistics.data.gov.uk/id/local-authority/00FC),Chief Executive,Director Of Economy & Growth,Drainage & Coastal Defence,Private Contractors,Third Party Prov - Private,PH101,5/31/2018,519598,4100,REVENUE,INTELLIGENT DRAINAGE SOLUTIONS LTD,139567
North East Lincolnshire Council,http://statistics.data.gov.uk/id/local-authority/00FC),Chief Executive,Director Of Economy & Growth,Highways Dso,Dlo Holding,Depot Fuel Holding Account,LM101,5/15/2018,517256,1313.25,REVENUE,OIL NRG,138198
North East Lincolnshire Council,http://statistics.data.gov.uk/id/local-authority/00FC),Chief Executive,Director Of Economy & Growth,Highways Dso,Dlo Holding,Depot Fuel Holding Account,LM101,5/24/2018,518102,17995.8,REVENUE,HARVEST ENERGY LTD,102544
North East Lincolnshire Council,http://statistics.data.gov.uk/id/local-authority/00FC),Chief Executive,Director Of Economy & Growth,Highways Dso,Dlo Holding,Depot Fuel Holding Account,LM101,5/24/2018,518100,1416.25,REVENUE,OIL NRG,138198
North East Lincolnshire Council,http://statistics.data.gov.uk/id/local-authority/00FC),Chief Executive,Director Of Economy & Growth,Highways Dso,Dlo Holding,Depot Fuel Holding Account,LM101,5/31/2018,519591,18745.39,REVENUE,OIL NRG,138198
North East Lincolnshire Council,http://statistics.data.gov.uk/id/local-authority/00FC),Chief Executive,Director Of Economy & Growth,Street Lighting,Private Contractors,Third Party Prov - Private,PH101,5/17/2018,517122,281.94,REVENUE,J MCCANN & CO LTD,100841
North East Lincolnshire Council,http://statistics.data.gov.uk/id/local-authority/00FC),Chief Executive,Director Of Economy & Growth,Street Lighting,Rep Alterations Maint Building,Street Lighting - Energy,GA110,5/29/2018,519085,2930.71,REVENUE,NPOWER LIMITED,101414
North East Lincolnshire Council,http://statistics.data.gov.uk/id/local-authority/00FC),Chief Executive,Director Of Economy & Growth,Street Lighting,Rep Alterations Maint Building,Street Lighting - Energy,GA110,5/1/2018,515262,-507.27,REVENUE,NPOWER LIMITED,101414
North East Lincolnshire Council,http://statistics.data.gov.uk/id/local-authority/00FC),Chief Executive,Director Of Economy & Growth,Street Lighting,Rep Alterations Maint Building,Street Lighting - Energy,GA110,5/29/2018,519085,8425.79,REVENUE,NPOWER LIMITED,101414
North East Lincolnshire Council,http://statistics.data.gov.uk/id/local-authority/00FC),Chief Executive,Director Of Economy & Growth,Street Lighting,Rep Alterations Maint Building,Street Lighting - Energy,GA110,5/29/2018,519073,458.24,REVENUE,NPOWER LIMITED,101414
North East Lincolnshire Council,http://statistics.data.gov.uk/id/local-authority/00FC),Chief Executive,Director Of Economy & Growth,Street Lighting,Rep Alterations Maint Building,Street Lighting - Energy,GA110,5/1/2018,515276,465.26,REVENUE,NPOWER LIMITED,101414
North East Lincolnshire Council,http://statistics.data.gov.uk/id/local-authority/00FC),Chief Executive,Director Of Economy & Growth,Street Lighting,Rep Alterations Maint Building,Street Lighting-General Maint,GA111,5/17/2018,517122,344.66,REVENUE,J MCCANN & CO LTD,100841
North East Lincolnshire Council,http://statistics.data.gov.uk/id/local-authority/00FC),Chief Executive,Director Of Economy & Growth,Street Lighting,Rep Alterations Maint Building,Traffic Signs / Signals,GA113,5/17/2018,517122,328.49,REVENUE,J MCCANN & CO LTD,100841
North East Lincolnshire Council,http://statistics.data.gov.uk/id/local-authority/00FC),Chief Executive,Director Of Economy & Growth,Street Lighting,Private Contractors,Third Party Prov - Private,PH101,5/17/2018,517122,2255.62,REVENUE,J MCCANN & CO LTD,100841
North East Lincolnshire Council,http://statistics.data.gov.uk/id/local-authority/00FC),Chief Executive,Director Of Economy & Growth,Street Lighting,Rep Alterations Maint Building,Street Lighting - Energy,GA110,5/29/2018,519085,25277.37,REVENUE,NPOWER LIMITED,101414
North East Lincolnshire Council,http://statistics.data.gov.uk/id/local-authority/00FC),Chief Executive,Director Of Economy & Growth,Street Lighting,Rep Alterations Maint Building,Street Lighting - Energy,GA110,5/29/2018,519073,1374.71,REVENUE,NPOWER LIMITED,101414
North East Lincolnshire Council,http://statistics.data.gov.uk/id/local-authority/00FC),Chief Executive,Director Of Economy & Growth,Street Lighting,Rep Alterations Maint Building,Street Lighting - Energy,GA110,5/1/2018,515276,1395.77,REVENUE,NPOWER LIMITED,101414
North East Lincolnshire Council,http://statistics.data.gov.uk/id/local-authority/00FC),Chief Executive,Director Of Economy & Growth,Street Lighting,Rep Alterations Maint Building,Street Lighting - Energy,GA110,5/29/2018,519011,1460.64,REVENUE,NPOWER LIMITED,101414
North East Lincolnshire Council,http://statistics.data.gov.uk/id/local-authority/00FC),Chief Executive,Director Of Economy & Growth,Street Lighting,Rep Alterations Maint Building,Street Lighting - Energy,GA110,5/1/2018,515260,-1370.46,REVENUE,NPOWER LIMITED,101414
North East Lincolnshire Council,http://statistics.data.gov.uk/id/local-authority/00FC),Chief Executive,Director Of Economy & Growth,Street Lighting,Rep Alterations Maint Building,Street Lighting - Energy,GA110,5/1/2018,515271,1370.29,REVENUE,NPOWER LIMITED,101414
North East Lincolnshire Council,http://statistics.data.gov.uk/id/local-authority/00FC),Chief Executive,Director Of Economy & Growth,Street Lighting,Rep Alterations Maint Building,Street Lighting - Energy,GA110,5/1/2018,515262,-1521.8,REVENUE,NPOWER LIMITED,101414
North East Lincolnshire Council,http://statistics.data.gov.uk/id/local-authority/00FC),Chief Executive,Director Of Economy & Growth,Street Lighting,Rep Alterations Maint Building,Street Lighting-General Maint,GA111,5/17/2018,517122,4025.26,REVENUE,J MCCANN & CO LTD,100841
North East Lincolnshire Council,http://statistics.data.gov.uk/id/local-authority/00FC),Chief Executive,Director Of Economy & Growth,Street Lighting,Rep Alterations Maint Building,Street Lighting-General Maint,GA111,5/17/2018,517122,671.74,REVENUE,J MCCANN & CO LTD,100841
North East Lincolnshire Council,http://statistics.data.gov.uk/id/local-authority/00FC),Chief Executive,Director Of Economy & Growth,Street Lighting,Rep Alterations Maint Building,Street Light-Irrecoverable Dam,GA112,5/17/2018,517122,428.3,REVENUE,J MCCANN & CO LTD,100841
North East Lincolnshire Council,http://statistics.data.gov.uk/id/local-authority/00FC),Chief Executive,Director Of Economy & Growth,Street Lighting,Rep Alterations Maint Building,Traffic Mgmt-Irrecoverable Dam,GA115,5/17/2018,517122,365.59,REVENUE,J MCCANN & CO LTD,100841
North East Lincolnshire Council,http://statistics.data.gov.uk/id/local-authority/00FC),Chief Executive,Director Of Economy & Growth,Street Lighting,Rep Alterations Maint Building,Traffic Signs / Signals,GA113,5/17/2018,517122,358.49,REVENUE,J MCCANN & CO LTD,100841
North East Lincolnshire Council,http://statistics.data.gov.uk/id/local-authority/00FC),Chief Executive,Director Of Economy & Growth,Street Lighting,Rep Alterations Maint Building,Traffic Signs / Signals,GA113,5/17/2018,517122,755.82,REVENUE,J MCCANN & CO LTD,100841
North East Lincolnshire Council,http://statistics.data.gov.uk/id/local-authority/00FC),Chief Executive,Director Of Economy & Growth,Transport Policy,Private Contractors,Concessionary Fares,PH104,5/8/2018,516220,REDACTED COMMERCIALLY SENSITIVE,REVENUE,STAGECOACH SERVICES,101404
North East Lincolnshire Council,http://statistics.data.gov.uk/id/local-authority/00FC),Chief Executive,Director Of Economy & Growth,Transport Policy,Private Contractors,Concessionary Fares,PH104,5/31/2018,519037,REDACTED COMMERCIALLY SENSITIVE,REVENUE,GRAYSCROFT BUS SERVICES LIMITED,101786
North East Lincolnshire Council,http://statistics.data.gov.uk/id/local-authority/00FC),Chief Executive,Director Of Economy & Growth,Transport Policy,Private Contractors,Concessionary Fares,PH104,5/8/2018,516088,815,REVENUE,ESP SYSTEX LTD,102062
North East Lincolnshire Council,http://statistics.data.gov.uk/id/local-authority/00FC),Chief Executive,Director Of Economy & Growth,Transport Policy,Private Contractors,Concessionary Fares,PH104,5/22/2018,517510,4922,REVENUE,ESP SYSTEX LTD,102062
North East Lincolnshire Council,http://statistics.data.gov.uk/id/local-authority/00FC),Chief Executive,Director Of Economy & Growth,Transport Policy,Private Contractors,Concessionary Fares,PH104,5/22/2018,517511,815,REVENUE,ESP SYSTEX LTD,102062
North East Lincolnshire Council,http://statistics.data.gov.uk/id/local-authority/00FC),Chief Executive,Director Of Economy & Growth,Transport Policy,Private Contractors,Subsidies,PH102,5/8/2018,516249,REDACTED COMMERCIALLY SENSITIVE,REVENUE,STAGECOACH SERVICES,101404
North East Lincolnshire Council,http://statistics.data.gov.uk/id/local-authority/00FC),Chief Executive,Director Of Economy & Growth,Transport Policy,Private Contractors,Contract Payments,PH105,5/22/2018,518221,20307.53,REVENUE,GO PLANT FLEET SERVICES,101159
North East Lincolnshire Council,http://statistics.data.gov.uk/id/local-authority/00FC),Chief Executive,Director Of Economy & Growth,Transport Policy,Private Contractors,Contract Payments,PH105,5/29/2018,519061,20297.63,REVENUE,GO PLANT FLEET SERVICES,101159
North East Lincolnshire Council,http://statistics.data.gov.uk/id/local-authority/00FC),Chief Executive,Director Of Economy & Growth,Transport Policy,Miscellaneous Expenses,Other Expenses General,LL119,5/31/2018,519293,15493,REVENUE,ENGIE SERVICES LTD,133267
North East Lincolnshire Council,http://statistics.data.gov.uk/id/local-authority/00FC),Chief Executive,Director Of Economy & Growth,Transport Policy,Consultancy,Consultancy,PL101,5/31/2018,519294,20140.29,REVENUE,ENGIE SERVICES LTD,133267
North East Lincolnshire Council,http://statistics.data.gov.uk/id/local-authority/00FC),Chief Executive,Director Of Economy & Growth,Transport Policy,Consultancy,Consultancy,PL101,5/31/2018,519292,25976.52,REVENUE,ENGIE SERVICES LTD,133267
North East Lincolnshire Council,http://statistics.data.gov.uk/id/local-authority/00FC),Chief Executive,Director Of Economy & Growth,Transport Policy,Consultancy,Consultancy,PL101,5/24/2018,518141,287.95,REVENUE,WALTONS PUBLICATIONS LTD,128186
North East Lincolnshire Council,http://statistics.data.gov.uk/id/local-authority/00FC),Chief Executive,Director Of Economy & Growth,Transport Policy,Consultancy,Consultancy,PL101,5/31/2018,519159,1550,REVENUE,INSIGHT DIRECT (UK) LTD,101011
North East Lincolnshire Council,http://statistics.data.gov.uk/id/local-authority/00FC),Chief Executive,Director Of Economy & Growth,Transport Policy,Consultancy,Consultancy,PL101,5/31/2018,519559,1560,REVENUE,THE CITY OF HULL ENVIRONMENT FORUM,108032
North East Lincolnshire Council,http://statistics.data.gov.uk/id/local-authority/00FC),Chief Executive,Director Of Economy & Growth,Energy Project,Communications And Computing,Computer H/Ware - Purchases,LF105,5/31/2018,519178,1270,REVENUE,EDEN TELECOM LTD,135601
North East Lincolnshire Council,http://statistics.data.gov.uk/id/local-authority/00FC),Chief Executive,Director Of Economy & Growth,Energy Project,Communications And Computing,Computer H/Ware - Purchases,LF105,5/31/2018,519178,349,REVENUE,EDEN TELECOM LTD,135601
North East Lincolnshire Council,http://statistics.data.gov.uk/id/local-authority/00FC),Chief Executive,Shared Services,Accountancy,Print Stationery / Gen Off Exp,Advertising,LD104,5/10/2018,516218,565.08,REVENUE,LOCAL WORLD LIMITED,118774
North East Lincolnshire Council,http://statistics.data.gov.uk/id/local-authority/00FC),Chief Executive,Shared Services,Benefit Payments & Subsidy,Housing Benefit,Rent Allow General,QC101,5/29/2018,594567,669.02,REVENUE,REDACTED PERSONAL INFORMATION,REDACTED PERSONAL INFORMATION
North East Lincolnshire Council,http://statistics.data.gov.uk/id/local-authority/00FC),Chief Executive,Shared Services,Local Taxation & Benefits,Communications And Computing,Computer S/Ware - Maintenance,LF102,5/31/2018,518158,2763.55,REVENUE,NORTHGATE PUBLIC SERVICES (UK) LTD,101841
North East Lincolnshire Council,http://statistics.data.gov.uk/id/local-authority/00FC),Chief Executive,Shared Services,Local Taxation & Benefits,Communications And Computing,Computer S/Ware - Maintenance,LF102,5/29/2018,517965,2436.88,REVENUE,NORTHGATE PUBLIC SERVICES (UK) LTD,101841
North East Lincolnshire Council,http://statistics.data.gov.uk/id/local-authority/00FC),Chief Executive,Shared Services,Local Taxation & Benefits,Communications And Computing,Postage,LF111,5/1/2018,515279,24698.85,REVENUE,CAPITA BUSINESS SERVICES LTD,102314
North East Lincolnshire Council,http://statistics.data.gov.uk/id/local-authority/00FC),Chief Executive,Shared Services,Local Taxation & Benefits,Private Contractors,External Security Services,PH103,5/15/2018,517076,4195.64,REVENUE,ALLPAY LIMITED,112919
North East Lincolnshire Council,http://statistics.data.gov.uk/id/local-authority/00FC),Chief Executive,Shared Services,Local Taxation & Benefits,Miscellaneous Expenses,Debt Recovery Costs,LL111,5/1/2018,515483,286.01,REVENUE,ROSSENDALES LTD,101373
North East Lincolnshire Council,http://statistics.data.gov.uk/id/local-authority/00FC),Chief Executive,Shared Services,Local Taxation & Benefits,Miscellaneous Expenses,Debt Recovery Costs,LL111,5/8/2018,516330,400,REVENUE,WILKIN CHAPMAN LLP,110675
North East Lincolnshire Council,http://statistics.data.gov.uk/id/local-authority/00FC),Chief Executive,Shared Services,Local Taxation & Benefits,Miscellaneous Expenses,Debt Recovery Costs,LL111,5/8/2018,516331,3750.5,REVENUE,WILKIN CHAPMAN LLP,110675
North East Lincolnshire Council,http://statistics.data.gov.uk/id/local-authority/00FC),Chief Executive,Shared Services,Local Taxation & Benefits,Miscellaneous Expenses,Debt Recovery Costs,LL111,5/8/2018,516334,250.5,REVENUE,WILKIN CHAPMAN LLP,110675
North East Lincolnshire Council,http://statistics.data.gov.uk/id/local-authority/00FC),Chief Executive,Shared Services,Local Taxation & Benefits,Miscellaneous Expenses,Debt Recovery Costs,LL111,5/8/2018,516335,250.5,REVENUE,WILKIN CHAPMAN LLP,110675
North East Lincolnshire Council,http://statistics.data.gov.uk/id/local-authority/00FC),Chief Executive,Shared Services,Local Taxation & Benefits,Miscellaneous Expenses,Debt Recovery Costs,LL111,5/8/2018,516336,250.5,REVENUE,WILKIN CHAPMAN LLP,110675
North East Lincolnshire Council,http://statistics.data.gov.uk/id/local-authority/00FC),Chief Executive,Shared Services,Local Taxation & Benefits,Miscellaneous Expenses,Debt Recovery Costs,LL111,5/8/2018,516337,250.5,REVENUE,WILKIN CHAPMAN LLP,110675
North East Lincolnshire Council,http://statistics.data.gov.uk/id/local-authority/00FC),Chief Executive,Shared Services,Local Taxation & Benefits,Miscellaneous Expenses,Debt Recovery Costs,LL111,5/8/2018,516339,250.5,REVENUE,WILKIN CHAPMAN LLP,110675
North East Lincolnshire Council,http://statistics.data.gov.uk/id/local-authority/00FC),Chief Executive,Shared Services,Local Taxation & Benefits,Miscellaneous Expenses,Debt Recovery Costs,LL111,5/8/2018,516340,250.5,REVENUE,WILKIN CHAPMAN LLP,110675
North East Lincolnshire Council,http://statistics.data.gov.uk/id/local-authority/00FC),Chief Executive,Shared Services,Local Taxation & Benefits,Miscellaneous Expenses,Debt Recovery Costs,LL111,5/8/2018,516342,250.5,REVENUE,WILKIN CHAPMAN LLP,110675
North East Lincolnshire Council,http://statistics.data.gov.uk/id/local-authority/00FC),Chief Executive,Shared Services,Local Taxation & Benefits,Miscellaneous Expenses,Debt Recovery Costs,LL111,5/8/2018,516343,250.5,REVENUE,WILKIN CHAPMAN LLP,110675
North East Lincolnshire Council,http://statistics.data.gov.uk/id/local-authority/00FC),Chief Executive,Shared Services,Local Taxation & Benefits,Miscellaneous Expenses,Debt Recovery Costs,LL111,5/8/2018,516344,250.5,REVENUE,WILKIN CHAPMAN LLP,110675
North East Lincolnshire Council,http://statistics.data.gov.uk/id/local-authority/00FC),Chief Executive,Shared Services,Local Taxation & Benefits,Miscellaneous Expenses,Debt Recovery Costs,LL111,5/8/2018,516345,250.5,REVENUE,WILKIN CHAPMAN LLP,110675
North East Lincolnshire Council,http://statistics.data.gov.uk/id/local-authority/00FC),Chief Executive,Shared Services,Local Taxation & Benefits,Miscellaneous Expenses,Debt Recovery Costs,LL111,5/17/2018,517228,2700,REVENUE,EXPERIAN LIMITED,100909
North East Lincolnshire Council,http://statistics.data.gov.uk/id/local-authority/00FC),Chief Executive,Shared Services,Local Taxation & Benefits,Miscellaneous Expenses,Debt Recovery Costs,LL111,5/8/2018,516347,2342,REVENUE,WILKIN CHAPMAN LLP,110675
North East Lincolnshire Council,http://statistics.data.gov.uk/id/local-authority/00FC),Chief Executive,Shared Services,Local Taxation & Benefits,Miscellaneous Expenses,Debt Recovery Costs,LL111,5/22/2018,517666,4659.5,REVENUE,WILKIN CHAPMAN LLP,110675
North East Lincolnshire Council,http://statistics.data.gov.uk/id/local-authority/00FC),Chief Executive,Shared Services,I.T Shared Service,Communications And Computing,Telephones,LF112,5/24/2018,518602,42748.49,REVENUE,VIRGIN MEDIA,107612
North East Lincolnshire Council,http://statistics.data.gov.uk/id/local-authority/00FC),Chief Executive,Shared Services,I.T Shared Service,Communications And Computing,Telephones,LF112,5/24/2018,518602,3196,REVENUE,VIRGIN MEDIA,107612
North East Lincolnshire Council,http://statistics.data.gov.uk/id/local-authority/00FC),Chief Executive,Shared Services,I.T Shared Service,Communications And Computing,Telephones,LF112,5/24/2018,518602,9314.62,REVENUE,VIRGIN MEDIA,107612
North East Lincolnshire Council,http://statistics.data.gov.uk/id/local-authority/00FC),Chief Executive,Shared Services,I.T Shared Service,Communications And Computing,Telephones,LF112,5/31/2018,519635,8629.4,REVENUE,VIRGIN MEDIA,107612
North East Lincolnshire Council,http://statistics.data.gov.uk/id/local-authority/00FC),Chief Executive,Shared Services,I.T Shared Service,Communications And Computing,Telephones,LF112,5/31/2018,519632,8006.81,REVENUE,VIRGIN MEDIA,107612
North East Lincolnshire Council,http://statistics.data.gov.uk/id/local-authority/00FC),Chief Executive,Shared Services,I.T Shared Service,Communications And Computing,Telephones,LF112,5/31/2018,519032,7150,REVENUE,EDEN TELECOM LTD,135601
North East Lincolnshire Council,http://statistics.data.gov.uk/id/local-authority/00FC),Chief Executive,Shared Services,I.T Shared Service,Communications And Computing,Telephones,LF112,5/31/2018,519032,740,REVENUE,EDEN TELECOM LTD,135601
North East Lincolnshire Council,http://statistics.data.gov.uk/id/local-authority/00FC),Chief Executive,Shared Services,I.T Shared Service,Communications And Computing,Computer H/Ware - Maintenance,LF106,5/31/2018,518554,1590,REVENUE,END2END SERVICES LTD,136807
North East Lincolnshire Council,http://statistics.data.gov.uk/id/local-authority/00FC),Chief Executive,Shared Services,I.T Shared Service,Communications And Computing,Computer H/Ware - Maintenance,LF106,5/31/2018,518552,6275,REVENUE,END2END SERVICES LTD,136807
North East Lincolnshire Council,http://statistics.data.gov.uk/id/local-authority/00FC),Chief Executive,Shared Services,I.T Shared Service,Communications And Computing,Computer H/Ware - Purchases,LF105,5/24/2018,518602,2500,REVENUE,VIRGIN MEDIA,107612
North East Lincolnshire Council,http://statistics.data.gov.uk/id/local-authority/00FC),Chief Executive,Shared Services,I.T Shared Service,Communications And Computing,Computer H/Ware - Purchases,LF105,5/24/2018,518602,3972,REVENUE,VIRGIN MEDIA,107612
North East Lincolnshire Council,http://statistics.data.gov.uk/id/local-authority/00FC),Chief Executive,Shared Services,I.T Shared Service,Communications And Computing,Computer H/Ware - Purchases,LF105,5/24/2018,518602,1986,REVENUE,VIRGIN MEDIA,107612
North East Lincolnshire Council,http://statistics.data.gov.uk/id/local-authority/00FC),Chief Executive,Shared Services,I.T Shared Service,Communications And Computing,Computer S/Ware - Maintenance,LF102,5/3/2018,513141,117421.58,REVENUE,CAPITA BUSINESS SERVICES LTD,102314
North East Lincolnshire Council,http://statistics.data.gov.uk/id/local-authority/00FC),Chief Executive,Shared Services,I.T Shared Service,Communications And Computing,Computer S/Ware - Maintenance,LF102,5/3/2018,511748,11325,REVENUE,ASTUN TECHNOLOGY LTD,104929
North East Lincolnshire Council,http://statistics.data.gov.uk/id/local-authority/00FC),Chief Executive,Shared Services,I.T Shared Service,Communications And Computing,Computer S/Ware - Maintenance,LF102,5/29/2018,518441,2250,REVENUE,CLEARSKIES SOFTWARE,106786
North East Lincolnshire Council,http://statistics.data.gov.uk/id/local-authority/00FC),Chief Executive,Shared Services,I.T Shared Service,Communications And Computing,Computer S/Ware - Maintenance,LF102,5/8/2018,515575,7600,REVENUE,LEARNING POOL LIMITED,101834
North East Lincolnshire Council,http://statistics.data.gov.uk/id/local-authority/00FC),Chief Executive,Shared Services,I.T Shared Service,Communications And Computing,Computer S/Ware - Maintenance,LF102,5/8/2018,515575,6650,REVENUE,LEARNING POOL LIMITED,101834
North East Lincolnshire Council,http://statistics.data.gov.uk/id/local-authority/00FC),Chief Executive,Shared Services,I.T Shared Service,Communications And Computing,Computer S/Ware - Maintenance,LF102,5/22/2018,517796,1050,REVENUE,SERVELEC SYNERGY LTD,134371
North East Lincolnshire Council,http://statistics.data.gov.uk/id/local-authority/00FC),Chief Executive,Shared Services,I.T Shared Service,Communications And Computing,Computer S/Ware - Maintenance,LF102,5/22/2018,517796,1050,REVENUE,SERVELEC SYNERGY LTD,134371
North East Lincolnshire Council,http://statistics.data.gov.uk/id/local-authority/00FC),Chief Executive,Shared Services,I.T Shared Service,Communications And Computing,Computer S/Ware - Maintenance,LF102,5/22/2018,517796,840,REVENUE,SERVELEC SYNERGY LTD,134371
North East Lincolnshire Council,http://statistics.data.gov.uk/id/local-authority/00FC),Chief Executive,Shared Services,I.T Shared Service,Communications And Computing,Computer S/Ware - Maintenance,LF102,5/22/2018,517796,1050,REVENUE,SERVELEC SYNERGY LTD,134371
North East Lincolnshire Council,http://statistics.data.gov.uk/id/local-authority/00FC),Chief Executive,Shared Services,I.T Shared Service,Communications And Computing,Computer S/Ware - Maintenance,LF102,5/22/2018,517796,2100,REVENUE,SERVELEC SYNERGY LTD,134371
North East Lincolnshire Council,http://statistics.data.gov.uk/id/local-authority/00FC),Chief Executive,Shared Services,I.T Shared Service,Communications And Computing,Computer S/Ware - Purchases,LF101,5/15/2018,516643,1900,REVENUE,NOWCOMM LTD,136502
North East Lincolnshire Council,http://statistics.data.gov.uk/id/local-authority/00FC),Chief Executive,Shared Services,I.T Shared Service,Grants And Subscriptions,Subscriptions,LJ101,5/31/2018,519600,500,REVENUE,SHEFFIELD CITY COUNCIL,101195
North East Lincolnshire Council,http://statistics.data.gov.uk/id/local-authority/00FC),Chief Executive,Shared Services,I.T Shared Service,Indirect Employee Expenses,Staff Training,EB122,5/3/2018,515397,549,REVENUE,NORTH LINCOLNSHIRE COUNCIL,101186
North East Lincolnshire Council,http://statistics.data.gov.uk/id/local-authority/00FC),Chief Executive,Shared Services,I.T Shared Service,Communications And Computing,Computer H/Ware - Purchases,LF105,5/31/2018,519633,315,REVENUE,VIRGIN MEDIA,107612
North East Lincolnshire Council,http://statistics.data.gov.uk/id/local-authority/00FC),Chief Executive,Shared Services,I.T Shared Service,Communications And Computing,Computer H/Ware - Purchases,LF105,5/31/2018,519634,315,REVENUE,VIRGIN MEDIA,107612
North East Lincolnshire Council,http://statistics.data.gov.uk/id/local-authority/00FC),Chief Executive,Shared Services,I.T Shared Service,Miscellaneous Expenses,Legal Fees - General,LL103,5/15/2018,517016,350,REVENUE,THOMPSONS SOLICITORS,101854
North East Lincolnshire Council,http://statistics.data.gov.uk/id/local-authority/00FC),Chief Executive,Shared Services,Human Resources,Direct Employee Expenses,Agency Staff,EA105,5/24/2018,518616,14056.39,REVENUE,MATRIX SCM LTD,108117
North East Lincolnshire Council,http://statistics.data.gov.uk/id/local-authority/00FC),Chief Executive,Shared Services,Human Resources,Direct Employee Expenses,Agency Staff,EA105,5/10/2018,516301,14560.09,REVENUE,MATRIX SCM LTD,108117
North East Lincolnshire Council,http://statistics.data.gov.uk/id/local-authority/00FC),Chief Executive,Shared Services,Human Resources,Direct Employee Expenses,Agency Staff,EA105,5/10/2018,516791,13408.9,REVENUE,MATRIX SCM LTD,108117
North East Lincolnshire Council,http://statistics.data.gov.uk/id/local-authority/00FC),Chief Executive,Shared Services,Human Resources,Direct Employee Expenses,Agency Staff,EA105,5/17/2018,517616,17049.64,REVENUE,MATRIX SCM LTD,108117
North East Lincolnshire Council,http://statistics.data.gov.uk/id/local-authority/00FC),Chief Executive,Shared Services,Human Resources,Indirect Employee Expenses,Disclosure Checks,EB124,5/8/2018,516242,4488,REVENUE,DISCLOSURE & BARRING SERVICE,119180
North East Lincolnshire Council,http://statistics.data.gov.uk/id/local-authority/00FC),Chief Executive,Shared Services,Human Resources,Indirect Employee Expenses,Staff Training,EB122,5/24/2018,594147,1416.64,REVENUE,REDACTED PERSONAL INFORMATION,REDACTED PERSONAL INFORMATION
North East Lincolnshire Council,http://statistics.data.gov.uk/id/local-authority/00FC),Chief Executive,Shared Services,Human Resources,Indirect Employee Expenses,Staff Training,EB122,5/24/2018,594148,1416.64,REVENUE,REDACTED PERSONAL INFORMATION,REDACTED PERSONAL INFORMATION
North East Lincolnshire Council,http://statistics.data.gov.uk/id/local-authority/00FC),Chief Executive,Shared Services,Human Resources,Indirect Employee Expenses,Staff Training,EB122,5/24/2018,594149,1416.64,REVENUE,REDACTED PERSONAL INFORMATION,REDACTED PERSONAL INFORMATION
North East Lincolnshire Council,http://statistics.data.gov.uk/id/local-authority/00FC),Chief Executive,Shared Services,Human Resources,Indirect Employee Expenses,Staff Training,EB122,5/17/2018,517597,380,REVENUE,CIRIA,103848
North East Lincolnshire Council,http://statistics.data.gov.uk/id/local-authority/00FC),Chief Executive,Shared Services,Human Resources,Indirect Employee Expenses,Staff Training,EB122,5/15/2018,517094,1995,REVENUE,SHEILDS LTD,104537
North East Lincolnshire Council,http://statistics.data.gov.uk/id/local-authority/00FC),Chief Executive,Shared Services,Human Resources,Indirect Employee Expenses,Staff Training,EB122,5/15/2018,517094,399,REVENUE,SHEILDS LTD,104537
North East Lincolnshire Council,http://statistics.data.gov.uk/id/local-authority/00FC),Chief Executive,Shared Services,Human Resources,Indirect Employee Expenses,Staff Training,EB122,5/24/2018,517799,315,REVENUE,CENTRE4 LIMITED,126893
North East Lincolnshire Council,http://statistics.data.gov.uk/id/local-authority/00FC),Chief Executive,Shared Services,Human Resources,Indirect Employee Expenses,Staff Training,EB122,5/31/2018,519520,400,REVENUE,WOMENS AID,100326
North East Lincolnshire Council,http://statistics.data.gov.uk/id/local-authority/00FC),Chief Executive,Shared Services,Human Resources,Indirect Employee Expenses,Medical Expenses - Employees,EB112,5/15/2018,516967,1000,REVENUE,MANOR OCCUPATIONAL HEALTH LTD,130544
North East Lincolnshire Council,http://statistics.data.gov.uk/id/local-authority/00FC),Chief Executive,Shared Services,Human Resources,Indirect Employee Expenses,Medical Expenses - Employees,EB112,5/17/2018,517531,450,REVENUE,DR RJI BAIN,130771
North East Lincolnshire Council,http://statistics.data.gov.uk/id/local-authority/00FC),Chief Executive,Shared Services,Human Resources,Communications And Computing,Computer S/Ware - Maintenance,LF102,5/10/2018,516623,3090,REVENUE,SELIMA LTD,125712
North East Lincolnshire Council,http://statistics.data.gov.uk/id/local-authority/00FC),Chief Executive,Shared Services,Human Resources,Communications And Computing,Computer S/Ware - Maintenance,LF102,5/10/2018,516744,-1030,REVENUE,SELIMA LTD,125712
North East Lincolnshire Council,http://statistics.data.gov.uk/id/local-authority/00FC),Chief Executive,Shared Services,Audit Shared Service,Miscellaneous Expenses,Legal Fees - General,LL103,5/10/2018,463078,350,REVENUE,THOMPSONS SOLICITORS,101854
North East Lincolnshire Council,http://statistics.data.gov.uk/id/local-authority/00FC),Chief Executive,Shared Services,Shared Print Hub,Equip / Furniture / Materials,Equipment - Purchase,LA101,5/3/2018,515091,288.5,REVENUE,ELLIOTT BAXTER & COMPANY LIMITED,101996
North East Lincolnshire Council,http://statistics.data.gov.uk/id/local-authority/00FC),Chief Executive,Shared Services,Shared Print Hub,Print Stationery / Gen Off Exp,Photocopier - Acquistion,LD101,5/31/2018,517804,397,REVENUE,ELLIOTT BAXTER & COMPANY LIMITED,101996
North East Lincolnshire Council,http://statistics.data.gov.uk/id/local-authority/00FC),Chief Executive,Shared Services,Shared Print Hub,Print Stationery / Gen Off Exp,Photocopier - Acquistion,LD101,5/31/2018,519568,794,REVENUE,ELLIOTT BAXTER & COMPANY LIMITED,101996
North East Lincolnshire Council,http://statistics.data.gov.uk/id/local-authority/00FC),Chief Executive,Shared Services,Shared Print Hub,Print Stationery / Gen Off Exp,Photocopier - Running Costs,LD102,5/31/2018,518971,402.14,REVENUE,UNITED CARLTON OFFICE SYSTEMS LTD,101652
North East Lincolnshire Council,http://statistics.data.gov.uk/id/local-authority/00FC),Chief Executive,Shared Services,Shared Print Hub,Print Stationery / Gen Off Exp,Photocopier - Running Costs,LD102,5/31/2018,518973,304.31,REVENUE,UNITED CARLTON OFFICE SYSTEMS LTD,101652
North East Lincolnshire Council,http://statistics.data.gov.uk/id/local-authority/00FC),Chief Executive,Shared Services,Shared Print Hub,Print Stationery / Gen Off Exp,Photocopier - Running Costs,LD102,5/31/2018,518986,294.09,REVENUE,UNITED CARLTON OFFICE SYSTEMS LTD,101652
North East Lincolnshire Council,http://statistics.data.gov.uk/id/local-authority/00FC),Chief Executive,Shared Services,Shared Print Hub,Print Stationery / Gen Off Exp,Photocopier - Running Costs,LD102,5/31/2018,518987,257.49,REVENUE,UNITED CARLTON OFFICE SYSTEMS LTD,101652
North East Lincolnshire Council,http://statistics.data.gov.uk/id/local-authority/00FC),Chief Executive,Shared Services,Shared Print Hub,Print Stationery / Gen Off Exp,Photocopier - Running Costs,LD102,5/31/2018,518989,257.48,REVENUE,UNITED CARLTON OFFICE SYSTEMS LTD,101652
North East Lincolnshire Council,http://statistics.data.gov.uk/id/local-authority/00FC),Chief Executive,Shared Services,Shared Print Hub,Print Stationery / Gen Off Exp,Photocopier - Running Costs,LD102,5/31/2018,518990,947.33,REVENUE,UNITED CARLTON OFFICE SYSTEMS LTD,101652
North East Lincolnshire Council,http://statistics.data.gov.uk/id/local-authority/00FC),Chief Executive,Shared Services,Shared Print Hub,Print Stationery / Gen Off Exp,Photocopier - Running Costs,LD102,5/31/2018,518994,288.92,REVENUE,UNITED CARLTON OFFICE SYSTEMS LTD,101652
North East Lincolnshire Council,http://statistics.data.gov.uk/id/local-authority/00FC),Chief Executive,Shared Services,Shared Print Hub,Print Stationery / Gen Off Exp,Photocopier - Running Costs,LD102,5/31/2018,518998,352.23,REVENUE,UNITED CARLTON OFFICE SYSTEMS LTD,101652
North East Lincolnshire Council,http://statistics.data.gov.uk/id/local-authority/00FC),Chief Executive,Shared Services,Shared Print Hub,Print Stationery / Gen Off Exp,Photocopier - Running Costs,LD102,5/31/2018,519519,306.68,REVENUE,XEROX (UK) LIMITED,100953
North East Lincolnshire Council,http://statistics.data.gov.uk/id/local-authority/00FC),Chief Executive,Shared Services,Shared Print Hub,Print Stationery / Gen Off Exp,Photocopier - Running Costs,LD102,5/31/2018,519557,1250.4,REVENUE,XEROX FINANCE,100572
North East Lincolnshire Council,http://statistics.data.gov.uk/id/local-authority/00FC),Chief Executive,Shared Services,Shared Print Hub,Print Stationery / Gen Off Exp,Printing And Stationery,LD103,5/31/2018,518989,297.97,REVENUE,UNITED CARLTON OFFICE SYSTEMS LTD,101652
North East Lincolnshire Council,http://statistics.data.gov.uk/id/local-authority/00FC),Chief Executive,Shared Services,Shared Print Hub,Print Stationery / Gen Off Exp,Printing And Stationery,LD103,5/31/2018,518990,515.64,REVENUE,UNITED CARLTON OFFICE SYSTEMS LTD,101652
North East Lincolnshire Council,http://statistics.data.gov.uk/id/local-authority/00FC),Chief Executive,Shared Services,Shared Print Hub,Print Stationery / Gen Off Exp,Printing And Stationery,LD103,5/31/2018,518998,420.78,REVENUE,UNITED CARLTON OFFICE SYSTEMS LTD,101652
North East Lincolnshire Council,http://statistics.data.gov.uk/id/local-authority/00FC),Chief Executive,Shared Services,Shared Print Hub,Print Stationery / Gen Off Exp,Printing And Stationery,LD103,5/31/2018,519000,285.57,REVENUE,UNITED CARLTON OFFICE SYSTEMS LTD,101652
North East Lincolnshire Council,http://statistics.data.gov.uk/id/local-authority/00FC),Chief Executive,Shared Services,Shared Print Hub,Private Contractors,Third Party Prov - Private,PH101,5/24/2018,518430,436.98,REVENUE,DONCASTER METROPOLITAN BOROUGH COUNCIL,103098
North East Lincolnshire Council,http://statistics.data.gov.uk/id/local-authority/00FC),Chief Executive,Shared Services,Shared Print Hub,Private Contractors,Third Party Prov - Private,PH101,5/3/2018,515592,918,REVENUE,PITNEY BOWES LIMITED,101236
North East Lincolnshire Council,http://statistics.data.gov.uk/id/local-authority/00FC),Chief Executive,Shared Services,Shared Print Hub,Private Contractors,Third Party Prov - Private,PH101,5/15/2018,516987,778.8,REVENUE,CCM PRINT & MEDIA SOLUTIONS,134586
North East Lincolnshire Council,http://statistics.data.gov.uk/id/local-authority/00FC),Chief Executive,Shared Services,Shared Print Hub,Private Contractors,Third Party Prov - Private,PH101,5/24/2018,517940,772,REVENUE,SYSTEMATIC PRINT MANAGEMENT LTD,101147
North East Lincolnshire Council,http://statistics.data.gov.uk/id/local-authority/00FC),Chief Executive,Ad Governance And Democracy,Democratic Services & Scrutiny,Private Contractors,Third Party Prov - Private,PH101,5/3/2018,515559,2490,REVENUE,HARVERLEA CONSULTING LTD,105303
North East Lincolnshire Council,http://statistics.data.gov.uk/id/local-authority/00FC),Chief Executive,Ad Governance And Democracy,Registrars & Civic Services,Equip / Furniture / Materials,Cleaning - Equipment,LA103,5/22/2018,517587,256.65,REVENUE,PETER HOGARTH & SONS LTD,100815
North East Lincolnshire Council,http://statistics.data.gov.uk/id/local-authority/00FC),Chief Executive,Ad Governance And Democracy,Registrars & Civic Services,Miscellaneous Expenses,Civic Regalia And Events,LL117,5/15/2018,517167,491.02,REVENUE,WATKINS & WATSON LTD,108590
North East Lincolnshire Council,http://statistics.data.gov.uk/id/local-authority/00FC),Chief Executive,Ad Governance And Democracy,Registrars & Civic Services,Miscellaneous Expenses,Hospitality,LL112,5/15/2018,517048,585,REVENUE,DELI-LICIOUS,101903
North East Lincolnshire Council,http://statistics.data.gov.uk/id/local-authority/00FC),Chief Executive,Ad Governance And Democracy,Registrars & Civic Services,Miscellaneous Expenses,Licences,LL116,5/15/2018,517165,450.5,REVENUE,WATKINS & WATSON LTD,108590
North East Lincolnshire Council,http://statistics.data.gov.uk/id/local-authority/00FC),Chief Executive,Ad Governance And Democracy,Registrars & Civic Services,Rents,Rent,GC101,5/3/2018,515383,590,REVENUE,CLEETHORPES CHARTER TRUSTEES,101604
North East Lincolnshire Council,http://statistics.data.gov.uk/id/local-authority/00FC),Chief Executive,Ad Governance And Democracy,Ad Governance & Democracy,Contributions To Provisions,Contributions - Communities,LK101,5/29/2018,519195,35000,REVENUE,JOINT SERVICES MAJOR EVENTS TEAM N E LINCS,109747
North East Lincolnshire Council,http://statistics.data.gov.uk/id/local-authority/00FC),Chief Executive,Ad Governance And Democracy,Elections & Complaints,Miscellaneous Expenses,Other Expenses General,LL119,5/24/2018,517990,427.4,REVENUE,TWOFOLD MAILING LTD,105163
North East Lincolnshire Council,http://statistics.data.gov.uk/id/local-authority/00FC),Chief Executive,Ad Governance And Democracy,Elections & Complaints,Rents,Rent,GC101,5/22/2018,517031,836,REVENUE,MOBILE MINI UK LTD,105081
North East Lincolnshire Council,http://statistics.data.gov.uk/id/local-authority/00FC),Chief Executive,Ad Governance And Democracy,Elections & Complaints,Rents,Rent,GC101,5/22/2018,517032,368,REVENUE,MOBILE MINI UK LTD,105081
North East Lincolnshire Council,http://statistics.data.gov.uk/id/local-authority/00FC),Chief Executive,Ad Governance And Democracy,Elections & Complaints,Rents,Rent,GC101,5/22/2018,517033,852,REVENUE,MOBILE MINI UK LTD,105081
North East Lincolnshire Council,http://statistics.data.gov.uk/id/local-authority/00FC),Chief Executive,Ad Governance And Democracy,Elections & Complaints,Rents,Rent,GC101,5/22/2018,517034,368,REVENUE,MOBILE MINI UK LTD,105081
North East Lincolnshire Council,http://statistics.data.gov.uk/id/local-authority/00FC),Chief Executive,Ad Governance And Democracy,Elections & Complaints,Rents,Rent,GC101,5/22/2018,517035,700,REVENUE,MOBILE MINI UK LTD,105081
North East Lincolnshire Council,http://statistics.data.gov.uk/id/local-authority/00FC),Chief Executive,Ad Governance And Democracy,Elections & Complaints,Rents,Rent,GC101,5/22/2018,517036,368,REVENUE,MOBILE MINI UK LTD,105081
North East Lincolnshire Council,http://statistics.data.gov.uk/id/local-authority/00FC),Chief Executive,Ad Governance And Democracy,Elections & Complaints,Rents,Rent,GC101,5/22/2018,517037,852,REVENUE,MOBILE MINI UK LTD,105081
North East Lincolnshire Council,http://statistics.data.gov.uk/id/local-authority/00FC),Chief Executive,Ad Governance And Democracy,Elections & Complaints,Rents,Rent,GC101,5/22/2018,517053,836,REVENUE,MOBILE MINI UK LTD,105081
North East Lincolnshire Council,http://statistics.data.gov.uk/id/local-authority/00FC),Chief Executive,Ad Governance And Democracy,Elections & Complaints,Rents,Rent,GC101,5/22/2018,517054,1521,REVENUE,MOBILE MINI UK LTD,105081
North East Lincolnshire Council,http://statistics.data.gov.uk/id/local-authority/00FC),Chief Executive,Ad Governance And Democracy,Elections & Complaints,Rents,Rent,GC101,5/22/2018,517055,836,REVENUE,MOBILE MINI UK LTD,105081
North East Lincolnshire Council,http://statistics.data.gov.uk/id/local-authority/00FC),Chief Executive,Ad Governance And Democracy,Elections & Complaints,Rents,Rent,GC101,5/22/2018,517056,528,REVENUE,MOBILE MINI UK LTD,105081
North East Lincolnshire Council,http://statistics.data.gov.uk/id/local-authority/00FC),Chief Executive,Ad Governance And Democracy,Elections & Complaints,Rents,Rent,GC101,5/22/2018,517057,528,REVENUE,MOBILE MINI UK LTD,105081
North East Lincolnshire Council,http://statistics.data.gov.uk/id/local-authority/00FC),Chief Executive,Ad Governance And Democracy,Elections & Complaints,Rents,Rent,GC101,5/22/2018,517058,528,REVENUE,MOBILE MINI UK LTD,105081
North East Lincolnshire Council,http://statistics.data.gov.uk/id/local-authority/00FC),Chief Executive,Ad Governance And Democracy,Elections & Complaints,Rents,Rent,GC101,5/22/2018,517060,528,REVENUE,MOBILE MINI UK LTD,105081
North East Lincolnshire Council,http://statistics.data.gov.uk/id/local-authority/00FC),Chief Executive,Ad Governance And Democracy,Elections & Complaints,Rents,Rent,GC101,5/22/2018,516658,852,REVENUE,MOBILE MINI UK LTD,105081
North East Lincolnshire Council,http://statistics.data.gov.uk/id/local-authority/00FC),Chief Executive,Ad Governance And Democracy,Elections & Complaints,Rents,Rent,GC101,5/22/2018,516660,852,REVENUE,MOBILE MINI UK LTD,105081
North East Lincolnshire Council,http://statistics.data.gov.uk/id/local-authority/00FC),Chief Executive,Ad Governance And Democracy,Elections & Complaints,Print Stationery / Gen Off Exp,Printing And Stationery,LD103,5/22/2018,517979,11033.43,REVENUE,PRINT IMAGE NETWORK LTD,103724
North East Lincolnshire Council,http://statistics.data.gov.uk/id/local-authority/00FC),Chief Executive,Ad Governance And Democracy,Elections & Complaints,Print Stationery / Gen Off Exp,Printing And Stationery,LD103,5/22/2018,517981,859.11,REVENUE,PRINT IMAGE NETWORK LTD,103724
North East Lincolnshire Council,http://statistics.data.gov.uk/id/local-authority/00FC),Chief Executive,Ad Governance And Democracy,Elections & Complaints,Print Stationery / Gen Off Exp,Printing And Stationery,LD103,5/24/2018,517985,7117.82,REVENUE,PRINT IMAGE NETWORK LTD,103724
North East Lincolnshire Council,http://statistics.data.gov.uk/id/local-authority/00FC),Chief Executive,Ad Governance And Democracy,Elections & Complaints,Print Stationery / Gen Off Exp,Printing And Stationery,LD103,5/24/2018,517986,684,REVENUE,PRINT IMAGE NETWORK LTD,103724
North East Lincolnshire Council,http://statistics.data.gov.uk/id/local-authority/00FC),Chief Executive,Ad Governance And Democracy,Elections & Complaints,Communications And Computing,Postage,LF111,5/22/2018,517963,1132.19,REVENUE,ROYAL MAIL GROUP PLC,101082
North East Lincolnshire Council,http://statistics.data.gov.uk/id/local-authority/00FC),Chief Executive,Ad Governance And Democracy,Elections & Complaints,Communications And Computing,Postage,LF111,5/22/2018,517969,4355.36,REVENUE,ROYAL MAIL GROUP PLC,101082
North East Lincolnshire Council,http://statistics.data.gov.uk/id/local-authority/00FC),Chief Executive,Ad Governance And Democracy,Elections & Complaints,Communications And Computing,Postage,LF111,5/22/2018,517976,908.61,REVENUE,ROYAL MAIL GROUP PLC,101082
North East Lincolnshire Council,http://statistics.data.gov.uk/id/local-authority/00FC),Chief Executive,Ad Governance And Democracy,Elections & Complaints,Miscellaneous Expenses,Other Expenses General,LL119,5/22/2018,517983,12944.99,REVENUE,W R CULLUM,100811
North East Lincolnshire Council,http://statistics.data.gov.uk/id/local-authority/00FC),Chief Executive,Ad Law,Coroners,Rents,Room Hire,GC103,5/31/2018,519517,311.93,REVENUE,NORTH LINCOLNSHIRE COUNCIL,101186
North East Lincolnshire Council,http://statistics.data.gov.uk/id/local-authority/00FC),Chief Executive,Ad Law,Coroners,Miscellaneous Expenses,Legal Fees - General,LL103,5/3/2018,515550,1620,REVENUE,THE EGLESTON PARTNERSHIP,139437
North East Lincolnshire Council,http://statistics.data.gov.uk/id/local-authority/00FC),Chief Executive,Ad Law,Coroners,Miscellaneous Expenses,Legal Fees - General,LL103,5/31/2018,519269,1029,REVENUE,THE EGLESTON PARTNERSHIP,139437
North East Lincolnshire Council,http://statistics.data.gov.uk/id/local-authority/00FC),Chief Executive,Ad Law,Coroners,Miscellaneous Expenses,Legal Fees - General,LL103,5/24/2018,518162,395,REVENUE,CORONERS SOCIETY OF ENGLAND & WALES,130149
North East Lincolnshire Council,http://statistics.data.gov.uk/id/local-authority/00FC),Chief Executive,Ad Law,Coroners,Other Agencies,Conveyance Bodies,PJ149,5/29/2018,518534,603.44,REVENUE,MASHFORDS,103343
North East Lincolnshire Council,http://statistics.data.gov.uk/id/local-authority/00FC),Chief Executive,Ad Law,Coroners,Other Agencies,Mortuary Storage Charges,PJ156,5/3/2018,515549,8424,REVENUE,N LINCS & GOOLE HOSPITALS NHS,111074
North East Lincolnshire Council,http://statistics.data.gov.uk/id/local-authority/00FC),Chief Executive,Ad Law,Coroners,Other Agencies,Mortuary Storage Charges,PJ156,5/29/2018,518396,9828,REVENUE,N LINCS & GOOLE HOSPITALS NHS,111074
North East Lincolnshire Council,http://statistics.data.gov.uk/id/local-authority/00FC),Chief Executive,Ad Law,Coroners,Other Agencies,Mortuary Storage Charges,PJ156,5/22/2018,517831,403.2,REVENUE,HEY NHS TRUST,102955
North East Lincolnshire Council,http://statistics.data.gov.uk/id/local-authority/00FC),Chief Executive,Ad Law,Coroners,Other Agencies,Post Mortems,PJ148,5/22/2018,517821,521.9,REVENUE,REDACTED PERSONAL INFORMATION,REDACTED PERSONAL INFORMATION
North East Lincolnshire Council,http://statistics.data.gov.uk/id/local-authority/00FC),Chief Executive,Ad Law,Coroners,Other Agencies,Post Mortems,PJ148,5/15/2018,516965,1711.2,REVENUE,REDACTED PERSONAL INFORMATION,REDACTED PERSONAL INFORMATION
North East Lincolnshire Council,http://statistics.data.gov.uk/id/local-authority/00FC),Chief Executive,Ad Law,Coroners,Other Agencies,Post Mortems,PJ148,5/22/2018,517820,508.6,REVENUE,REDACTED PERSONAL INFORMATION,REDACTED PERSONAL INFORMATION
North East Lincolnshire Council,http://statistics.data.gov.uk/id/local-authority/00FC),Chief Executive,Ad Law,Coroners,Other Agencies,Post Mortems,PJ148,5/22/2018,517818,1525.8,REVENUE,REDACTED PERSONAL INFORMATION,REDACTED PERSONAL INFORMATION
North East Lincolnshire Council,http://statistics.data.gov.uk/id/local-authority/00FC),Chief Executive,Ad Law,Coroners,Other Agencies,Post Mortems,PJ148,5/29/2018,518612,5422.88,REVENUE,UNIVERSITY HOSPITALS OF LEICESTER NHS TRUST,107238
North East Lincolnshire Council,http://statistics.data.gov.uk/id/local-authority/00FC),Chief Executive,Ad Law,Coroners,Other Agencies,Post Mortems,PJ148,5/24/2018,518170,387.2,REVENUE,REDACTED PERSONAL INFORMATION,REDACTED PERSONAL INFORMATION
North East Lincolnshire Council,http://statistics.data.gov.uk/id/local-authority/00FC),Chief Executive,Ad Law,Coroners,Other Agencies,Post Mortems,PJ148,5/24/2018,518442,520,REVENUE,N LINCS & GOOLE HOSPITALS NHS,111074
North East Lincolnshire Council,http://statistics.data.gov.uk/id/local-authority/00FC),Chief Executive,Ad Law,Coroners,Other Agencies,Post Mortems,PJ148,5/22/2018,517816,257.28,REVENUE,SHEFFIELD TEACHING HOSPITALS NHS TRUST,101211
North East Lincolnshire Council,http://statistics.data.gov.uk/id/local-authority/00FC),Chief Executive,Ad Law,Coroners,Other Agencies,Post Mortems,PJ148,5/22/2018,517817,343.24,REVENUE,SHEFFIELD TEACHING HOSPITALS NHS TRUST,101211
North East Lincolnshire Council,http://statistics.data.gov.uk/id/local-authority/00FC),Chief Executive,Ad Law,Coroners,Other Agencies,Post Mortems,PJ148,5/3/2018,515552,276.9,REVENUE,REDACTED PERSONAL INFORMATION,REDACTED PERSONAL INFORMATION
North East Lincolnshire Council,http://statistics.data.gov.uk/id/local-authority/00FC),Chief Executive,Ad Law,Legal Services,Miscellaneous Expenses,Legal Fees - General,LL103,5/29/2018,512193,431.61,REVENUE,MDA SEARCHFLOW LTD,116545
North East Lincolnshire Council,http://statistics.data.gov.uk/id/local-authority/00FC),Chief Executive,Ad Law,Legal Services,Consultancy,Consultancy,PL101,5/15/2018,515281,341,REVENUE,WOMBLE BOND DICKINSON (UK) LLP,121775
North East Lincolnshire Council,http://statistics.data.gov.uk/id/local-authority/00FC),Chief Executive,Ad Law,Legal Services,Consultancy,Consultancy,PL101,5/31/2018,519865,496,REVENUE,WOMBLE BOND DICKINSON (UK) LLP,121775
North East Lincolnshire Council,http://statistics.data.gov.uk/id/local-authority/00FC),Chief Executive,Ad Law,Legal Services,Grants And Subscriptions,Subscriptions,LJ101,5/17/2018,517600,15000,REVENUE,NETMASTER SOLUTIONS LTD,136879
North East Lincolnshire Council,http://statistics.data.gov.uk/id/local-authority/00FC),Chief Executive,Ad Law,Legal Services,Miscellaneous Expenses,Legal Fees - General,LL103,5/15/2018,510528,771.2,REVENUE,CARCANIRATHWELL LTD,102767
North East Lincolnshire Council,http://statistics.data.gov.uk/id/local-authority/00FC),Chief Executive,Ad Law,Legal Services,Miscellaneous Expenses,Legal Fees - General,LL103,5/8/2018,516086,1437.45,REVENUE,JOHN BARKERS SOLICITORS,100928
North East Lincolnshire Council,http://statistics.data.gov.uk/id/local-authority/00FC),Chief Executive,Ad Law,Legal Services,Miscellaneous Expenses,Legal Fees - General,LL103,5/29/2018,519070,615,REVENUE,MR ALAN CARNIE,134849
North East Lincolnshire Council,http://statistics.data.gov.uk/id/local-authority/00FC),Chief Executive,Ad Law,Legal Services,Miscellaneous Expenses,Legal Fees - General,LL103,5/10/2018,516374,700,REVENUE,SALLY BEAUMONT,139887
North East Lincolnshire Council,http://statistics.data.gov.uk/id/local-authority/00FC),Chief Executive,Ad Law,Legal Services,Miscellaneous Expenses,Legal Fees - General,LL103,5/15/2018,516740,450,REVENUE,DAVID PHILLIPS,103505
North East Lincolnshire Council,http://statistics.data.gov.uk/id/local-authority/00FC),Chief Executive,Ad Law,Legal Services,Miscellaneous Expenses,Legal Fees - General,LL103,5/17/2018,517586,516.75,REVENUE,LEXTOX DRUG & ALCOHOL TESTING,125634
North East Lincolnshire Council,http://statistics.data.gov.uk/id/local-authority/00FC),Chief Executive,Ad Law,Legal Services,Miscellaneous Expenses,Legal Fees - General,LL103,5/10/2018,516372,280,REVENUE,MISS JACQUI THOMAS,129005
North East Lincolnshire Council,http://statistics.data.gov.uk/id/local-authority/00FC),Chief Executive,Ad Law,Legal Services,Miscellaneous Expenses,Legal Fees - General,LL103,5/10/2018,516373,800,REVENUE,MISS TARYN LEE QC,127409
North East Lincolnshire Council,http://statistics.data.gov.uk/id/local-authority/00FC),Chief Executive,Ad Law,Legal Services,Miscellaneous Expenses,Legal Fees - General,LL103,5/15/2018,516734,420,REVENUE,GAVIN BUTTON,136396
North East Lincolnshire Council,http://statistics.data.gov.uk/id/local-authority/00FC),Chief Executive,Ad Law,Legal Services,Miscellaneous Expenses,Legal Fees - General,LL103,5/15/2018,516784,480,REVENUE,MENDES INVESTIGATION SERVICES LIMITED,130979
North East Lincolnshire Council,http://statistics.data.gov.uk/id/local-authority/00FC),Chief Executive,Ad Law,Legal Services,Miscellaneous Expenses,Legal Fees - General,LL103,5/15/2018,516733,800,REVENUE,SALLY BEAUMONT,139887
North East Lincolnshire Council,http://statistics.data.gov.uk/id/local-authority/00FC),Chief Executive,Ad Law,Legal Services,Miscellaneous Expenses,Legal Fees - General,LL103,5/22/2018,517879,320,REVENUE,MENDES INVESTIGATION SERVICES LIMITED,130979
North East Lincolnshire Council,http://statistics.data.gov.uk/id/local-authority/00FC),Chief Executive,Ad Law,Legal Services,Miscellaneous Expenses,Legal Fees - General,LL103,5/15/2018,516749,890,REVENUE,MISS JOANNE F JENKINS,139686
North East Lincolnshire Council,http://statistics.data.gov.uk/id/local-authority/00FC),Chief Executive,Ad Law,Legal Services,Miscellaneous Expenses,Legal Fees - General,LL103,5/10/2018,516371,305.91,REVENUE,AZTEC TRANSLATIONS,106512
North East Lincolnshire Council,http://statistics.data.gov.uk/id/local-authority/00FC),Chief Executive,Ad Law,Legal Services,Miscellaneous Expenses,Legal Fees - General,LL103,5/31/2018,519621,250,REVENUE,MR MARK WATTERSON,109973
North East Lincolnshire Council,http://statistics.data.gov.uk/id/local-authority/00FC),Chief Executive,Ad Law,Legal Services,Miscellaneous Expenses,Legal Fees - General,LL103,5/24/2018,518178,690,REVENUE,MORTON LAW LTD,124752
North East Lincolnshire Council,http://statistics.data.gov.uk/id/local-authority/00FC),Chief Executive,Ad Law,Legal Services,Miscellaneous Expenses,Legal Fees - General,LL103,5/24/2018,518177,630,REVENUE,MORTON LAW LTD,124752
North East Lincolnshire Council,http://statistics.data.gov.uk/id/local-authority/00FC),Chief Executive,Ad Law,Legal Services,Miscellaneous Expenses,Legal Fees - General,LL103,5/24/2018,518176,960,REVENUE,MORTON LAW LTD,124752
North East Lincolnshire Council,http://statistics.data.gov.uk/id/local-authority/00FC),Chief Executive,Ad Law,Legal Services,Miscellaneous Expenses,Legal Fees - General,LL103,5/24/2018,518175,720,REVENUE,MORTON LAW LTD,124752
North East Lincolnshire Council,http://statistics.data.gov.uk/id/local-authority/00FC),Chief Executive,Ad Law,Legal Services,Miscellaneous Expenses,Legal Fees - General,LL103,5/24/2018,518174,540,REVENUE,MORTON LAW LTD,124752
North East Lincolnshire Council,http://statistics.data.gov.uk/id/local-authority/00FC),Chief Executive,Ad Law,Legal Services,Miscellaneous Expenses,Legal Fees - General,LL103,5/24/2018,518173,870,REVENUE,MORTON LAW LTD,124752
North East Lincolnshire Council,http://statistics.data.gov.uk/id/local-authority/00FC),Chief Executive,Ad Law,Legal Services,Miscellaneous Expenses,Legal Fees - General,LL103,5/24/2018,518172,780,REVENUE,MORTON LAW LTD,124752
North East Lincolnshire Council,http://statistics.data.gov.uk/id/local-authority/00FC),Chief Executive,Ad Law,Legal Services,Miscellaneous Expenses,Legal Fees - General,LL103,5/31/2018,519618,567.63,REVENUE,HARPHAMS MEDIA TRANSCRIBERS,112780
North East Lincolnshire Council,http://statistics.data.gov.uk/id/local-authority/00FC),Chief Executive,Ad Law,Legal Services,Miscellaneous Expenses,Legal Fees - General,LL103,5/29/2018,518478,389.97,REVENUE,AZTEC TRANSLATIONS,106512
North East Lincolnshire Council,http://statistics.data.gov.uk/id/local-authority/00FC),Chief Executive,Ad Law,Legal Services,Miscellaneous Expenses,Legal Fees - General,LL103,5/24/2018,518477,256,REVENUE,AZTEC TRANSLATIONS,106512
North East Lincolnshire Council,http://statistics.data.gov.uk/id/local-authority/00FC),Chief Executive,Ad Law,Legal Services,Miscellaneous Expenses,Legal Fees - General,LL103,5/24/2018,518476,261.26,REVENUE,AZTEC TRANSLATIONS,106512
North East Lincolnshire Council,http://statistics.data.gov.uk/id/local-authority/00FC),Chief Executive,Ad Law,Legal Services,Miscellaneous Expenses,Legal Fees - General,LL103,5/24/2018,518475,1144,REVENUE,AZTEC TRANSLATIONS,106512
North East Lincolnshire Council,http://statistics.data.gov.uk/id/local-authority/00FC),Chief Executive,Ad Law,Legal Services,Miscellaneous Expenses,Legal Fees - General,LL103,5/29/2018,518609,1214.5,REVENUE,CARTER BROWN THE EXPERT SERVICE,106320
North East Lincolnshire Council,http://statistics.data.gov.uk/id/local-authority/00FC),Chief Executive,Ad Law,Legal Services,Miscellaneous Expenses,Legal Fees - General,LL103,5/31/2018,519025,765,REVENUE,DAVID PHILLIPS,103505
North East Lincolnshire Council,http://statistics.data.gov.uk/id/local-authority/00FC),Chief Executive,Ad Law,Legal Services,Miscellaneous Expenses,Legal Fees - General,LL103,5/29/2018,519049,250,REVENUE,MR MARK WATTERSON,109973
North East Lincolnshire Council,http://statistics.data.gov.uk/id/local-authority/00FC),Chief Executive,Ad Law,Legal Services,Miscellaneous Expenses,Legal Fees - General,LL103,5/31/2018,519620,770,REVENUE,MISS JOANNE F JENKINS,139686
North East Lincolnshire Council,http://statistics.data.gov.uk/id/local-authority/00FC),Chief Executive,Ad Law,Legal Services,Miscellaneous Expenses,Legal Fees - General,LL103,5/31/2018,519617,650,REVENUE,MISS J C BAGGS,112233
North East Lincolnshire Council,http://statistics.data.gov.uk/id/local-authority/00FC),Chief Executive,Ad Law,Legal Services,Miscellaneous Expenses,Legal Fees - General,LL103,5/31/2018,519615,1670,REVENUE,GAVIN BUTTON,136396
North East Lincolnshire Council,http://statistics.data.gov.uk/id/local-authority/00FC),Deputy Chief Executive,Director Of Early Help,Prevention And Early Help,Other Agencies,Nursery Educ Fund - Standard,PJ139,5/17/2018,517648,-12177,REVENUE,CLEETHORPES DIVISION GIRL GUIDES,120748
North East Lincolnshire Council,http://statistics.data.gov.uk/id/local-authority/00FC),Deputy Chief Executive,Director Of Early Help,Prevention And Early Help,Other Agencies,Nursery Educ Fund - Standard,PJ139,5/22/2018,517962,12177,REVENUE,WILLOWS PRIMARY ACADEMY,120478
North East Lincolnshire Council,http://statistics.data.gov.uk/id/local-authority/00FC),Deputy Chief Executive,Director Of Early Help,Prevention And Early Help,Indirect Employee Expenses,Staff Training,EB122,5/8/2018,516079,2652.98,REVENUE,CACI LTD,110598
North East Lincolnshire Council,http://statistics.data.gov.uk/id/local-authority/00FC),Deputy Chief Executive,Director Of Early Help,Prevention And Early Help,Indirect Employee Expenses,Staff Training,EB122,5/8/2018,516224,513,REVENUE,IAN COXON,139610
North East Lincolnshire Council,http://statistics.data.gov.uk/id/local-authority/00FC),Deputy Chief Executive,Director Of Early Help,Prevention And Early Help,Miscellaneous Expenses,Licences,LL116,5/15/2018,516968,715,REVENUE,ADVENTURE ACTIVITIES LICENCING SERVICE,105321
North East Lincolnshire Council,http://statistics.data.gov.uk/id/local-authority/00FC),Deputy Chief Executive,Director Of Early Help,Prevention And Early Help,Voluntary Associations,Third Pp - Third Sector,PF101,5/8/2018,516294,2500,REVENUE,IAN COXAN,103410
North East Lincolnshire Council,http://statistics.data.gov.uk/id/local-authority/00FC),Deputy Chief Executive,Director Of Early Help,Prevention And Early Help,Rents,Rent,GC101,5/8/2018,516289,253.33,REVENUE,CENTRE4 LIMITED,126893
North East Lincolnshire Council,http://statistics.data.gov.uk/id/local-authority/00FC),Deputy Chief Executive,Director Of Early Help,Prevention And Early Help,Miscellaneous Expenses,Other Supplies & Services,LL110,5/17/2018,517619,303.4,REVENUE,PAUSE,137708
North East Lincolnshire Council,http://statistics.data.gov.uk/id/local-authority/00FC),Deputy Chief Executive,Director Of Early Help,Childrens Health,Private Contractors,Third Party Prov - Private,PH101,5/10/2018,516225,15000,REVENUE,CARE PLUS GROUP,106467
North East Lincolnshire Council,http://statistics.data.gov.uk/id/local-authority/00FC),Deputy Chief Executive,Director Of Early Help,Childrens Health,Miscellaneous Expenses,Medical Supplies And Services,LL109,5/17/2018,515531,282.9,REVENUE,GL EDUCATION GROUP LTD,118819
North East Lincolnshire Council,http://statistics.data.gov.uk/id/local-authority/00FC),Deputy Chief Executive,Director Of Early Help,Childrens Health,Private Contractors,Translation & Interpreter Serv,PH113,5/22/2018,517915,263.25,REVENUE,HE WORDS,122711
North East Lincolnshire Council,http://statistics.data.gov.uk/id/local-authority/00FC),Deputy Chief Executive,Director Of Early Help,Family Hubs,Other Agencies,Child Care Payments,PJ104,5/15/2018,517258,270.5,REVENUE,GRIMSBY INSTITUTE - LITTLE STARS DAY NURSERY,114230
North East Lincolnshire Council,http://statistics.data.gov.uk/id/local-authority/00FC),Deputy Chief Executive,Director Of Early Help,Family Hubs,Other Agencies,Child Care Payments,PJ104,5/15/2018,517257,270.5,REVENUE,GRIMSBY INSTITUTE - LITTLE STARS DAY NURSERY,114230
North East Lincolnshire Council,http://statistics.data.gov.uk/id/local-authority/00FC),Deputy Chief Executive,Director Of Early Help,Family Hubs,Other Agencies,Child Care Payments,PJ104,5/22/2018,517806,302,REVENUE,CENTRE4 LIMITED,126893
North East Lincolnshire Council,http://statistics.data.gov.uk/id/local-authority/00FC),Deputy Chief Executive,Director Of Early Help,Family Hubs,Other Agencies,Child Care Payments,PJ104,5/31/2018,519555,944,REVENUE,CLEETHORPES CHILDCARE,101591
North East Lincolnshire Council,http://statistics.data.gov.uk/id/local-authority/00FC),Deputy Chief Executive,Director Of Early Help,Family Hubs,Other Agencies,Child Care Payments,PJ104,5/31/2018,519612,2023,REVENUE,CLEETHORPES CHILDCARE,101591
North East Lincolnshire Council,http://statistics.data.gov.uk/id/local-authority/00FC),Deputy Chief Executive,Director Of Early Help,Family Hubs,Indirect Employee Expenses,Staff Training,EB122,5/29/2018,518603,250,REVENUE,LINCOLNSHIRE COUNTY COUNCIL,100389
North East Lincolnshire Council,http://statistics.data.gov.uk/id/local-authority/00FC),Deputy Chief Executive,Director Of Early Help,Family Hubs,Cleaning And Domestic Supplies,Cleaning - Consumables,GH103,5/15/2018,517108,262.82,REVENUE,PETER HOGARTH & SONS LTD,100815
North East Lincolnshire Council,http://statistics.data.gov.uk/id/local-authority/00FC),Deputy Chief Executive,Director Of Early Help,Family Hubs,Car Allowances,Travel - Employees,JF101,5/31/2018,519203,261.8,REVENUE,REVELLS TAXIS (ED/SOC SERV),100559
North East Lincolnshire Council,http://statistics.data.gov.uk/id/local-authority/00FC),Deputy Chief Executive,Director Of Early Help,Family Hubs,Equip / Furniture / Materials,Non-Teaching Resources,LA118,5/31/2018,519282,344,REVENUE,CENTRE4 LIMITED,126893
North East Lincolnshire Council,http://statistics.data.gov.uk/id/local-authority/00FC),Deputy Chief Executive,Director Of Early Help,Family Hubs,Other Agencies,Child Care Payments,PJ104,5/29/2018,519183,387.4,REVENUE,LISLE MARSDEN CHILDCARE LIMITED,110493
North East Lincolnshire Council,http://statistics.data.gov.uk/id/local-authority/00FC),Deputy Chief Executive,Director Of Early Help,Community Learning Services,Miscellaneous Expenses,Activities - Service Users,LL114,5/22/2018,517884,480,REVENUE,MIND WORKS COACHING,136206
North East Lincolnshire Council,http://statistics.data.gov.uk/id/local-authority/00FC),Deputy Chief Executive,Director Of Early Help,Community Learning Services,Voluntary Associations,Third Pp - Third Sector,PF101,5/24/2018,518445,2002.29,REVENUE,VOLUNTARY ACTION NORTH EAST LINCOLNSHIRE,103631
North East Lincolnshire Council,http://statistics.data.gov.uk/id/local-authority/00FC),Deputy Chief Executive,Director Of Early Help,Community Learning Services,Contributions To Provisions,Contributions - Other,LK103,5/31/2018,519027,525,REVENUE,THE COURTYARD CAFE,135980
North East Lincolnshire Council,http://statistics.data.gov.uk/id/local-authority/00FC),Deputy Chief Executive,Director Of Early Help,Community Learning Services,Miscellaneous Expenses,Activities - Service Users,LL114,5/24/2018,518432,1938,REVENUE,MRS SONIA SMITH,132584
North East Lincolnshire Council,http://statistics.data.gov.uk/id/local-authority/00FC),Deputy Chief Executive,Director Of Early Help,Community Learning Services,Miscellaneous Expenses,Activities - Service Users,LL114,5/24/2018,518431,495,REVENUE,LINKAGE COMMUNITY TRUST LTD,104471
North East Lincolnshire Council,http://statistics.data.gov.uk/id/local-authority/00FC),Deputy Chief Executive,Director Of Early Help,Community Learning Services,Miscellaneous Expenses,Activities - Service Users,LL114,5/29/2018,518433,360,REVENUE,LINKAGE COMMUNITY TRUST LTD,104471
North East Lincolnshire Council,http://statistics.data.gov.uk/id/local-authority/00FC),Deputy Chief Executive,Director Of Early Help,Community Learning Services,Indirect Employee Expenses,Staff Training,EB122,5/15/2018,517072,605.52,REVENUE,TEFL ORG UK,139083
North East Lincolnshire Council,http://statistics.data.gov.uk/id/local-authority/00FC),Deputy Chief Executive,Director Of Early Help,Community Learning Services,Miscellaneous Expenses,Exam Fees,LL115,5/17/2018,517521,280,REVENUE,SUSSEX PAVILION COMMUNITY GROUP,126810
North East Lincolnshire Council,http://statistics.data.gov.uk/id/local-authority/00FC),Deputy Chief Executive,Director Of Early Help,Community Learning Services,Miscellaneous Expenses,Exam Fees,LL115,5/24/2018,518622,321,REVENUE,OCR,101048
North East Lincolnshire Council,http://statistics.data.gov.uk/id/local-authority/00FC),Deputy Chief Executive,Director Of Early Help,Child Protection / Safeguardin,Private Contractors,Translation & Interpreter Serv,PH113,5/29/2018,518522,290.94,REVENUE,HE WORDS,122711
North East Lincolnshire Council,http://statistics.data.gov.uk/id/local-authority/00FC),Deputy Chief Executive,Director Of Early Help,Ad Early Intervention,Expenses,Course/Conf Accom - Employees,LH102,5/15/2018,515867,780,REVENUE,THE ASSOCIATION OF DIRECTORS OF CHILDREN'S,101800
North East Lincolnshire Council,http://statistics.data.gov.uk/id/local-authority/00FC),Deputy Chief Executive,Director Of Early Help,Ad Early Intervention,Rents,Service Charge,GC102,5/8/2018,516314,18840.5,REVENUE,NHS PROPERTY SERVICES LTD,139079
North East Lincolnshire Council,http://statistics.data.gov.uk/id/local-authority/00FC),Deputy Chief Executive,Director Of Early Help,Ad Early Intervention,Rents,Service Charge,GC102,5/15/2018,516919,6523.55,REVENUE,NHS PROPERTY SERVICES LTD,139079
North East Lincolnshire Council,http://statistics.data.gov.uk/id/local-authority/00FC),Deputy Chief Executive,Director Of Early Help,Palliative / Complex Care,Private Contractors,Contract Payments,PH105,5/22/2018,517826,5313.28,REVENUE,ST ANDREWS HOSPICE,103069
North East Lincolnshire Council,http://statistics.data.gov.uk/id/local-authority/00FC),Deputy Chief Executive,Director Of Early Help,Palliative / Complex Care,Private Contractors,Third Party Prov - Private,PH101,5/17/2018,517595,3198,REVENUE,THE ROWAN ORGANISATION,140036
North East Lincolnshire Council,http://statistics.data.gov.uk/id/local-authority/00FC),Deputy Chief Executive,Director Of Early Help,Palliative / Complex Care,Private Contractors,Third Party Prov - Private,PH101,5/22/2018,517609,1332.5,REVENUE,THE ROWAN ORGANISATION,140037
North East Lincolnshire Council,http://statistics.data.gov.uk/id/local-authority/00FC),Deputy Chief Executive,Director Of Early Help,Palliative / Complex Care,Private Contractors,Third Party Prov - Private,PH101,5/22/2018,517620,639.6,REVENUE,THE ROWAN ORGANISATION,140038
North East Lincolnshire Council,http://statistics.data.gov.uk/id/local-authority/00FC),Deputy Chief Executive,Director Of Early Help,Palliative / Complex Care,Private Contractors,Third Party Prov - Private,PH101,5/22/2018,517621,3198,REVENUE,THE ROWAN ORGANISATION,140039
North East Lincolnshire Council,http://statistics.data.gov.uk/id/local-authority/00FC),Deputy Chief Executive,Director Of Early Help,Palliative / Complex Care,Private Contractors,Third Party Prov - Private,PH101,5/22/2018,517622,4264,REVENUE,THE ROWAN ORGANISATION,140040
North East Lincolnshire Council,http://statistics.data.gov.uk/id/local-authority/00FC),Deputy Chief Executive,Director Of Childrens Services,Access And Education Services,Contract Hire-Operating Leases,Vehicles - Contract Hire,JC101,5/29/2018,519093,470,REVENUE,LINKS TAXIS,100546
North East Lincolnshire Council,http://statistics.data.gov.uk/id/local-authority/00FC),Deputy Chief Executive,Director Of Childrens Services,Access And Education Services,Contract Hire-Operating Leases,Vehicles - Contract Hire,JC101,5/31/2018,518776,300,REVENUE,LINKS TAXIS,100546
North East Lincolnshire Council,http://statistics.data.gov.uk/id/local-authority/00FC),Deputy Chief Executive,Director Of Childrens Services,Access And Education Services,Contract Hire-Operating Leases,Vehicles - Contract Hire,JC101,5/22/2018,518065,356,REVENUE,MINICABS CLEETHORPES (LINCS) LTD,102124
North East Lincolnshire Council,http://statistics.data.gov.uk/id/local-authority/00FC),Deputy Chief Executive,Director Of Childrens Services,Access And Education Services,Contract Hire-Operating Leases,Vehicles - Contract Hire,JC101,5/31/2018,518778,315,REVENUE,LINKS TAXIS,100546
North East Lincolnshire Council,http://statistics.data.gov.uk/id/local-authority/00FC),Deputy Chief Executive,Director Of Childrens Services,Access And Education Services,Contract Hire-Operating Leases,Vehicles - Contract Hire,JC101,5/29/2018,519096,270,REVENUE,LINKS TAXIS,100546
North East Lincolnshire Council,http://statistics.data.gov.uk/id/local-authority/00FC),Deputy Chief Executive,Director Of Childrens Services,Access And Education Services,Contract Hire-Operating Leases,Vehicles - Contract Hire,JC101,5/22/2018,518064,510,REVENUE,MINICABS CLEETHORPES (LINCS) LTD,102124
North East Lincolnshire Council,http://statistics.data.gov.uk/id/local-authority/00FC),Deputy Chief Executive,Director Of Childrens Services,Access And Education Services,Contract Hire-Operating Leases,Vehicles - Contract Hire,JC101,5/31/2018,518796,292,REVENUE,LINKS TAXIS,100546
North East Lincolnshire Council,http://statistics.data.gov.uk/id/local-authority/00FC),Deputy Chief Executive,Director Of Childrens Services,Access And Education Services,Contract Hire-Operating Leases,Vehicles - Contract Hire,JC101,5/29/2018,519151,374,REVENUE,REVELLS TAXIS (ED/SOC SERV),100559
North East Lincolnshire Council,http://statistics.data.gov.uk/id/local-authority/00FC),Deputy Chief Executive,Director Of Childrens Services,Access And Education Services,Contract Hire-Operating Leases,Vehicles - Contract Hire,JC101,5/29/2018,519094,799.8,REVENUE,LINKS TAXIS,100546
North East Lincolnshire Council,http://statistics.data.gov.uk/id/local-authority/00FC),Deputy Chief Executive,Director Of Childrens Services,Access And Education Services,Contract Hire-Operating Leases,Vehicles - Contract Hire,JC101,5/22/2018,518038,616,REVENUE,COUNTRY CABS,101999
North East Lincolnshire Council,http://statistics.data.gov.uk/id/local-authority/00FC),Deputy Chief Executive,Director Of Childrens Services,Access And Education Services,Contract Hire-Operating Leases,Vehicles - Contract Hire,JC101,5/22/2018,518062,621,REVENUE,AA RADIO CARS LTD,101222
North East Lincolnshire Council,http://statistics.data.gov.uk/id/local-authority/00FC),Deputy Chief Executive,Director Of Childrens Services,Access And Education Services,Contract Hire-Operating Leases,Vehicles - Contract Hire,JC101,5/29/2018,519090,557,REVENUE,LINKS TAXIS,100546
North East Lincolnshire Council,http://statistics.data.gov.uk/id/local-authority/00FC),Deputy Chief Executive,Director Of Childrens Services,Access And Education Services,Contract Hire-Operating Leases,Vehicles - Contract Hire,JC101,5/24/2018,518188,408,REVENUE,COXONS CARS LIMITED,100578
North East Lincolnshire Council,http://statistics.data.gov.uk/id/local-authority/00FC),Deputy Chief Executive,Director Of Childrens Services,Access And Education Services,Contract Hire-Operating Leases,Vehicles - Contract Hire,JC101,5/31/2018,518800,432,REVENUE,LINKS TAXIS,100546
North East Lincolnshire Council,http://statistics.data.gov.uk/id/local-authority/00FC),Deputy Chief Executive,Director Of Childrens Services,Access And Education Services,Contract Hire-Operating Leases,Vehicles - Contract Hire,JC101,5/31/2018,519009,264,REVENUE,LINKS TAXIS,100546
North East Lincolnshire Council,http://statistics.data.gov.uk/id/local-authority/00FC),Deputy Chief Executive,Director Of Childrens Services,Access And Education Services,Contract Hire-Operating Leases,Vehicles - Contract Hire,JC101,5/29/2018,519087,396.98,REVENUE,LINKS TAXIS,100546
North East Lincolnshire Council,http://statistics.data.gov.uk/id/local-authority/00FC),Deputy Chief Executive,Director Of Childrens Services,Access And Education Services,Contract Hire-Operating Leases,Vehicles - Contract Hire,JC101,5/24/2018,518082,880,REVENUE,BEST FUTURES COMMUNITY INTEREST COMPANY,128600
North East Lincolnshire Council,http://statistics.data.gov.uk/id/local-authority/00FC),Deputy Chief Executive,Director Of Childrens Services,Access And Education Services,Private Contractors,Concessionary Fares,PH104,5/24/2018,518083,1601.5,REVENUE,STAGECOACH SERVICES,101404
North East Lincolnshire Council,http://statistics.data.gov.uk/id/local-authority/00FC),Deputy Chief Executive,Director Of Childrens Services,Access And Education Services,Contract Hire-Operating Leases,Vehicles - Contract Hire,JC101,5/24/2018,518095,1309,REVENUE,AMVALE MEDICAL TRANSPORT LTD,130777
North East Lincolnshire Council,http://statistics.data.gov.uk/id/local-authority/00FC),Deputy Chief Executive,Director Of Childrens Services,Access And Education Services,Contract Hire-Operating Leases,Vehicles - Contract Hire,JC101,5/24/2018,518094,1287,REVENUE,AMVALE MEDICAL TRANSPORT LTD,130777
North East Lincolnshire Council,http://statistics.data.gov.uk/id/local-authority/00FC),Deputy Chief Executive,Director Of Childrens Services,Access And Education Services,Contract Hire-Operating Leases,Vehicles - Contract Hire,JC101,5/22/2018,518060,470,REVENUE,AA RADIO CARS LTD,101222
North East Lincolnshire Council,http://statistics.data.gov.uk/id/local-authority/00FC),Deputy Chief Executive,Director Of Childrens Services,Access And Education Services,Contract Hire-Operating Leases,Vehicles - Contract Hire,JC101,5/24/2018,518080,560,REVENUE,AMVALE LIMITED,101030
North East Lincolnshire Council,http://statistics.data.gov.uk/id/local-authority/00FC),Deputy Chief Executive,Director Of Childrens Services,Access And Education Services,Contract Hire-Operating Leases,Vehicles - Contract Hire,JC101,5/22/2018,518085,1650,REVENUE,AMVALE LIMITED,101030
North East Lincolnshire Council,http://statistics.data.gov.uk/id/local-authority/00FC),Deputy Chief Executive,Director Of Childrens Services,Access And Education Services,Contract Hire-Operating Leases,Vehicles - Contract Hire,JC101,5/22/2018,518084,1750,REVENUE,AMVALE LIMITED,101030
North East Lincolnshire Council,http://statistics.data.gov.uk/id/local-authority/00FC),Deputy Chief Executive,Director Of Childrens Services,Access And Education Services,Contract Hire-Operating Leases,Vehicles - Contract Hire,JC101,5/22/2018,518087,1650,REVENUE,AMVALE LIMITED,101030
North East Lincolnshire Council,http://statistics.data.gov.uk/id/local-authority/00FC),Deputy Chief Executive,Director Of Childrens Services,Access And Education Services,Contract Hire-Operating Leases,Vehicles - Contract Hire,JC101,5/22/2018,518086,1550,REVENUE,AMVALE LIMITED,101030
North East Lincolnshire Council,http://statistics.data.gov.uk/id/local-authority/00FC),Deputy Chief Executive,Director Of Childrens Services,Access And Education Services,Contract Hire-Operating Leases,Vehicles - Contract Hire,JC101,5/24/2018,518185,300,REVENUE,COXONS CARS LIMITED,100578
North East Lincolnshire Council,http://statistics.data.gov.uk/id/local-authority/00FC),Deputy Chief Executive,Director Of Childrens Services,Access And Education Services,Contract Hire-Operating Leases,Vehicles - Contract Hire,JC101,5/22/2018,518059,528,REVENUE,AA RADIO CARS LTD,101222
North East Lincolnshire Council,http://statistics.data.gov.uk/id/local-authority/00FC),Deputy Chief Executive,Director Of Childrens Services,Access And Education Services,Contract Hire-Operating Leases,Vehicles - Contract Hire,JC101,5/24/2018,518184,520,REVENUE,COXONS CARS LIMITED,100578
North East Lincolnshire Council,http://statistics.data.gov.uk/id/local-authority/00FC),Deputy Chief Executive,Director Of Childrens Services,Access And Education Services,Contract Hire-Operating Leases,Vehicles - Contract Hire,JC101,5/22/2018,518010,1878,REVENUE,MILLMAN COACHES,100700
North East Lincolnshire Council,http://statistics.data.gov.uk/id/local-authority/00FC),Deputy Chief Executive,Director Of Childrens Services,Access And Education Services,Contract Hire-Operating Leases,Vehicles - Contract Hire,JC101,5/22/2018,518055,531.25,REVENUE,GRIMSBY MINIBUSES LTD,121524
North East Lincolnshire Council,http://statistics.data.gov.uk/id/local-authority/00FC),Deputy Chief Executive,Director Of Childrens Services,Access And Education Services,Private Contractors,Concessionary Fares,PH104,5/24/2018,518083,606,REVENUE,STAGECOACH SERVICES,101404
North East Lincolnshire Council,http://statistics.data.gov.uk/id/local-authority/00FC),Deputy Chief Executive,Director Of Childrens Services,Access And Education Services,Contract Hire-Operating Leases,Vehicles - Contract Hire,JC101,5/22/2018,518039,380,REVENUE,COUNTRY CABS,101999
North East Lincolnshire Council,http://statistics.data.gov.uk/id/local-authority/00FC),Deputy Chief Executive,Director Of Childrens Services,Access And Education Services,Contract Hire-Operating Leases,Vehicles - Contract Hire,JC101,5/22/2018,518061,283.5,REVENUE,AA RADIO CARS LTD,101222
North East Lincolnshire Council,http://statistics.data.gov.uk/id/local-authority/00FC),Deputy Chief Executive,Director Of Childrens Services,Access And Education Services,Contract Hire-Operating Leases,Vehicles - Contract Hire,JC101,5/22/2018,518081,2464,REVENUE,AMVALE MEDICAL TRANSPORT LTD,130777
North East Lincolnshire Council,http://statistics.data.gov.uk/id/local-authority/00FC),Deputy Chief Executive,Director Of Childrens Services,Access And Education Services,Contract Hire-Operating Leases,Vehicles - Contract Hire,JC101,5/22/2018,518071,420,REVENUE,MINICABS CLEETHORPES (LINCS) LTD,102124
North East Lincolnshire Council,http://statistics.data.gov.uk/id/local-authority/00FC),Deputy Chief Executive,Director Of Childrens Services,Access And Education Services,Contract Hire-Operating Leases,Vehicles - Contract Hire,JC101,5/31/2018,518729,765,REVENUE,LINKS TAXIS,100546
North East Lincolnshire Council,http://statistics.data.gov.uk/id/local-authority/00FC),Deputy Chief Executive,Director Of Childrens Services,Access And Education Services,Contract Hire-Operating Leases,Vehicles - Contract Hire,JC101,5/22/2018,518041,1155,REVENUE,WHEELCHAIR FRIENDLY TAXI SERVICE,101915
North East Lincolnshire Council,http://statistics.data.gov.uk/id/local-authority/00FC),Deputy Chief Executive,Director Of Childrens Services,Access And Education Services,Contract Hire-Operating Leases,Vehicles - Contract Hire,JC101,5/24/2018,518075,2355,REVENUE,REDACTED PERSONAL INFORMATION,REDACTED PERSONAL INFORMATION
North East Lincolnshire Council,http://statistics.data.gov.uk/id/local-authority/00FC),Deputy Chief Executive,Director Of Childrens Services,Access And Education Services,Contract Hire-Operating Leases,Vehicles - Contract Hire,JC101,5/22/2018,518056,1216,REVENUE,GRIMSBY MINIBUSES LTD,121524
North East Lincolnshire Council,http://statistics.data.gov.uk/id/local-authority/00FC),Deputy Chief Executive,Director Of Childrens Services,Access And Education Services,Contract Hire-Operating Leases,Vehicles - Contract Hire,JC101,5/31/2018,518799,390,REVENUE,LINKS TAXIS,100546
North East Lincolnshire Council,http://statistics.data.gov.uk/id/local-authority/00FC),Deputy Chief Executive,Director Of Childrens Services,Access And Education Services,Contract Hire-Operating Leases,Vehicles - Contract Hire,JC101,5/22/2018,518009,320,REVENUE,COXONS CARS LIMITED,100578
North East Lincolnshire Council,http://statistics.data.gov.uk/id/local-authority/00FC),Deputy Chief Executive,Director Of Childrens Services,Access And Education Services,Contract Hire-Operating Leases,Vehicles - Contract Hire,JC101,5/31/2018,518792,731.5,REVENUE,LINKS TAXIS,100546
North East Lincolnshire Council,http://statistics.data.gov.uk/id/local-authority/00FC),Deputy Chief Executive,Director Of Childrens Services,Access And Education Services,Contract Hire-Operating Leases,Vehicles - Contract Hire,JC101,5/22/2018,518057,486,REVENUE,GRIMSBY MINIBUSES LTD,121524
North East Lincolnshire Council,http://statistics.data.gov.uk/id/local-authority/00FC),Deputy Chief Executive,Director Of Childrens Services,Access And Education Services,Contract Hire-Operating Leases,Vehicles - Contract Hire,JC101,5/31/2018,519044,390,REVENUE,LINKS TAXIS,100546
North East Lincolnshire Council,http://statistics.data.gov.uk/id/local-authority/00FC),Deputy Chief Executive,Director Of Childrens Services,Access And Education Services,Contract Hire-Operating Leases,Vehicles - Contract Hire,JC101,5/22/2018,518043,1200,REVENUE,THE BUS RUN,101522
North East Lincolnshire Council,http://statistics.data.gov.uk/id/local-authority/00FC),Deputy Chief Executive,Director Of Childrens Services,Access And Education Services,Contract Hire-Operating Leases,Vehicles - Contract Hire,JC101,5/22/2018,518053,1408,REVENUE,GRIMSBY MINIBUSES LTD,121524
North East Lincolnshire Council,http://statistics.data.gov.uk/id/local-authority/00FC),Deputy Chief Executive,Director Of Childrens Services,Access And Education Services,Contract Hire-Operating Leases,Vehicles - Contract Hire,JC101,5/22/2018,518054,1403,REVENUE,GRIMSBY MINIBUSES LTD,121524
North East Lincolnshire Council,http://statistics.data.gov.uk/id/local-authority/00FC),Deputy Chief Executive,Director Of Childrens Services,Access And Education Services,Contract Hire-Operating Leases,Vehicles - Contract Hire,JC101,5/24/2018,518182,270,REVENUE,COXONS CARS LIMITED,100578
North East Lincolnshire Council,http://statistics.data.gov.uk/id/local-authority/00FC),Deputy Chief Executive,Director Of Childrens Services,Access And Education Services,Contract Hire-Operating Leases,Vehicles - Contract Hire,JC101,5/22/2018,518050,361,REVENUE,COXONS CARS LIMITED,100578
North East Lincolnshire Council,http://statistics.data.gov.uk/id/local-authority/00FC),Deputy Chief Executive,Director Of Childrens Services,Access And Education Services,Contract Hire-Operating Leases,Vehicles - Contract Hire,JC101,5/24/2018,518183,440,REVENUE,COXONS CARS LIMITED,100578
North East Lincolnshire Council,http://statistics.data.gov.uk/id/local-authority/00FC),Deputy Chief Executive,Director Of Childrens Services,Access And Education Services,Contract Hire-Operating Leases,Vehicles - Contract Hire,JC101,5/31/2018,518785,330,REVENUE,LINKS TAXIS,100546
North East Lincolnshire Council,http://statistics.data.gov.uk/id/local-authority/00FC),Deputy Chief Executive,Director Of Childrens Services,Access And Education Services,Contract Hire-Operating Leases,Vehicles - Contract Hire,JC101,5/22/2018,518051,280,REVENUE,COXONS CARS LIMITED,100578
North East Lincolnshire Council,http://statistics.data.gov.uk/id/local-authority/00FC),Deputy Chief Executive,Director Of Childrens Services,Access And Education Services,Contract Hire-Operating Leases,Vehicles - Contract Hire,JC101,5/31/2018,519028,480,REVENUE,LINKS TAXIS,100546
North East Lincolnshire Council,http://statistics.data.gov.uk/id/local-authority/00FC),Deputy Chief Executive,Director Of Childrens Services,Access And Education Services,Contract Hire-Operating Leases,Vehicles - Contract Hire,JC101,5/24/2018,518187,410,REVENUE,COXONS CARS LIMITED,100578
North East Lincolnshire Council,http://statistics.data.gov.uk/id/local-authority/00FC),Deputy Chief Executive,Director Of Childrens Services,Access And Education Services,Contract Hire-Operating Leases,Vehicles - Contract Hire,JC101,5/31/2018,518801,380,REVENUE,LINKS TAXIS,100546
North East Lincolnshire Council,http://statistics.data.gov.uk/id/local-authority/00FC),Deputy Chief Executive,Director Of Childrens Services,Access And Education Services,Contract Hire-Operating Leases,Vehicles - Contract Hire,JC101,5/31/2018,518786,380,REVENUE,LINKS TAXIS,100546
North East Lincolnshire Council,http://statistics.data.gov.uk/id/local-authority/00FC),Deputy Chief Executive,Director Of Childrens Services,Access And Education Services,Contract Hire-Operating Leases,Vehicles - Contract Hire,JC101,5/31/2018,518787,537,REVENUE,LINKS TAXIS,100546
North East Lincolnshire Council,http://statistics.data.gov.uk/id/local-authority/00FC),Deputy Chief Executive,Director Of Childrens Services,Access And Education Services,Contract Hire-Operating Leases,Vehicles - Contract Hire,JC101,5/31/2018,518783,350,REVENUE,LINKS TAXIS,100546
North East Lincolnshire Council,http://statistics.data.gov.uk/id/local-authority/00FC),Deputy Chief Executive,Director Of Childrens Services,Access And Education Services,Contract Hire-Operating Leases,Vehicles - Contract Hire,JC101,5/24/2018,518072,480,REVENUE,MINICABS CLEETHORPES (LINCS) LTD,102124
North East Lincolnshire Council,http://statistics.data.gov.uk/id/local-authority/00FC),Deputy Chief Executive,Director Of Childrens Services,Access And Education Services,Contract Hire-Operating Leases,Vehicles - Contract Hire,JC101,5/24/2018,518099,1190,REVENUE,AMVALE MEDICAL TRANSPORT LTD,130777
North East Lincolnshire Council,http://statistics.data.gov.uk/id/local-authority/00FC),Deputy Chief Executive,Director Of Childrens Services,Access And Education Services,Contract Hire-Operating Leases,Vehicles - Contract Hire,JC101,5/31/2018,518782,580,REVENUE,LINKS TAXIS,100546
North East Lincolnshire Council,http://statistics.data.gov.uk/id/local-authority/00FC),Deputy Chief Executive,Director Of Childrens Services,Access And Education Services,Contract Hire-Operating Leases,Vehicles - Contract Hire,JC101,5/24/2018,518098,1170,REVENUE,AMVALE MEDICAL TRANSPORT LTD,130777
North East Lincolnshire Council,http://statistics.data.gov.uk/id/local-authority/00FC),Deputy Chief Executive,Director Of Childrens Services,Access And Education Services,Contract Hire-Operating Leases,Vehicles - Contract Hire,JC101,5/24/2018,518073,840,REVENUE,MINICABS CLEETHORPES (LINCS) LTD,102124
North East Lincolnshire Council,http://statistics.data.gov.uk/id/local-authority/00FC),Deputy Chief Executive,Director Of Childrens Services,Access And Education Services,Contract Hire-Operating Leases,Vehicles - Contract Hire,JC101,5/24/2018,518076,1050,REVENUE,HANSONS AIRPORT EXPRESS,111879
North East Lincolnshire Council,http://statistics.data.gov.uk/id/local-authority/00FC),Deputy Chief Executive,Director Of Childrens Services,Access And Education Services,Contract Hire-Operating Leases,Vehicles - Contract Hire,JC101,5/22/2018,517998,820,REVENUE,AMVALE LIMITED,101030
North East Lincolnshire Council,http://statistics.data.gov.uk/id/local-authority/00FC),Deputy Chief Executive,Director Of Childrens Services,Access And Education Services,Contract Hire-Operating Leases,Vehicles - Contract Hire,JC101,5/22/2018,517999,820,REVENUE,AMVALE LIMITED,101030
North East Lincolnshire Council,http://statistics.data.gov.uk/id/local-authority/00FC),Deputy Chief Executive,Director Of Childrens Services,Access And Education Services,Contract Hire-Operating Leases,Vehicles - Contract Hire,JC101,5/22/2018,518068,670,REVENUE,MINICABS CLEETHORPES (LINCS) LTD,102124
North East Lincolnshire Council,http://statistics.data.gov.uk/id/local-authority/00FC),Deputy Chief Executive,Director Of Childrens Services,Access And Education Services,Contract Hire-Operating Leases,Vehicles - Contract Hire,JC101,5/29/2018,519129,450,REVENUE,REVELLS TAXIS (ED/SOC SERV),100559
North East Lincolnshire Council,http://statistics.data.gov.uk/id/local-authority/00FC),Deputy Chief Executive,Director Of Childrens Services,Access And Education Services,Contract Hire-Operating Leases,Vehicles - Contract Hire,JC101,5/22/2018,518066,720,REVENUE,MINICABS CLEETHORPES (LINCS) LTD,102124
North East Lincolnshire Council,http://statistics.data.gov.uk/id/local-authority/00FC),Deputy Chief Executive,Director Of Childrens Services,Access And Education Services,Contract Hire-Operating Leases,Vehicles - Contract Hire,JC101,5/24/2018,518189,504,REVENUE,COXONS CARS LIMITED,100578
North East Lincolnshire Council,http://statistics.data.gov.uk/id/local-authority/00FC),Deputy Chief Executive,Director Of Childrens Services,Access And Education Services,Contract Hire-Operating Leases,Vehicles - Contract Hire,JC101,5/31/2018,518794,470,REVENUE,LINKS TAXIS,100546
North East Lincolnshire Council,http://statistics.data.gov.uk/id/local-authority/00FC),Deputy Chief Executive,Director Of Childrens Services,Access And Education Services,Contract Hire-Operating Leases,Vehicles - Contract Hire,JC101,5/24/2018,518097,1280,REVENUE,AMVALE MEDICAL TRANSPORT LTD,130777
North East Lincolnshire Council,http://statistics.data.gov.uk/id/local-authority/00FC),Deputy Chief Executive,Director Of Childrens Services,Access And Education Services,Contract Hire-Operating Leases,Vehicles - Contract Hire,JC101,5/24/2018,518069,644,REVENUE,MINICABS CLEETHORPES (LINCS) LTD,102124
North East Lincolnshire Council,http://statistics.data.gov.uk/id/local-authority/00FC),Deputy Chief Executive,Director Of Childrens Services,Access And Education Services,Contract Hire-Operating Leases,Vehicles - Contract Hire,JC101,5/31/2018,519014,450,REVENUE,LINKS TAXIS,100546
North East Lincolnshire Council,http://statistics.data.gov.uk/id/local-authority/00FC),Deputy Chief Executive,Director Of Childrens Services,Access And Education Services,Contract Hire-Operating Leases,Vehicles - Contract Hire,JC101,5/22/2018,518067,632,REVENUE,MINICABS CLEETHORPES (LINCS) LTD,102124
North East Lincolnshire Council,http://statistics.data.gov.uk/id/local-authority/00FC),Deputy Chief Executive,Director Of Childrens Services,Access And Education Services,Contract Hire-Operating Leases,Vehicles - Contract Hire,JC101,5/22/2018,518063,936,REVENUE,MINICABS CLEETHORPES (LINCS) LTD,102124
North East Lincolnshire Council,http://statistics.data.gov.uk/id/local-authority/00FC),Deputy Chief Executive,Director Of Childrens Services,Access And Education Services,Contract Hire-Operating Leases,Vehicles - Contract Hire,JC101,5/29/2018,519088,784,REVENUE,LINKS TAXIS,100546
North East Lincolnshire Council,http://statistics.data.gov.uk/id/local-authority/00FC),Deputy Chief Executive,Director Of Childrens Services,Access And Education Services,Contract Hire-Operating Leases,Vehicles - Contract Hire,JC101,5/31/2018,518781,624,REVENUE,LINKS TAXIS,100546
North East Lincolnshire Council,http://statistics.data.gov.uk/id/local-authority/00FC),Deputy Chief Executive,Director Of Childrens Services,Access And Education Services,Contract Hire-Operating Leases,Vehicles - Contract Hire,JC101,5/24/2018,518096,4800,REVENUE,AMVALE MEDICAL TRANSPORT LTD,130777
North East Lincolnshire Council,http://statistics.data.gov.uk/id/local-authority/00FC),Deputy Chief Executive,Director Of Childrens Services,Access And Education Services,Contract Hire-Operating Leases,Vehicles - Contract Hire,JC101,5/24/2018,518093,3440,REVENUE,AMVALE MEDICAL TRANSPORT LTD,130777
North East Lincolnshire Council,http://statistics.data.gov.uk/id/local-authority/00FC),Deputy Chief Executive,Director Of Childrens Services,Access And Education Services,Contract Hire-Operating Leases,Vehicles - Contract Hire,JC101,5/31/2018,519004,682.5,REVENUE,LINKS TAXIS,100546
North East Lincolnshire Council,http://statistics.data.gov.uk/id/local-authority/00FC),Deputy Chief Executive,Director Of Childrens Services,Access And Education Services,Contract Hire-Operating Leases,Vehicles - Contract Hire,JC101,5/31/2018,518779,380,REVENUE,LINKS TAXIS,100546
North East Lincolnshire Council,http://statistics.data.gov.uk/id/local-authority/00FC),Deputy Chief Executive,Director Of Childrens Services,Access And Education Services,Contract Hire-Operating Leases,Vehicles - Contract Hire,JC101,5/22/2018,518042,1605,REVENUE,LOUTH TAXIS LTD T/A AJZ CARS,138018
North East Lincolnshire Council,http://statistics.data.gov.uk/id/local-authority/00FC),Deputy Chief Executive,Director Of Childrens Services,Access And Education Services,Contract Hire-Operating Leases,Vehicles - Contract Hire,JC101,5/31/2018,518795,430,REVENUE,LINKS TAXIS,100546
North East Lincolnshire Council,http://statistics.data.gov.uk/id/local-authority/00FC),Deputy Chief Executive,Director Of Childrens Services,Access And Education Services,Contract Hire-Operating Leases,Vehicles - Contract Hire,JC101,5/24/2018,518090,950,REVENUE,AMVALE MEDICAL TRANSPORT LTD,130777
North East Lincolnshire Council,http://statistics.data.gov.uk/id/local-authority/00FC),Deputy Chief Executive,Director Of Childrens Services,Access And Education Services,Contract Hire-Operating Leases,Vehicles - Contract Hire,JC101,5/24/2018,518089,2170,REVENUE,AMVALE MEDICAL TRANSPORT LTD,130777
North East Lincolnshire Council,http://statistics.data.gov.uk/id/local-authority/00FC),Deputy Chief Executive,Director Of Childrens Services,Access And Education Services,Contract Hire-Operating Leases,Vehicles - Contract Hire,JC101,5/22/2018,518052,470,REVENUE,AA RADIO CARS LTD,101222
North East Lincolnshire Council,http://statistics.data.gov.uk/id/local-authority/00FC),Deputy Chief Executive,Director Of Childrens Services,Access And Education Services,Contract Hire-Operating Leases,Vehicles - Contract Hire,JC101,5/31/2018,518798,850,REVENUE,LINKS TAXIS,100546
North East Lincolnshire Council,http://statistics.data.gov.uk/id/local-authority/00FC),Deputy Chief Executive,Director Of Childrens Services,Access And Education Services,Contract Hire-Operating Leases,Vehicles - Contract Hire,JC101,5/22/2018,518000,820,REVENUE,AMVALE LIMITED,101030
North East Lincolnshire Council,http://statistics.data.gov.uk/id/local-authority/00FC),Deputy Chief Executive,Director Of Childrens Services,Access And Education Services,Contract Hire-Operating Leases,Vehicles - Contract Hire,JC101,5/24/2018,518070,300,REVENUE,MINICABS CLEETHORPES (LINCS) LTD,102124
North East Lincolnshire Council,http://statistics.data.gov.uk/id/local-authority/00FC),Deputy Chief Executive,Director Of Childrens Services,Access And Education Services,Contract Hire-Operating Leases,Vehicles - Contract Hire,JC101,5/22/2018,518035,600,REVENUE,AIRPORT TRAVEL,101208
North East Lincolnshire Council,http://statistics.data.gov.uk/id/local-authority/00FC),Deputy Chief Executive,Director Of Childrens Services,Access And Education Services,Contract Hire-Operating Leases,Vehicles - Contract Hire,JC101,5/24/2018,518092,1650,REVENUE,AMVALE MEDICAL TRANSPORT LTD,130777
North East Lincolnshire Council,http://statistics.data.gov.uk/id/local-authority/00FC),Deputy Chief Executive,Director Of Childrens Services,Access And Education Services,Contract Hire-Operating Leases,Vehicles - Contract Hire,JC101,5/24/2018,518091,1450,REVENUE,AMVALE MEDICAL TRANSPORT LTD,130777
North East Lincolnshire Council,http://statistics.data.gov.uk/id/local-authority/00FC),Deputy Chief Executive,Director Of Childrens Services,Access And Education Services,Contract Hire-Operating Leases,Vehicles - Contract Hire,JC101,5/31/2018,519010,702,REVENUE,LINKS TAXIS,100546
North East Lincolnshire Council,http://statistics.data.gov.uk/id/local-authority/00FC),Deputy Chief Executive,Director Of Childrens Services,Access And Education Services,Contract Hire-Operating Leases,Vehicles - Contract Hire,JC101,5/24/2018,518088,1000,REVENUE,AMVALE MEDICAL TRANSPORT LTD,130777
North East Lincolnshire Council,http://statistics.data.gov.uk/id/local-authority/00FC),Deputy Chief Executive,Director Of Childrens Services,Access And Education Services,Contract Hire-Operating Leases,Vehicles - Contract Hire,JC101,5/31/2018,518793,790,REVENUE,LINKS TAXIS,100546
North East Lincolnshire Council,http://statistics.data.gov.uk/id/local-authority/00FC),Deputy Chief Executive,Director Of Childrens Services,Access And Education Services,Contract Hire-Operating Leases,Vehicles - Contract Hire,JC101,5/31/2018,518791,651,REVENUE,LINKS TAXIS,100546
North East Lincolnshire Council,http://statistics.data.gov.uk/id/local-authority/00FC),Deputy Chief Executive,Director Of Childrens Services,Access And Education Services,Contract Hire-Operating Leases,Vehicles - Contract Hire,JC101,5/31/2018,518788,750,REVENUE,LINKS TAXIS,100546
North East Lincolnshire Council,http://statistics.data.gov.uk/id/local-authority/00FC),Deputy Chief Executive,Director Of Childrens Services,Access And Education Services,Contract Hire-Operating Leases,Vehicles - Contract Hire,JC101,5/31/2018,518775,830,REVENUE,LINKS TAXIS,100546
North East Lincolnshire Council,http://statistics.data.gov.uk/id/local-authority/00FC),Deputy Chief Executive,Director Of Childrens Services,Access And Education Services,Contract Hire-Operating Leases,Vehicles - Contract Hire,JC101,5/29/2018,519098,275,REVENUE,LINKS TAXIS,100546
North East Lincolnshire Council,http://statistics.data.gov.uk/id/local-authority/00FC),Deputy Chief Executive,Director Of Childrens Services,Access And Education Services,Contract Hire-Operating Leases,Vehicles - Contract Hire,JC101,5/24/2018,518186,280,REVENUE,COXONS CARS LIMITED,100578
North East Lincolnshire Council,http://statistics.data.gov.uk/id/local-authority/00FC),Deputy Chief Executive,Director Of Childrens Services,Access And Education Services,Contract Hire-Operating Leases,Vehicles - Contract Hire,JC101,5/22/2018,518047,264,REVENUE,COXONS CARS LIMITED,100578
North East Lincolnshire Council,http://statistics.data.gov.uk/id/local-authority/00FC),Deputy Chief Executive,Director Of Childrens Services,Access And Education Services,Contract Hire-Operating Leases,Vehicles - Contract Hire,JC101,5/24/2018,518074,550,REVENUE,MINICABS CLEETHORPES (LINCS) LTD,102124
North East Lincolnshire Council,http://statistics.data.gov.uk/id/local-authority/00FC),Deputy Chief Executive,Director Of Childrens Services,Access And Education Services,Contract Hire-Operating Leases,Vehicles - Contract Hire,JC101,5/29/2018,519095,1246.2,REVENUE,LINKS TAXIS,100546
North East Lincolnshire Council,http://statistics.data.gov.uk/id/local-authority/00FC),Deputy Chief Executive,Director Of Childrens Services,Access And Education Services,Contract Hire-Operating Leases,Vehicles - Contract Hire,JC101,5/22/2018,518033,525,REVENUE,AIRPORT TRAVEL,102393
North East Lincolnshire Council,http://statistics.data.gov.uk/id/local-authority/00FC),Deputy Chief Executive,Director Of Childrens Services,Access And Education Services,Contract Hire-Operating Leases,Vehicles - Contract Hire,JC101,5/31/2018,519003,297.6,REVENUE,LINKS TAXIS,100546
North East Lincolnshire Council,http://statistics.data.gov.uk/id/local-authority/00FC),Deputy Chief Executive,Director Of Childrens Services,Access And Education Services,Contract Hire-Operating Leases,Vehicles - Contract Hire,JC101,5/31/2018,518802,473,REVENUE,LINKS TAXIS,100546
North East Lincolnshire Council,http://statistics.data.gov.uk/id/local-authority/00FC),Deputy Chief Executive,Director Of Childrens Services,Access And Education Services,Contract Hire-Operating Leases,Vehicles - Contract Hire,JC101,5/31/2018,518790,620,REVENUE,LINKS TAXIS,100546
North East Lincolnshire Council,http://statistics.data.gov.uk/id/local-authority/00FC),Deputy Chief Executive,Director Of Childrens Services,Access And Education Services,Contract Hire-Operating Leases,Vehicles - Contract Hire,JC101,5/31/2018,518784,1133,REVENUE,LINKS TAXIS,100546
North East Lincolnshire Council,http://statistics.data.gov.uk/id/local-authority/00FC),Deputy Chief Executive,Director Of Childrens Services,Access And Education Services,Contract Hire-Operating Leases,Vehicles - Contract Hire,JC101,5/31/2018,519006,440,REVENUE,LINKS TAXIS,100546
North East Lincolnshire Council,http://statistics.data.gov.uk/id/local-authority/00FC),Deputy Chief Executive,Director Of Childrens Services,Access And Education Services,Contract Hire-Operating Leases,Vehicles - Contract Hire,JC101,5/31/2018,519005,380,REVENUE,LINKS TAXIS,100546
North East Lincolnshire Council,http://statistics.data.gov.uk/id/local-authority/00FC),Deputy Chief Executive,Director Of Childrens Services,Access And Education Services,Contract Hire-Operating Leases,Vehicles - Contract Hire,JC101,5/31/2018,518797,550,REVENUE,LINKS TAXIS,100546
North East Lincolnshire Council,http://statistics.data.gov.uk/id/local-authority/00FC),Deputy Chief Executive,Director Of Childrens Services,Access And Education Services,Contract Hire-Operating Leases,Vehicles - Contract Hire,JC101,5/22/2018,518058,658,REVENUE,AA RADIO CARS LTD,101222
North East Lincolnshire Council,http://statistics.data.gov.uk/id/local-authority/00FC),Deputy Chief Executive,Director Of Childrens Services,Access And Education Services,Contract Hire-Operating Leases,Vehicles - Contract Hire,JC101,5/31/2018,519046,665,REVENUE,LINKS TAXIS,100546
North East Lincolnshire Council,http://statistics.data.gov.uk/id/local-authority/00FC),Deputy Chief Executive,Director Of Childrens Services,Access And Education Services,Contract Hire-Operating Leases,Vehicles - Contract Hire,JC101,5/22/2018,518040,960,REVENUE,WHEELCHAIR FRIENDLY TAXI SERVICE,101915
North East Lincolnshire Council,http://statistics.data.gov.uk/id/local-authority/00FC),Deputy Chief Executive,Director Of Childrens Services,Access And Education Services,Contract Hire-Operating Leases,Vehicles - Contract Hire,JC101,5/29/2018,519097,330,REVENUE,LINKS TAXIS,100546
North East Lincolnshire Council,http://statistics.data.gov.uk/id/local-authority/00FC),Deputy Chief Executive,Director Of Childrens Services,Access And Education Services,Contract Hire-Operating Leases,Vehicles - Contract Hire,JC101,5/22/2018,518036,630,REVENUE,REDACTED PERSONAL INFORMATION,REDACTED PERSONAL INFORMATION
North East Lincolnshire Council,http://statistics.data.gov.uk/id/local-authority/00FC),Deputy Chief Executive,Director Of Childrens Services,Access And Education Services,Contract Hire-Operating Leases,Vehicles - Contract Hire,JC101,5/24/2018,518191,360,REVENUE,COXONS CARS LIMITED,100578
North East Lincolnshire Council,http://statistics.data.gov.uk/id/local-authority/00FC),Deputy Chief Executive,Director Of Childrens Services,Access And Education Services,Contract Hire-Operating Leases,Vehicles - Contract Hire,JC101,5/24/2018,518079,1380.82,REVENUE,EAST RIDING OF YORKSHIRE,100377
North East Lincolnshire Council,http://statistics.data.gov.uk/id/local-authority/00FC),Deputy Chief Executive,Director Of Childrens Services,Access And Education Services,Contract Hire-Operating Leases,Vehicles - Contract Hire,JC101,5/29/2018,519091,322.5,REVENUE,LINKS TAXIS,100546
North East Lincolnshire Council,http://statistics.data.gov.uk/id/local-authority/00FC),Deputy Chief Executive,Director Of Childrens Services,Access And Education Services,Contract Hire-Operating Leases,Vehicles - Contract Hire,JC101,5/29/2018,519092,670,REVENUE,LINKS TAXIS,100546
North East Lincolnshire Council,http://statistics.data.gov.uk/id/local-authority/00FC),Deputy Chief Executive,Director Of Childrens Services,Access And Education Services,Contributions To Provisions,Contributions - Other,LK103,5/24/2018,594030,263.28,REVENUE,REDACTED PERSONAL INFORMATION,REDACTED PERSONAL INFORMATION
North East Lincolnshire Council,http://statistics.data.gov.uk/id/local-authority/00FC),Deputy Chief Executive,Director Of Childrens Services,Access And Education Services,Contributions To Provisions,Contributions - Other,LK103,5/22/2018,594020,332.8,REVENUE,REDACTED PERSONAL INFORMATION,REDACTED PERSONAL INFORMATION
North East Lincolnshire Council,http://statistics.data.gov.uk/id/local-authority/00FC),Deputy Chief Executive,Director Of Childrens Services,Access And Education Services,Direct Employee Expenses,Agency Supply Teachers,EA104,5/29/2018,519173,262.5,REVENUE,JOANNE TOWNELL,103709
North East Lincolnshire Council,http://statistics.data.gov.uk/id/local-authority/00FC),Deputy Chief Executive,Director Of Childrens Services,Access And Education Services,Direct Employee Expenses,Agency Supply Teachers,EA104,5/29/2018,518449,1550,REVENUE,STEVE WALKER,103219
North East Lincolnshire Council,http://statistics.data.gov.uk/id/local-authority/00FC),Deputy Chief Executive,Director Of Childrens Services,Access And Education Services,Direct Employee Expenses,Agency Supply Teachers,EA104,5/24/2018,518136,360,REVENUE,KEITH WESTON,102280
North East Lincolnshire Council,http://statistics.data.gov.uk/id/local-authority/00FC),Deputy Chief Executive,Director Of Childrens Services,Access And Education Services,Direct Employee Expenses,Agency Supply Teachers,EA104,5/22/2018,518226,375,REVENUE,JOSHUA ENGLAND,122088
North East Lincolnshire Council,http://statistics.data.gov.uk/id/local-authority/00FC),Deputy Chief Executive,Director Of Childrens Services,Access And Education Services,Direct Employee Expenses,Agency Supply Teachers,EA104,5/22/2018,518228,262.5,REVENUE,JOSHUA ENGLAND,122088
North East Lincolnshire Council,http://statistics.data.gov.uk/id/local-authority/00FC),Deputy Chief Executive,Director Of Childrens Services,Access And Education Services,Direct Employee Expenses,Agency Supply Teachers,EA104,5/8/2018,516099,1200,REVENUE,SAMUEL CARLTON,139890
North East Lincolnshire Council,http://statistics.data.gov.uk/id/local-authority/00FC),Deputy Chief Executive,Director Of Childrens Services,Access And Education Services,Direct Employee Expenses,Agency Supply Teachers,EA104,5/8/2018,516262,3450,REVENUE,JACQUELINE KIRWIN,107311
North East Lincolnshire Council,http://statistics.data.gov.uk/id/local-authority/00FC),Deputy Chief Executive,Director Of Childrens Services,Access And Education Services,Direct Employee Expenses,Agency Supply Teachers,EA104,5/15/2018,516943,600,REVENUE,MIKE SELLARS,102161
North East Lincolnshire Council,http://statistics.data.gov.uk/id/local-authority/00FC),Deputy Chief Executive,Director Of Childrens Services,Access And Education Services,Direct Employee Expenses,Agency Supply Teachers,EA104,5/24/2018,518560,640,REVENUE,KIM GOODEY,134788
North East Lincolnshire Council,http://statistics.data.gov.uk/id/local-authority/00FC),Deputy Chief Executive,Director Of Childrens Services,Access And Education Services,Direct Employee Expenses,Agency Supply Teachers,EA104,5/31/2018,518996,4710,REVENUE,MUSIC LINCS LTD,100944
North East Lincolnshire Council,http://statistics.data.gov.uk/id/local-authority/00FC),Deputy Chief Executive,Director Of Childrens Services,Access And Education Services,Indirect Employee Expenses,Staff Training,EB122,5/10/2018,516637,625,REVENUE,THE UK ASSOCIATION FOR MUSIC EDUCATION,135418
North East Lincolnshire Council,http://statistics.data.gov.uk/id/local-authority/00FC),Deputy Chief Executive,Director Of Childrens Services,Access And Education Services,Rents,Rent,GC101,5/8/2018,516259,1250,REVENUE,JOHN WHITGIFT ACADEMY,106898
North East Lincolnshire Council,http://statistics.data.gov.uk/id/local-authority/00FC),Deputy Chief Executive,Director Of Childrens Services,Access And Education Services,Other Agencies,Other,PJ121,5/3/2018,515883,1050,REVENUE,EMMA MIDDLETON,105103
North East Lincolnshire Council,http://statistics.data.gov.uk/id/local-authority/00FC),Deputy Chief Executive,Director Of Childrens Services,Access And Education Services,Other Agencies,Other,PJ121,5/22/2018,517828,1050,REVENUE,EMMA MIDDLETON,105103
North East Lincolnshire Council,http://statistics.data.gov.uk/id/local-authority/00FC),Deputy Chief Executive,Director Of Childrens Services,Access And Education Services,Other Agencies,Performers,PJ101,5/8/2018,516264,669,REVENUE,LISA OLIVER,101318
North East Lincolnshire Council,http://statistics.data.gov.uk/id/local-authority/00FC),Deputy Chief Executive,Director Of Childrens Services,Access And Education Services,Other Agencies,Performers,PJ101,5/3/2018,515385,525,REVENUE,MUSIC LINCS LTD,100944
North East Lincolnshire Council,http://statistics.data.gov.uk/id/local-authority/00FC),Deputy Chief Executive,Director Of Childrens Services,Access And Education Services,Other Agencies,Performers,PJ101,5/24/2018,518447,600,REVENUE,STEVE WALKER,103219
North East Lincolnshire Council,http://statistics.data.gov.uk/id/local-authority/00FC),Deputy Chief Executive,Director Of Childrens Services,Access And Education Services,Other Agencies,Performers,PJ101,5/24/2018,518109,275,REVENUE,STEVE WALKER,103219
North East Lincolnshire Council,http://statistics.data.gov.uk/id/local-authority/00FC),Deputy Chief Executive,Director Of Childrens Services,Access And Education Services,Other Agencies,Performers,PJ101,5/31/2018,519271,275,REVENUE,LIBELLULE THEATRE,107053
North East Lincolnshire Council,http://statistics.data.gov.uk/id/local-authority/00FC),Deputy Chief Executive,Director Of Childrens Services,Access And Education Services,Other Agencies,Performers,PJ101,5/31/2018,519518,250,REVENUE,LOUDER THAN LIFE,107191
North East Lincolnshire Council,http://statistics.data.gov.uk/id/local-authority/00FC),Deputy Chief Executive,Director Of Childrens Services,Access And Education Services,Other Agencies,Tuition,PJ112,5/10/2018,516231,5125,REVENUE,ORCHARD TRAINING & EDUCATION LTD,126798
North East Lincolnshire Council,http://statistics.data.gov.uk/id/local-authority/00FC),Deputy Chief Executive,Director Of Childrens Services,Strategic Management,Expenses,Course/Conf Accom - Employees,LH102,5/3/2018,515598,450,REVENUE,LOCAL GOVERNMENT ASSOCIATION,101113
North East Lincolnshire Council,http://statistics.data.gov.uk/id/local-authority/00FC),Deputy Chief Executive,Director Of Childrens Services,Strategic Management,Grants And Subscriptions,Subscriptions,LJ101,5/24/2018,518450,525,REVENUE,BRITISH YOUTH COUNCIL,102822
North East Lincolnshire Council,http://statistics.data.gov.uk/id/local-authority/00FC),Deputy Chief Executive,Director Of Childrens Services,Sen/Inclusion,Other Local Authorities,Third Pp - Other Local Auth,PC101,5/24/2018,516066,-10823.53,REVENUE,REDACTED PERSONAL INFORMATION,REDACTED PERSONAL INFORMATION
North East Lincolnshire Council,http://statistics.data.gov.uk/id/local-authority/00FC),Deputy Chief Executive,Director Of Childrens Services,Sen/Inclusion,Other Local Authorities,Third Pp - Other Local Auth,PC101,5/17/2018,517538,705,REVENUE,REDACTED PERSONAL INFORMATION,REDACTED PERSONAL INFORMATION
North East Lincolnshire Council,http://statistics.data.gov.uk/id/local-authority/00FC),Deputy Chief Executive,Director Of Childrens Services,Sen/Inclusion,Other Local Authorities,Third Pp - Other Local Auth,PC101,5/3/2018,515827,1632.4,REVENUE,REDACTED PERSONAL INFORMATION,REDACTED PERSONAL INFORMATION
North East Lincolnshire Council,http://statistics.data.gov.uk/id/local-authority/00FC),Deputy Chief Executive,Director Of Childrens Services,Sen/Inclusion,Other Local Authorities,Third Pp - Other Local Auth,PC101,5/3/2018,515821,1632.4,REVENUE,REDACTED PERSONAL INFORMATION,REDACTED PERSONAL INFORMATION
North East Lincolnshire Council,http://statistics.data.gov.uk/id/local-authority/00FC),Deputy Chief Executive,Director Of Childrens Services,Sen/Inclusion,Other Local Authorities,Third Pp - Other Local Auth,PC101,5/3/2018,515810,1375,REVENUE,REDACTED PERSONAL INFORMATION,REDACTED PERSONAL INFORMATION
North East Lincolnshire Council,http://statistics.data.gov.uk/id/local-authority/00FC),Deputy Chief Executive,Director Of Childrens Services,Sen/Inclusion,Other Local Authorities,Third Pp - Other Local Auth,PC101,5/3/2018,515809,1375,REVENUE,REDACTED PERSONAL INFORMATION,REDACTED PERSONAL INFORMATION
North East Lincolnshire Council,http://statistics.data.gov.uk/id/local-authority/00FC),Deputy Chief Executive,Director Of Childrens Services,Sen/Inclusion,Other Local Authorities,Third Pp - Other Local Auth,PC101,5/3/2018,515825,1632.4,REVENUE,REDACTED PERSONAL INFORMATION,REDACTED PERSONAL INFORMATION
North East Lincolnshire Council,http://statistics.data.gov.uk/id/local-authority/00FC),Deputy Chief Executive,Director Of Childrens Services,Sen/Inclusion,Other Local Authorities,Third Pp - Other Local Auth,PC101,5/15/2018,516979,2978.57,REVENUE,REDACTED PERSONAL INFORMATION,REDACTED PERSONAL INFORMATION
North East Lincolnshire Council,http://statistics.data.gov.uk/id/local-authority/00FC),Deputy Chief Executive,Director Of Childrens Services,Sen/Inclusion,Other Local Authorities,Third Pp - Other Local Auth,PC101,5/3/2018,515819,9739.07,REVENUE,REDACTED PERSONAL INFORMATION,REDACTED PERSONAL INFORMATION
North East Lincolnshire Council,http://statistics.data.gov.uk/id/local-authority/00FC),Deputy Chief Executive,Director Of Childrens Services,Sen/Inclusion,Other Local Authorities,Third Pp - Other Local Auth,PC101,5/3/2018,515807,9810.75,REVENUE,REDACTED PERSONAL INFORMATION,REDACTED PERSONAL INFORMATION
North East Lincolnshire Council,http://statistics.data.gov.uk/id/local-authority/00FC),Deputy Chief Executive,Director Of Childrens Services,Sen/Inclusion,Other Local Authorities,Third Pp - Other Local Auth,PC101,5/3/2018,515806,8321.25,REVENUE,REDACTED PERSONAL INFORMATION,REDACTED PERSONAL INFORMATION
North East Lincolnshire Council,http://statistics.data.gov.uk/id/local-authority/00FC),Deputy Chief Executive,Director Of Childrens Services,Sen/Inclusion,Other Local Authorities,Third Pp - Other Local Auth,PC101,5/3/2018,515804,6365.12,REVENUE,REDACTED PERSONAL INFORMATION,REDACTED PERSONAL INFORMATION
North East Lincolnshire Council,http://statistics.data.gov.uk/id/local-authority/00FC),Deputy Chief Executive,Director Of Childrens Services,Sen/Inclusion,Other Local Authorities,Third Pp - Other Local Auth,PC101,5/3/2018,515800,13642.93,REVENUE,REDACTED PERSONAL INFORMATION,REDACTED PERSONAL INFORMATION
North East Lincolnshire Council,http://statistics.data.gov.uk/id/local-authority/00FC),Deputy Chief Executive,Director Of Childrens Services,Sen/Inclusion,Other Local Authorities,Third Pp - Other Local Auth,PC101,5/3/2018,515805,5747.08,REVENUE,REDACTED PERSONAL INFORMATION,REDACTED PERSONAL INFORMATION
North East Lincolnshire Council,http://statistics.data.gov.uk/id/local-authority/00FC),Deputy Chief Executive,Director Of Childrens Services,Sen/Inclusion,Other Local Authorities,Third Pp - Other Local Auth,PC101,5/3/2018,515803,5184,REVENUE,REDACTED PERSONAL INFORMATION,REDACTED PERSONAL INFORMATION
North East Lincolnshire Council,http://statistics.data.gov.uk/id/local-authority/00FC),Deputy Chief Executive,Director Of Childrens Services,Sen/Inclusion,Other Local Authorities,Third Pp - Other Local Auth,PC101,5/24/2018,516211,20000,REVENUE,REDACTED PERSONAL INFORMATION,REDACTED PERSONAL INFORMATION
North East Lincolnshire Council,http://statistics.data.gov.uk/id/local-authority/00FC),Deputy Chief Executive,Director Of Childrens Services,Sen/Inclusion,Other Local Authorities,Third Pp - Other Local Auth,PC101,5/8/2018,516215,81475,REVENUE,REDACTED PERSONAL INFORMATION,REDACTED PERSONAL INFORMATION
North East Lincolnshire Council,http://statistics.data.gov.uk/id/local-authority/00FC),Deputy Chief Executive,Director Of Childrens Services,Sen/Inclusion,Other Local Authorities,Third Pp - Other Local Auth,PC101,5/8/2018,516212,1155,REVENUE,REDACTED PERSONAL INFORMATION,REDACTED PERSONAL INFORMATION
North East Lincolnshire Council,http://statistics.data.gov.uk/id/local-authority/00FC),Deputy Chief Executive,Director Of Childrens Services,Sen/Inclusion,Other Local Authorities,Third Pp - Other Local Auth,PC101,5/24/2018,518557,3071.25,REVENUE,REDACTED PERSONAL INFORMATION,REDACTED PERSONAL INFORMATION
North East Lincolnshire Council,http://statistics.data.gov.uk/id/local-authority/00FC),Deputy Chief Executive,Director Of Childrens Services,Sen/Inclusion,Other Local Authorities,Third Pp - Other Local Auth,PC101,5/24/2018,518556,3071.25,REVENUE,REDACTED PERSONAL INFORMATION,REDACTED PERSONAL INFORMATION
North East Lincolnshire Council,http://statistics.data.gov.uk/id/local-authority/00FC),Deputy Chief Executive,Director Of Childrens Services,Sen/Inclusion,Other Local Authorities,Third Pp - Other Local Auth,PC101,5/24/2018,518555,3465,REVENUE,REDACTED PERSONAL INFORMATION,REDACTED PERSONAL INFORMATION
North East Lincolnshire Council,http://statistics.data.gov.uk/id/local-authority/00FC),Deputy Chief Executive,Director Of Childrens Services,Sen/Inclusion,Other Local Authorities,Third Pp - Other Local Auth,PC101,5/15/2018,516980,1093.9,REVENUE,REDACTED PERSONAL INFORMATION,REDACTED PERSONAL INFORMATION
North East Lincolnshire Council,http://statistics.data.gov.uk/id/local-authority/00FC),Deputy Chief Executive,Director Of Childrens Services,Sen/Inclusion,Other Local Authorities,Third Pp - Other Local Auth,PC101,5/15/2018,516980,1093.9,REVENUE,REDACTED PERSONAL INFORMATION,REDACTED PERSONAL INFORMATION
North East Lincolnshire Council,http://statistics.data.gov.uk/id/local-authority/00FC),Deputy Chief Executive,Director Of Childrens Services,Sen/Inclusion,Other Local Authorities,Third Pp - Other Local Auth,PC101,5/15/2018,516980,1334.2,REVENUE,REDACTED PERSONAL INFORMATION,REDACTED PERSONAL INFORMATION
North East Lincolnshire Council,http://statistics.data.gov.uk/id/local-authority/00FC),Deputy Chief Executive,Director Of Childrens Services,Sen/Inclusion,Other Local Authorities,Third Pp - Other Local Auth,PC101,5/31/2018,518608,31052.82,REVENUE,REDACTED PERSONAL INFORMATION,REDACTED PERSONAL INFORMATION
North East Lincolnshire Council,http://statistics.data.gov.uk/id/local-authority/00FC),Deputy Chief Executive,Director Of Childrens Services,Sen/Inclusion,Other Local Authorities,Third Pp - Other Local Auth,PC101,5/24/2018,518128,640,REVENUE,REDACTED PERSONAL INFORMATION,REDACTED PERSONAL INFORMATION
North East Lincolnshire Council,http://statistics.data.gov.uk/id/local-authority/00FC),Deputy Chief Executive,Director Of Childrens Services,Sen/Inclusion,Private Contractors,Third Party Prov - Private,PH101,5/24/2018,516066,-10823.53,REVENUE,CAMBIAN AUTISM SERVICES LTD,133815
North East Lincolnshire Council,http://statistics.data.gov.uk/id/local-authority/00FC),Deputy Chief Executive,Director Of Childrens Services,Sen/Inclusion,Private Contractors,Third Party Prov - Private,PH101,5/15/2018,516963,1028.55,REVENUE,CAMBIAN CHILDCARE LIMITED,129587
North East Lincolnshire Council,http://statistics.data.gov.uk/id/local-authority/00FC),Deputy Chief Executive,Director Of Childrens Services,Sen/Inclusion,Private Contractors,Third Party Prov - Private,PH101,5/15/2018,516978,10285.5,REVENUE,CAMBIAN CHILDCARE LIMITED,129587
North East Lincolnshire Council,http://statistics.data.gov.uk/id/local-authority/00FC),Deputy Chief Executive,Director Of Childrens Services,Sen/Inclusion,Private Contractors,Third Party Prov - Private,PH101,5/15/2018,516983,10285.5,REVENUE,CAMBIAN CHILDCARE LIMITED,129587
North East Lincolnshire Council,http://statistics.data.gov.uk/id/local-authority/00FC),Deputy Chief Executive,Director Of Childrens Services,Sen/Inclusion,Private Contractors,Third Party Prov - Private,PH101,5/24/2018,518561,16692.9,REVENUE,CARE TODAY CHILDRENS SERVICES,128284
North East Lincolnshire Council,http://statistics.data.gov.uk/id/local-authority/00FC),Deputy Chief Executive,Director Of Childrens Services,Sen/Inclusion,Private Contractors,Third Party Prov - Private,PH101,5/15/2018,516979,15857.13,REVENUE,REFLEXION CARE GROUP LIMITED,106975
North East Lincolnshire Council,http://statistics.data.gov.uk/id/local-authority/00FC),Deputy Chief Executive,Director Of Childrens Services,Sen/Inclusion,Private Contractors,Third Party Prov - Private,PH101,5/8/2018,516216,19264.29,REVENUE,HALLIWELL HOMES LTD,137992
North East Lincolnshire Council,http://statistics.data.gov.uk/id/local-authority/00FC),Deputy Chief Executive,Director Of Childrens Services,Sen/Inclusion,Private Contractors,Third Party Prov - Private,PH101,5/3/2018,515811,9072,REVENUE,RADICAL SERVICES LIMITED,131315
North East Lincolnshire Council,http://statistics.data.gov.uk/id/local-authority/00FC),Deputy Chief Executive,Director Of Childrens Services,Sen/Inclusion,Private Contractors,Third Party Prov - Private,PH101,5/3/2018,515808,8232,REVENUE,RADICAL SERVICES LIMITED,131315
North East Lincolnshire Council,http://statistics.data.gov.uk/id/local-authority/00FC),Deputy Chief Executive,Director Of Childrens Services,Sen/Inclusion,Private Contractors,Third Party Prov - Private,PH101,5/3/2018,515802,9912,REVENUE,RADICAL SERVICES LIMITED,131315
North East Lincolnshire Council,http://statistics.data.gov.uk/id/local-authority/00FC),Deputy Chief Executive,Director Of Childrens Services,Sen/Inclusion,Private Contractors,Third Party Prov - Private,PH101,5/10/2018,515823,9072,REVENUE,RADICAL SERVICES LIMITED,131315
North East Lincolnshire Council,http://statistics.data.gov.uk/id/local-authority/00FC),Deputy Chief Executive,Director Of Childrens Services,Sen/Inclusion,Private Contractors,Third Party Prov - Private,PH101,5/15/2018,516065,-2352,REVENUE,RADICAL SERVICES LIMITED,131315
North East Lincolnshire Council,http://statistics.data.gov.uk/id/local-authority/00FC),Deputy Chief Executive,Director Of Childrens Services,Sen/Inclusion,Private Contractors,Third Party Prov - Private,PH101,5/8/2018,516268,22328.7,REVENUE,TOGETHER TRUST,132247
North East Lincolnshire Council,http://statistics.data.gov.uk/id/local-authority/00FC),Deputy Chief Executive,Director Of Childrens Services,Sen/Inclusion,Private Contractors,Third Party Prov - Private,PH101,5/3/2018,515801,14327.14,REVENUE,KEDLESTON GROUP,136352
North East Lincolnshire Council,http://statistics.data.gov.uk/id/local-authority/00FC),Deputy Chief Executive,Director Of Childrens Services,Sen/Inclusion,Private Contractors,Third Party Prov - Private,PH101,5/3/2018,515798,14325.09,REVENUE,KEDLESTON GROUP,136352
North East Lincolnshire Council,http://statistics.data.gov.uk/id/local-authority/00FC),Deputy Chief Executive,Director Of Childrens Services,Sen/Inclusion,Private Contractors,Third Party Prov - Private,PH101,5/24/2018,516211,20000,REVENUE,CAMBIAN AUTISM SERVICES LTD,133815
North East Lincolnshire Council,http://statistics.data.gov.uk/id/local-authority/00FC),Deputy Chief Executive,Director Of Childrens Services,Sen/Inclusion,Miscellaneous Expenses,Contingency Reserve,LL123,5/24/2018,518496,12825,REVENUE,THE CAMBRIDGE PARK ACADEMY,107472
North East Lincolnshire Council,http://statistics.data.gov.uk/id/local-authority/00FC),Deputy Chief Executive,Director Of Childrens Services,Sen/Inclusion,Miscellaneous Expenses,Contingency Reserve,LL123,5/8/2018,516291,1463,REVENUE,ORCHARD TRAINING & EDUCATION LTD,101643
North East Lincolnshire Council,http://statistics.data.gov.uk/id/local-authority/00FC),Deputy Chief Executive,Director Of Childrens Services,Sen/Inclusion,Miscellaneous Expenses,Contingency Reserve,LL123,5/8/2018,516292,3388,REVENUE,ORCHARD TRAINING & EDUCATION LTD,101643
